Workbook

Sheet Makro_security
B2: Thermowell Calculation Program ASME_PTC_19_3_TW_2016_v2_7
B4: Please note: Macros are not activated. In order to use this program you need to set the macro security to *activate all macros* and restart the worksheet.
B6: © 2018 - WIKA Alexander Wiegand SE & Co. KG

Sheet Departments (hidden)
A1: Country | B1: Settlement Name | C1: Address | D1: N:\_Temp\SchorkP\WFC\WIKA_ASME_PTC_19.3_2010_vX.X\Ablage | G1: Phone | H1: Fax | I1: E-Mail | J1: Website
D2: NL-Adressen-für-ETM_20110418 cw | E2: UpDate 2016 for v2.6 21-april-2016
A3: Afganistan | B3: WIKA Alexander Wiegand SE & Co. KG | C3: Alexander-Wiegand-Straße | D3: 63911 Klingenberg | G3: +49 9372 132-0 | H3: +49 9372 132-406 | I3: info@wika.de | J3: www.wika.de
A4: Albania | B4: Krijon Ltd. | C4: Rr. Toci Shkurti no.5 | D4: 1001.0 Tirana | F4: Albania | G4: +355 4 2347713 | H4: +355 4 2340817 | I4: Krijon@albmail.com
A5: Algeria | B5: WIKA Instruments s.a.r.l. | C5: Parc d‘Affaires des Bellevues | D5: 8 rue Rosa Luxembourg | E5: 95610 Eragny-sur-Oise | G5: +33 1 343084-84 | H5: +33 1 343084-94 | I5: info@wika.fr | J5: www.wika.fr
A6: Andorra | B6: WIKA Alexander Wiegand SE & Co. KG | C6: Alexander-Wiegand-Straße | D6: 63911 Klingenberg | G6: +49 9372 132-0 | H6: +49 9372 132-406 | I6: info@wika.de | J6: www.wika.de
A7: Angola | B7: WIKA Instruments (Pty.) Ltd. | C7: P.O. Box 75225 | D7: Gardenview 2047 | G7: +27 11 621 00 00 | H7: +27 11 621 00 59 | I7: sales@wika.co.za | J7: www.wika.co.za
A8: Antigua & Barbuda | B8: WIKA Alexander Wiegand SE & Co. KG | C8: Alexander-Wiegand-Straße | D8: 63911 Klingenberg | G8: +49 9372 132-0 | H8: +49 9372 132-406 | I8: info@wika.de | J8: www.wika.de
A9: Argentina | B9: WIKA Argentina S.A. | C9: Gral. Lavalle 3568 | D9: (B1603AUH) Villa Martelli | E9: Buenos Aires | G9: +54 11 4730-1800 | H9: +54 11 4761-0050 | I9: info@wika.com.ar | J9: www.wika.com.ar
A10: Armenia | B10: WIKA Alexander Wiegand SE & Co. KG | C10: Alexander-Wiegand-Straße | D10: 63911 Klingenberg | G10: +49 9372 132-0 | H10: +49 9372 132-406 | I10: info@wika.de | J10: www.wika.de
A11: Australia | B11: WIKA Australia Pty. Ltd. | C11: Sydney Head Office | D11: Unit K, 10-16 South Street | E11: Rydalmere NSW 2116 | G11: +61 2 8845 5222 | H11: +61 2 9684 4767 | I11: sales@wika.com.au | J11: www.wika.com.au
A12: Austria | B12: WIKA Meßgerätevertrieb Ursula Wiegand GmbH & Co. KG | C12: Perfektastraße 83 | D12: 1230 Vienna | G12: +43 1 8 691631 | H12: +43 1 8 691634 | I12: info@wika.at | J12: www.wika.at
A13: Azerbaijan | B13: WIKA Azerbaijan LLC | C13: Caspian Business Center | D13: 9th floor 40 J.Jabbarli str. | E13: 1065 Baku | G13: +994 12 49704-61 | H13: +994 12 49704-62 | I13: info@wika.az | J13: www.wika.az
A14: Bahamas | B14: WIKA Alexander Wiegand SE & Co. KG | C14: Alexander-Wiegand-Straße | D14: 63911 Klingenberg | G14: +49 9372 132-0 | H14: +49 9372 132-406 | I14: info@wika.de | J14: www.wika.de
A15: Bahrain | B15: WIKA Middle East FZE | C15: Warehouse No. RB08JB02 | D15: 63911 Klingenberg | E15: P.O. Box 17492 | F15: Jebel Ali, Dubai | G15: +971 4 8839-090 | H15: +971 4 8839-198 | I15: info@wika.ae | J15: www.wika.ae
A16: Bangladesh | B16: WIKA Instruments India Pvt. Ltd. | C16: Plot no. 40, Gat No. 94 + 100 | D16: High Cliff Industrial Estate | E16: Village Kesnand, Wagholi | F16: Pune - 412 207 | G16: +91 20 66293200 | H16: +91 20 66293325 | I16: sales@wika.co.in | J16: www.wika.co.in
A17: Barbados | B17: WIKA Alexander Wiegand SE & Co. KG | C17: Alexander-Wiegand-Straße | D17: 63911 Klingenberg | G17: +49 9372 132-0 | H17: +49 9372 132-406 | I17: info@wika.de | J17: www.wika.de
A18: Belarus | B18: WIKA Belarus | C18: Ul. Zaharova 50B, Office 3H | D18: 220088 Мinsk | F18: Belarus | G18: +375 17 2945711 | H18: +375 17 2945711 | I18: info@wika.by | J18: www.wika.by
A19: Belgium | B19: WIKA Benelux | C19: Industrial estate De Berk | D19: Newtonweg 12 | E19: 6101 WX ECHT | G19: +31 475 535500 | H19: +31 475 535446 | I19: info@wika.nl | J19: www.wika.be
A20: Belize | B20: WIKA Alexander Wiegand SE & Co. KG | C20: Alexander-Wiegand-Straße | D20: 63911 Klingenberg | G20: +49 9372 132-0 | H20: +49 9372 132-406 | I20: info@wika.de | J20: www.wika.de
A21: Benin | B21: WIKA Alexander Wiegand SE & Co. KG | C21: Alexander-Wiegand-Straße | D21: 63911 Klingenberg | G21: +49 9372 132-0 | H21: +49 9372 132-406 | I21: info@wika.de | J21: www.wika.de
A22: Bhutan | B22: WIKA Alexander Wiegand SE & Co. KG | C22: Alexander-Wiegand-Straße | D22: 63911 Klingenberg | G22: +49 9372 132-0 | H22: +49 9372 132-406 | I22: info@wika.de | J22: www.wika.de
A23: Bolivia | B23: WIKA Argentina S.A. | C23: Gral. Lavalle 3568 | D23: (B1603AUH) Villa Martelli | E23: Buenos Aires | G23: +54 11 4730 1800 | H23: +54 11 4761 0050 | I23: info@wika.com.ar | J23: www.wika.com.ar
A24: Bosnia and Herzegovina | B24: WIKA Alexander Wiegand SE & Co. KG | C24: Alexander-Wiegand-Straße | D24: 63911 Klingenberg | G24: +49 9372 132-0 | H24: +49 9372 132-406 | I24: info@wika.de | J24: www.wika.de
A25: Botswana | B25: WIKA Instruments (Pty.) Ltd. | C25: P.O. Box 75225 | D25: Gardenview 2047 | G25: +27 11 621 00 00 | H25: +27 11 621 00 59 | I25: sales@wika.co.za | J25: www.wika.co.za
A26: Brazil | B26: Wika do Brasil Ind. e Com. Ltda. | C26: Av. Ursula Wiegand, 03 | D26: Poligono Industrial | E26: CEP 18560-000 Iperó - SP | F26: Brazil | G26: +55 15 3459 9700 | H26: +55 15 3266 1650 | I26: marketing@wika.com.br | J26: www.wika.com.br
A27: Brunei Darussalam | B27: Joffren Omar Co. Sdn Bhd | C27: Lot No. 23, G-25 area, | D27: Simpang 81-4, P.O. Box 105 | E27: Seria KB 1133 | F27: Negara Brunei Darussalam | G27: +673 3 222183 | H27: +673 3 223309 | I27: josks@brunet.bn
A28: Bulgaria | B28: WIKA Bulgaria EOOD | C28: Akad. Ivan Geshov Blvd. 2E | D28: Business Center Serdika, building 3, office 3/104 | E28: 1330 Sofia | G28: +359 2 82138-10 | H28: +359 2 82138-13 | I28: info@wika.bg | J28: www.wika.bg
A29: Burkina Faso | B29: WIKA Alexander Wiegand SE & Co. KG | C29: Alexander-Wiegand-Straße | D29: 63911 Klingenberg | G29: +49 9372 132-0 | H29: +49 9372 132-406 | I29: info@wika.de | J29: www.wika.de
A30: Burma (Myanmar) | B30: WIKA Alexander Wiegand SE & Co. KG | C30: Alexander-Wiegand-Straße | D30: 63911 Klingenberg | G30: +49 9372 132-0 | H30: +49 9372 132-406 | I30: info@wika.de | J30: www.wika.de
A31: Burundi | B31: WIKA Instruments (Pty.) Ltd. | C31: P.O. Box 75225 | D31: Gardenview 2047 | G31: +27 11 621 00 00 | H31: +27 11 621 00 59 | I31: sales@wika.co.za | J31: www.wika.co.za
A32: Cameroon | B32: WIKA Alexander Wiegand SE & Co. KG | C32: Alexander-Wiegand-Straße | D32: 63911 Klingenberg | G32: +49 9372 132-0 | H32: +49 9372 132-406 | I32: info@wika.de | J32: www.wika.de
A33: Canada | B33: WIKA Instruments Canada Ltd. | C33: Edmonton Head Office | D33: 3103 Parsons Road | E33: Edmonton, Alberta, T6N 1C8 | G33: +1 780 463 7035 | H33: +1 780 462 0017 | I33: info@wika.ca | J33: www.wika.ca
A34: Cape Verde | B34: WIKA Alexander Wiegand SE & Co. KG | C34: Alexander-Wiegand-Straße | D34: 63911 Klingenberg | G34: +49 9372 132-0 | H34: +49 9372 132-406 | I34: info@wika.de | J34: www.wika.de
A35: Central African Republic | B35: WIKA Alexander Wiegand SE & Co. KG | C35: Alexander-Wiegand-Straße | D35: 63911 Klingenberg | G35: +49 9372 132-0 | H35: +49 9372 132-406 | I35: info@wika.de | J35: www.wika.de
A36: Chad | B36: WIKA Alexander Wiegand SE & Co. KG | C36: Alexander-Wiegand-Straße | D36: 63911 Klingenberg | G36: +49 9372 132-0 | H36: +49 9372 132-406 | I36: info@wika.de | J36: www.wika.de
A37: Chile | B37: WIKA Chile S.p.A. | C37: Av. Coronel Pereira 72 | D37: Oficina 101 | E37: Las Condes | F37: Santiago, Chile | G37: +56 2 365 1719 | H37: no fax | I37: info@wika.cl | J37: www.wika.cl
A38: China | B38: WIKA Int. Trading (Shanghai) Co., Ltd. | C38: A2615, NO.100, | D38: Zuyi Road, | E38: Changning District, | F38: 200051 Shanghai | G38: +86 21 53 85 25 72 | H38: +86 21 53 85 25 75 | I38: info@wika.cn | J38: www.wika.com.cn
A39: Colombia | B39: Instrumentos WIKA Colombia S.A.S. | C39: Dorado Plaza, | D39: Avenida Calle 26 No. 85D – 55 | E39: Local 126 y 126 A | F39: Bogotá | G39: +57 1 744 3455 | H39: no fax | I39: info@wika.co | J39: www.wika.co
A40: Comoros | B40: WIKA Alexander Wiegand SE & Co. KG | C40: Alexander-Wiegand-Straße | D40: 63911 Klingenberg | G40: +49 9372 132-0 | H40: +49 9372 132-406 | I40: info@wika.de | J40: www.wika.de
A41: Congo | B41: WIKA Alexander Wiegand SE & Co. KG | C41: Alexander-Wiegand-Straße | D41: 63911 Klingenberg | G41: +49 9372 132-0 | H41: +49 9372 132-406 | I41: info@wika.de | J41: www.wika.de
A42: Congo, Democratic Republic | B42: WIKA Alexander Wiegand SE & Co. KG | C42: Alexander-Wiegand-Straße | D42: 63911 Klingenberg | G42: +49 9372 132-0 | H42: +49 9372 132-406 | I42: info@wika.de | J42: www.wika.de
A43: Costa Rica | B43: Central de Mangueras, S.A. | C43: 150 Metros Oeste de La Plaza de | D43: Deportes de La Uruca | E43: San José | F43: P.O. Box 241-1150 | G43: +506 2561111 | H43: +506 2228513 | I43: cenman@recsa.co.cr
A44: Côte d'Ivoire | B44: WIKA Alexander Wiegand SE & Co. KG | C44: Alexander-Wiegand-Straße | D44: 63911 Klingenberg | G44: +49 9372 132-0 | H44: +49 9372 132-406 | I44: info@wika.de | J44: www.wika.de
A45: Croatia | B45: WIKA Croatia d.o.o. | C45: Hrastovicka 19 | D45: 10250 Zagreb-Lucko | G45: +385 1 6531034 | H45: +385 1 6531357 | I45: info@wika.hr | J45: www.wika.hr
A46: Cuba | B46: WIKA Alexander Wiegand SE & Co. KG | C46: Alexander-Wiegand-Straße | D46: 63911 Klingenberg | G46: +49 9372 132-0 | H46: +49 9372 132-406 | I46: info@wika.de | J46: www.wika.de
A47: Cyprus | B47: Theseas Savva | C47: 118, Franklin Roosevelt Avenue | D47: P.O. Box 114 | E47: 3601 Limassol | G47: +357 5 565899 | H47: +357 5 562917 | I47: theseas@cytanet.com.cy
A48: Czech Republic | B48: WIKA Representative Office | C48: Hlavna 240 | D48: 94638 Rdvan nad Dunajom | G48: +421 35 7782215 | H48: +421 35 7752215 | I48: rainer.arlt@wika.com
A49: Denmark | B49: WIKA Alexander Wiegand SE & Co. KG | C49: Alexander-Wiegand-Straße | D49: 63911 Klingenberg | G49: +49 9372 132-0 | H49: +49 9372 132-406 | I49: info@wika.de | J49: www.wika.de
A50: Djibouti | B50: WIKA Alexander Wiegand SE & Co. KG | C50: Alexander-Wiegand-Straße | D50: 63911 Klingenberg | G50: +49 9372 132-0 | H50: +49 9372 132-406 | I50: info@wika.de | J50: www.wika.de
A51: Dominica | B51: WIKA Alexander Wiegand SE & Co. KG | C51: Alexander-Wiegand-Straße | D51: 63911 Klingenberg | G51: +49 9372 132-0 | H51: +49 9372 132-406 | I51: info@wika.de | J51: www.wika.de
A52: Dominican Republic | B52: Garlas Controls | C52: Euclides Morillo No. 55 | D52: Aroyo Hondo | E52: Santo Domingo | G52: +809 563-3226 | H52: +809 563-3498 | I52: garlas.control@codetel.net.do
A53: East Timor | B53: WIKA Alexander Wiegand SE & Co. KG | C53: Alexander-Wiegand-Straße | D53: 63911 Klingenberg | G53: +49 9372 132-0 | H53: +49 9372 132-406 | I53: info@wika.de | J53: www.wika.de
A54: Ecuador | B54: Disetec Cía Ltda. | C54: Av. Mariano Cardenal OE1-74 y Vicente | D54: Duque | E54: Quito | G54: +593 2 2806222 | H54: +593 2 2807684 | I54: info@disetec-ec.com | J54: www.disetec-ec.com
A55: Egypt | B55: WIKA Near East Ltd. | C55: El-Serag City Towers | D55: Tower#2, Office#67 | E55: Makram Ebaid St. | F55: Nasr City, Cairo, Egypt | G55: +20 2 227 33 140 | H55: +20 2 227 03 815 | I55: info@wika.com.eg | J55: www.wika.com.eg
A56: El Salvador | B56: Valvulas y Equipos/Indelpin S.A. de C.V. | C56: Residencial Nobles de la Escalon | D56: Pasaje Milán, No. 9-10 y 75 Av. Norte | E56: San Salvador C.A. | G56: +503 2622680 | H56: +503 2620361 | I56: valvulasyequipos@integra.com.sv
A57: Equatorial Guinea | B57: WIKA Alexander Wiegand SE & Co. KG | C57: Alexander-Wiegand-Straße | D57: 63911 Klingenberg | G57: +49 9372 132-0 | H57: +49 9372 132-406 | I57: info@wika.de | J57: www.wika.de
A58: Eritrea | B58: WIKA Alexander Wiegand SE & Co. KG | C58: Alexander-Wiegand-Straße | D58: 63911 Klingenberg | G58: +49 9372 132-0 | H58: +49 9372 132-406 | I58: info@wika.de | J58: www.wika.de
A59: Estonia | B59: WIKA Alexander Wiegand SE & Co. KG | C59: Alexander-Wiegand-Straße | D59: 63911 Klingenberg | G59: +49 9372 132-0 | H59: +49 9372 132-406 | I59: info@wika.de | J59: www.wika.de
A60: Ethiopia | B60: WIKA Alexander Wiegand SE & Co. KG | C60: Alexander-Wiegand-Straße | D60: 63911 Klingenberg | G60: +49 9372 132-0 | H60: +49 9372 132-406 | I60: info@wika.de | J60: www.wika.de
A61: Fiji | B61: WIKA Alexander Wiegand SE & Co. KG | C61: Alexander-Wiegand-Straße | D61: 63911 Klingenberg | G61: +49 9372 132-0 | H61: +49 9372 132-406 | I61: info@wika.de | J61: www.wika.de
A62: Finland | B62: WIKA Finland Oy | C62: Melkonkatu 24 | D62: 00210 Helsinki | G62: +358 9 682 49 20 | H62: +358 9 682 49 270 | I62: info@wika.fi | J62: www.wika.fi
A63: France | B63: WIKA Instruments s.a.r.l. | C63: Parc d'Affaires des Bellevues | D63: 8, Rue Rosa Luxembourg | E63: 95610 Eragny-sur-Oise | G63: +33 1 34 30 84 84 | H63: +33 1 34 30 84 94 | I63: info@wika.fr | J63: www.wika.fr
A64: Gabon | B64: WIKA Alexander Wiegand SE & Co. KG | C64: Alexander-Wiegand-Straße | D64: 63911 Klingenberg | G64: +49 9372 132-0 | H64: +49 9372 132-406 | I64: info@wika.de | J64: www.wika.de
A65: Gambia | B65: WIKA Alexander Wiegand SE & Co. KG | C65: Alexander-Wiegand-Straße | D65: 63911 Klingenberg | G65: +49 9372 132-0 | H65: +49 9372 132-406 | I65: info@wika.de | J65: www.wika.de
A66: Georgia | B66: WIKA Alexander Wiegand SE & Co. KG | C66: Alexander-Wiegand-Straße | D66: 63911 Klingenberg | G66: +49 9372 132-0 | H66: +49 9372 132-406 | I66: info@wika.de | J66: www.wika.de
A67: Germany | B67: WIKA Alexander Wiegand SE & Co. KG | C67: Alexander-Wiegand-Straße | D67: 63911 Klingenberg | G67: +49 9372 132-0 | H67: +49 9372 132-406 | I67: info@wika.de | J67: www.wika.de
A68: Ghana | B68: WIKA Alexander Wiegand SE & Co. KG | C68: Alexander-Wiegand-Straße | D68: 63911 Klingenberg | G68: +49 9372 132-0 | H68: +49 9372 132-406 | I68: info@wika.de | J68: www.wika.de
A69: Greece | B69: Deka S.A. | C69: Aristidou 21 | D69: 18531 Pireas | G69: +30 210 4222325 | H69: +30 210 4118107 | I69: deka@otenet.gr | J69: www.deka.gr
A70: Grenada | B70: WIKA Alexander Wiegand SE & Co. KG | C70: Alexander-Wiegand-Straße | D70: 63911 Klingenberg | G70: +49 9372 132-0 | H70: +49 9372 132-406 | I70: info@wika.de | J70: www.wika.de
A71: Guatemala | B71: Maquinsa | C71: 19 Avenida 16-56 Zona 10 | D71: 01010 Guatemala | G71: +502 363 1986 | H71: +502 363 2026 | I71: maquinsa@intelnet.net.gt
A72: Guinea | B72: WIKA Alexander Wiegand SE & Co. KG | C72: Alexander-Wiegand-Straße | D72: 63911 Klingenberg | G72: +49 9372 132-0 | H72: +49 9372 132-406 | I72: info@wika.de | J72: www.wika.de
A73: Guinea-Bissau | B73: WIKA Alexander Wiegand SE & Co. KG | C73: Alexander-Wiegand-Straße | D73: 63911 Klingenberg | G73: +49 9372 132-0 | H73: +49 9372 132-406 | I73: info@wika.de | J73: www.wika.de
A74: Guyana | B74: WIKA Alexander Wiegand SE & Co. KG | C74: Alexander-Wiegand-Straße | D74: 63911 Klingenberg | G74: +49 9372 132-0 | H74: +49 9372 132-406 | I74: info@wika.de | J74: www.wika.de
A75: Haiti | B75: WIKA Alexander Wiegand SE & Co. KG | C75: Alexander-Wiegand-Straße | D75: 63911 Klingenberg | G75: +49 9372 132-0 | H75: +49 9372 132-406 | I75: info@wika.de | J75: www.wika.de
A76: Honduras | B76: Indelpin | C76: 13 Calle No. 45 | D76: Colonia jardines del Valle San Pedro | E76: Sula | I76: info@pgrupodelpin.com
A77: Hungary | B77: WIKA Representative Office | C77: Hlavna 240 | D77: 94638 Rdvan nad Dunajom | G77: +421 35 7782215 | H77: +421 35 7752215 | I77: rainer.arlt@wika.com
A78: Iceland | B78: WIKA Alexander Wiegand SE & Co. KG | C78: Alexander-Wiegand-Straße | D78: 63911 Klingenberg | G78: +49 9372 132-0 | H78: +49 9372 132-406 | I78: info@wika.de | J78: www.wika.de
A79: India | B79: WIKA Instruments India Pvt. Ltd. | C79: Plot no. 40, Gat No. 94 + 100 | D79: High Cliff Industrial Estate | E79: Village Kesnand, Wagholi | F79: Pune - 412 207 | G79: +91 20 66293200 | H79: +91 20 66293325 | I79: sales@wika.co.in | J79: www.wika.co.in
A80: Indonesia | B80: WIKA Instrumentation Pte.Ltd. | C80: 13 Kian Teck Crescent | D80: 628878 Singapore | G80: +65 6844 5506 | H80: +65 6844 5507 | I80: info@wika.com.sg | J80: www.wika.com.sg
A81: Irak | B81: WIKA Alexander Wiegand SE & Co. KG | C81: Alexander-Wiegand-Straße | D81: 63911 Klingenberg | G81: +49 9372 132-0 | H81: +49 9372 132-406 | I81: info@wika.de | J81: www.wika.de
A82: Iran | B82: WIKA Instrumentation Pars Kish Ltd. | C82: Apt. 307, 3rd Floor, 8-12 Vanak St. | D82: Vanak Sq. | E82: Post code: 1991945138 Tehran, Iran | G82: +98 21 88206596 9 | H82: +98 21 88 20 66 23 | I82: info@wika.ir | J82: www.wika.ir
A83: Ireland | B83: Instrument Technology Ltd. | C83: Unit 6 Dunboyne Business Park | D83: Dunboyne | E83: Co. Meath | G83: +353 1 801377-0 | H83: +353 1 801377-1 | I83: info@itldub.ie | J83: www.wika.co.uk
A84: Israel | B84: Technomad Ltd. | C84: 19 Hashikma St., | D84: Azor P.O. Box 161 | E84: Azor 58009 | G84: +972 3 5585550 | H84: +972 3 5585090 | I84: info@technomadltd.co.il
A85: Italy | B85: WIKA Italia Srl & C. sas | C85: Via Gugliemo Marconi 8 | D85: 20020 Arese (Milano) | G85: +39 02 93 86 11 | H85: +39 02 93 86 174 | I85: info@wika.it | J85: www.wika.it
A86: Italy | B86: Gayesco Europe | C86: Via G. Borghisani 4 | D86: 26035 Pieve San Giacomo - Cremona | G86: +39 0372 6405 | H86: +39 0372 640490 | I86: sales@gayesco.wika.com | J86: www.wika.com
A87: Jamaica | B87: WIKA Alexander Wiegand SE & Co. KG | C87: Alexander-Wiegand-Straße | D87: 63911 Klingenberg | G87: +49 9372 132-0 | H87: +49 9372 132-406 | I87: info@wika.de | J87: www.wika.de
A88: Japan | B88: WIKA Japan K.K. | C88: MG Shibaura Bldg. 6F | D88: 1-8-4, Shibaura, Minato-ku | E88: Tokyo 105-0023 | G88: +81 3 5439 6673 | H88: +81 3 5439 6674 | I88: info@wika.co.jp | J88: www.wika.co.jp
A89: Jordan | B89: WIKA Near East Ltd. | C89: Villa No. 6, Mohamed Fahmy | D89: Elmohdar St. - of Eltayaran St. | E89: 1st District | F89: Nasr City, Cairo, Egypt | G89: +20 2 240 13130 | H89: +20 2 240 13113 | I89: info@wika.com.eg | J89: www.wika.com.eg
A90: Kazakhstan | B90: TOO WIKA Kazakhstan | C90: Raimbekstr. 169, 3rd floor | D90: 050050 Almaty | E90: Kazakhstan | G90: +7 3272330848 | H90: +7 3272789905 | I90: info@wika.kz | J90: www.wika.kz
A91: Kenya | B91: WIKA Alexander Wiegand SE & Co. KG | C91: Alexander-Wiegand-Straße | D91: 63911 Klingenberg | G91: +49 9372 132-0 | H91: +49 9372 132-406 | I91: info@wika.de | J91: www.wika.de
A92: Kiribati | B92: WIKA Alexander Wiegand SE & Co. KG | C92: Alexander-Wiegand-Straße | D92: 63911 Klingenberg | G92: +49 9372 132-0 | H92: +49 9372 132-406 | I92: info@wika.de | J92: www.wika.de
A93: Kosovo | B93: WIKA Alexander Wiegand SE & Co. KG | C93: Alexander-Wiegand-Straße | D93: 63911 Klingenberg | G93: +49 9372 132-0 | H93: +49 9372 132-406 | I93: info@wika.de | J93: www.wika.de
A94: Kuwait | B94: WIKA Middle East FZE | C94: Warehouse No. RB08JB02 | D94: P.O. Box 17492 | E94: Jebel Ali, Dubai | G94: +971 4 8839-090 | H94: +971 4 8839-198 | I94: info@wika.ae | J94: www.wika.ae
A95: Kyrgyzstan | B95: WIKA Alexander Wiegand SE & Co. KG | C95: Alexander-Wiegand-Straße | D95: 63911 Klingenberg | G95: +49 9372 132-0 | H95: +49 9372 132-406 | I95: info@wika.de | J95: www.wika.de
A96: Laos | B96: WIKA Alexander Wiegand SE & Co. KG | C96: Alexander-Wiegand-Straße | D96: 63911 Klingenberg | G96: +49 9372 132-0 | H96: +49 9372 132-406 | I96: info@wika.de | J96: www.wika.de
A97: Lativa | B97: WIKA Alexander Wiegand SE & Co. KG | C97: Alexander-Wiegand-Straße | D97: 63911 Klingenberg | G97: +49 9372 132-0 | H97: +49 9372 132-406 | I97: info@wika.de | J97: www.wika.de
A98: Lebanon | B98: WIKA Near East Ltd. | C98: Villa No. 6, Mohamed Fahmy | D98: Elmohdar St. - of Eltayaran St. | E98: 1st District | F98: Nasr City - Cairo | G98: +20 2 22733140 | H98: +20 2 22703815 | I98: info@wika.com.eg | J98: www.wika.com.eg
A99: Lesotho | B99: WIKA Alexander Wiegand SE & Co. KG | C99: Alexander-Wiegand-Straße | D99: 63911 Klingenberg | G99: +49 9372 132-0 | H99: +49 9372 132-406 | I99: info@wika.de | J99: www.wika.de
A100: Liberia | B100: WIKA Alexander Wiegand SE & Co. KG | C100: Alexander-Wiegand-Straße | D100: 63911 Klingenberg | G100: +49 9372 132-0 | H100: +49 9372 132-406 | I100: info@wika.de | J100: www.wika.de
A101: Libya | B101: WIKA Near East Ltd. | C101: Villa No. 6, Mohamed Fahmy | D101: Elmohdar St. - of Eltayaran St. | E101: 1st District | F101: Nasr City - Cairo | G101: +20 2 240 13130 | H101: +20 2 240 13113 | I101: info@wika.com.eg | J101: www.wika.com.eg
A102: Liechtenstein | B102: WIKA Benelux | C102: Industrial estate De Berk | D102: Newtonweg 12 | E102: 6101 WX ECHT | G102: +31 475 53 55 00 | H102: +31 475 53 54 46 | I102: info@wika.nl | J102: www.wika.nl
A103: Lithuania | B103: UAB „Lintera“ | C103: Ukmerges Str. 22 | D103: 55101 Jonava | G103: +370 349 61161 | H103: +370 349 61297 | I103: jonava@lintera.info
A104: Luxembourg | B104: WIKA Benelux | C104: Industrial estate De Berk | D104: Newtonweg 12 | E104: 6101 WX ECHT | G104: +31 475 53 55 00 | H104: +31 475 53 54 46 | I104: info@wika.nl | J104: www.wika.nl
A105: Macedonia | B105: TEGA INZENERING d.o.o. | C105: Ul. Kozle 88 B3 mezanin lokal 7 | D105: 1000 Skopje | G105: +389 2308 6094 | H105: +389 2308 6095 | I105: poposki@tegaing.com.mk
A106: Madagascar | B106: WIKA Alexander Wiegand SE & Co. KG | C106: Alexander-Wiegand-Straße | D106: 63911 Klingenberg | G106: +49 9372 132-0 | H106: +49 9372 132-406 | I106: info@wika.de | J106: www.wika.de
A107: Malawi | B107: WIKA Instruments (Pty.) Ltd. | C107: P.O. Box 75225 | D107: Gardenview 2047 | E107: Malawi | F107: Malawi | G107: +27 11 621 00 00 | H107: +27 11 621 00 59 | I107: sales@wika.co.za | J107: www.wika.co.za
A108: Malaysia | B108: WIKA Instrumentation (M) Sdn Bhd | C108: No. 27 & 29, Jalan Puteri 5/20 | D108: Bandar Puteri Puchong | E108: 47100 Puchong, Selangor | G108: +60 3 80631080 | H108: +60 3 80631070 | I108: info@wika.com.my | J108: www.wika.com.my
A109: Maldives | B109: WIKA Alexander Wiegand SE & Co. KG | C109: Alexander-Wiegand-Straße | D109: 63911 Klingenberg | G109: +49 9372 132-0 | H109: +49 9372 132-406 | I109: info@wika.de | J109: www.wika.de
A110: Mali | B110: WIKA Alexander Wiegand SE & Co. KG | C110: Alexander-Wiegand-Straße | D110: 63911 Klingenberg | G110: +49 9372 132-0 | H110: +49 9372 132-406 | I110: info@wika.de | J110: www.wika.de
A111: Malta | B111: Salvo Grima & Sons Ltd | C111: 187, Xatt I-Ghassara ta‘ I-Gheneb | D111: Marsa HMR12 | G111: +356 2560-7000 | H111: +356 2560-7147 | I111: info@marine.salvogrima.com.mt | J111: www.wika.it
A112: Marshall Islands | B112: WIKA Alexander Wiegand SE & Co. KG | C112: Alexander-Wiegand-Straße | D112: 63911 Klingenberg | G112: +49 9372 132-0 | H112: +49 9372 132-406 | I112: info@wika.de | J112: www.wika.de
A113: Mauritania | B113: WIKA Alexander Wiegand SE & Co. KG | C113: Alexander-Wiegand-Straße | D113: 63911 Klingenberg | G113: +49 9372 132-0 | H113: +49 9372 132-406 | I113: info@wika.de | J113: www.wika.de
A114: Mauritius | B114: WIKA Alexander Wiegand SE & Co. KG | C114: Alexander-Wiegand-Straße | D114: 63911 Klingenberg | G114: +49 9372 132-0 | H114: +49 9372 132-406 | I114: info@wika.de | J114: www.wika.de
A115: Mexico | B115: Instrumentos Wika Mexico SA de CV | C115: Viena 20 Ofna 301 | D115: Col. Juárez | E115: Del. Cuauthemoc, CP 06600 | F115: México DF | G115: +52 55 50205300 | H115: +52 55 50205300 | I115: ventas@wika.com | J115: www.wika.com.mx
A116: Micronesia | B116: WIKA Alexander Wiegand SE & Co. KG | C116: Alexander-Wiegand-Straße | D116: 63911 Klingenberg | G116: +49 9372 132-0 | H116: +49 9372 132-406 | I116: info@wika.de | J116: www.wika.de
A117: Moldovo | B117: WIKA Alexander Wiegand SE & Co. KG | C117: Alexander-Wiegand-Straße | D117: 63911 Klingenberg | G117: +49 9372 132-0 | H117: +49 9372 132-406 | I117: info@wika.de | J117: www.wika.de
A118: Monaco | B118: WIKA Alexander Wiegand SE & Co. KG | C118: Alexander-Wiegand-Straße | D118: 63911 Klingenberg | G118: +49 9372 132-0 | H118: +49 9372 132-406 | I118: info@wika.de | J118: www.wika.de
A119: Mongolia | B119: WIKA Alexander Wiegand SE & Co. KG | C119: Alexander-Wiegand-Straße | D119: 63911 Klingenberg | G119: +49 9372 132-0 | H119: +49 9372 132-406 | I119: info@wika.de | J119: www.wika.de
A120: Montenegro | B120: WIKA Alexander Wiegand SE & Co. KG | C120: Alexander-Wiegand-Straße | D120: 63911 Klingenberg | G120: +49 9372 132-0 | H120: +49 9372 132-406 | I120: info@wika.de | J120: www.wika.de
A121: Morocco | B121: WIKA Instruments s.a.r.l. | C121: Parc d‘Affaires des Bellevues | D121: 8 rue Rosa Luxembourg | E121: 95610 Eragny-sur-Oise | F121: France | G121: +33 1 343084-84 | H121: +33 1 343084-94 | I121: info@wika.fr | J121: www.wika.fr
A122: Mozambique | B122: WIKA Instruments (Pty.) Ltd. | C122: P.O. Box 75225 | D122: Gardenview 2047 | F122: South Africa | G122: +27 11 621 00 00 | H122: +27 11 621 00 59 | I122: sales@wika.co.za | J122: www.wika.co.za
A123: Myanmar | B123: WIKA Instrumentation Corporation (Thailand) Co., Ltd. | C123: 850/7 Ladkrabang Road, Ladkrabang | D123: Bangkok 10520 | F123: Thailand | G123: +66 2 32668-76 | H123: +66 2 32668-74 | I123: info@wika.co.th | J123: www.wika.co.th
A124: Namibia | B124: WIKA Instruments Namibia (Pty) Ltd. | C124: P.O. Box 31263 | D124: Pionierspark | E124: Windhoek | G124: +26 4 61238811 | H124: +26 4 61233403 | I124: info@wika.com.na | J124: www.wika.com.na
A125: Nauru | B125: WIKA Alexander Wiegand SE & Co. KG | C125: Alexander-Wiegand-Straße | D125: 63911 Klingenberg | G125: +49 9372 132-0 | H125: +49 9372 132-406 | I125: info@wika.de | J125: www.wika.de
A126: Nepal | B126: WIKA Alexander Wiegand SE & Co. KG | C126: Alexander-Wiegand-Straße | D126: 63911 Klingenberg | G126: +49 9372 132-0 | H126: +49 9372 132-406 | I126: info@wika.de | J126: www.wika.de
A127: Netherlands | B127: WIKA Benelux | C127: Industrial estate De Berk | D127: Newtonweg 12 | E127: 6101 WX ECHT | G127: +31 475 53 55 00 | H127: +31 475 53 54 46 | I127: info@wika.nl | J127: www.wika.nl
A128: New Zealand | B128: WIKA Instruments Limited | C128: Unit 7, 49 Sainsbury Road | D128: St Lukes | E128: Auckland 1025 | G128: +64 9 847 9020 | H128: +64 9 846 5964 | I128: info@wika.co.nz | J128: www.wika.co.nz
A129: Nicaragua | B129: Buhler Bandas y Mangueras | C129: C. Norte, Cerveceria Victoria 2 1/2 c. | D129: Arriba | E129: P.O. Box 2358 | F129: Managua | G129: +505 249 3616 | H129: +505 276 0044 | I129: buhler@ns.tmx.com.ni
A130: Niger | B130: WIKA Alexander Wiegand SE & Co. KG | C130: Alexander-Wiegand-Straße | D130: 63911 Klingenberg | G130: +49 9372 132-0 | H130: +49 9372 132-406 | I130: info@wika.de | J130: www.wika.de
A131: Nigeria | B131: WIKA Alexander Wiegand SE & Co. KG | C131: Alexander-Wiegand-Straße | D131: 63911 Klingenberg | G131: +49 9372 132-0 | H131: +49 9372 132-406 | I131: info@wika.de | J131: www.wika.de
A132: Korea | B132: WIKA Korea Ltd. | C132: 39 Gajangsaneopseo-ro Osan-si | D132: Gyeonggi-do 447-210 | G132: +82 2 869 05 05 | H132: +82 2 869 05 25 | I132: info.kr@wika.com | J132: www.wika.co.kr
A133: Northern Ireland | B133: WIKA Instruments Limited | C133: 4 Gatton Park Business Centre | D133: Wells Place Merstham | E133: Redhill RH1 3LG | G133: +44 0 1737 644 008 | H133: +44 0 1737 644 403 | I133: info@wika.co.uk | J133: www.wika.co.uk
A134: Norway | B134: Ax Flow-Norsk Pumpe & Gregersen AS | C134: Lilleakerveien 10 | D134: P.O. Box 98 | E134: 0216 Oslo | G134: +47 22 7367-00 | H134: +47 22 7367-86 | I134: arne.vagn.petersen@axflow.no
A135: Pakistan | B135: WIKA Alexander Wiegand SE & Co. KG | C135: Alexander-Wiegand-Straße | D135: 63911 Klingenberg | G135: +49 9372 132-0 | H135: +49 9372 132-406 | I135: info@wika.de | J135: www.wika.de
A136: Palau | B136: WIKA Alexander Wiegand SE & Co. KG | C136: Alexander-Wiegand-Straße | D136: 63911 Klingenberg | G136: +49 9372 132-0 | H136: +49 9372 132-406 | I136: info@wika.de | J136: www.wika.de
A137: Palestinian State | B137: WIKA Alexander Wiegand SE & Co. KG | C137: Alexander-Wiegand-Straße | D137: 63911 Klingenberg | G137: +49 9372 132-0 | H137: +49 9372 132-406 | I137: info@wika.de | J137: www.wika.de
A138: Panama | B138: Accesorios Industriales | C138: Apartado 6-1795 | D138: El Dorado, Panama City | G138: +507 230 1444 | H138: +507 230 1413 | I138: accindsa@pty.com
A139: Papua New Guinea | B139: WIKA Alexander Wiegand SE & Co. KG | C139: Alexander-Wiegand-Straße | D139: 63911 Klingenberg | G139: +49 9372 132-0 | H139: +49 9372 132-406 | I139: info@wika.de | J139: www.wika.de
A140: Paraguay | B140: WIKA Argentina S.A. | C140: Gral. Lavalle 3568 | D140: (B1603AUH) Villa Martelli | E140: Buenos Aires | G140: +54 11 4730-1800 | H140: +54 11 4761-0050 | I140: info@wika.com.ar | J140: www.wika.com.ar
A141: Peru | B141: Logindustrias S.R.L. | C141: Marques de Torre Tagle 357 | D141: Pisos 6 y 7 | E141: Miraflores, Lima 18 | G141: +51 1 4442389 | H141: +51 1 4463914 | I141: logindus@terra.com.pe
A142: Philippines | B142: WIKA Instruments Philippines, Inc. | C142: Unit 102 Skyway Twin Towers | D142: 351 Capt. Henry Javier St. | E142: Bgy. Oranbo, Pasig City 1600 | F142: Philippines | G142: +63 2 234-1270 | H142: +63 2 695-9043 | I142: info@wika.ph | J142: www.wika.com.ph
A143: Poland | B143: WIKA Polska spółka z ograniczoną odpowiedzialnością sp. k. | C143: ul. Łęgska 29/35 | D143: 87-800 Włocławek | G143: +48 54 23-01-100 | H143: +48 54 23-01-101 | I143: info@wikapolska.pl | J143: www.wikapolska.pl
A144: Portugal | B144: Instrumentos WIKA, S.A.U. | C144: C/Josep Carner, 11-17 | D144: 08205 Sabadell (Barcelona) | G144: +34 933 938 630 | H144: +34 933 938 666 | I144: info@wika.es | J144: www.wika.es
A145: Puerto Rico | B145: Herpla Engineering Corp. | C145: Calle del Parque 865 | D145: Santurce, PR 00907 | G145: +1 787 72795-00 | H145: +1 787 72795-10 | I145: bobby.herrera@herpla.com
A146: Romania | B146: WIKA Instruments Romania S.R.L. | C146: 050897 Bucuresti | D146: Calea Rahovei Nr. 266-268 | E146: Corp 61, Etaj 1 | G146: +40 21 404 83 27 | H146: +40 21 456 31 37 | I146: info@wika.ro | J146: www.wika.ro
A147: Russian Federation | B147: ZAO WIKA MERA | C147: Wjatskaya Str. 27, Building 17 | D147: Office 205/206 | E147: 127015 Moscow | G147: +7 495 648 01 80 | H147: +7 495 648 01 81 | I147: info@wika.ru | J147: www.wika.ru
A148: Rwanda | B148: WIKA Instruments (Pty.) Ltd. | C148: P.O. Box 75225 | D148: Gardenview 2047 | F148: South Africa | G148: +27 11 621 00 00 | H148: +27 11 621 00 59 | I148: sales@wika.co.za | J148: www.wika.co.za
A149: Samoa | B149: WIKA Alexander Wiegand SE & Co. KG | C149: Alexander-Wiegand-Straße | D149: 63911 Klingenberg | G149: +49 9372 132-0 | H149: +49 9372 132-406 | I149: info@wika.de | J149: www.wika.de
A150: San Marino | B150: WIKA Alexander Wiegand SE & Co. KG | C150: Alexander-Wiegand-Straße | D150: 63911 Klingenberg | G150: +49 9372 132-0 | H150: +49 9372 132-406 | I150: info@wika.de | J150: www.wika.de
A151: Sao Tome & Principe | B151: WIKA Alexander Wiegand SE & Co. KG | C151: Alexander-Wiegand-Straße | D151: 63911 Klingenberg | G151: +49 9372 132-0 | H151: +49 9372 132-406 | I151: info@wika.de | J151: www.wika.de
A152: Saudi Arabia | B152: WIKA Middle East FZE | C152: Warehouse No. RB08JB02 | D152: P.O. Box 17492 | E152: Jebel Ali, Dubai | G152: +971 4 8839-090 | H152: +971 4 8839-198 | I152: info@wika.ae | J152: www.wika.ae
A153: Scotland | B153: WIKA Instruments Limited | C153: 4 Gatton Park Business Centre | D153: Wells Place Merstham | E153: Redhill RH1 3LG | G153: +44 0 1737 644 008 | H153: +44 0 1737 644 403 | I153: info@wika.co.uk | J153: www.wika.co.uk
A154: Senegal | B154: WIKA Alexander Wiegand SE & Co. KG | C154: Alexander-Wiegand-Straße | D154: 63911 Klingenberg | G154: +49 9372 132-0 | H154: +49 9372 132-406 | I154: info@wika.de | J154: www.wika.de
A155: Serbia | B155: WIKA Merna Tehnika d.o.o. | C155: Sime Solaje 15 | D155: 11060 Belgrade | G155: +381 11 2763 722 | H155: +381 11 753 674 | I155: info@wika.rs | J155: www.wika.rs
A156: Seychelles | B156: WIKA Alexander Wiegand SE & Co. KG | C156: Alexander-Wiegand-Straße | D156: 63911 Klingenberg | G156: +49 9372 132-0 | H156: +49 9372 132-406 | I156: info@wika.de | J156: www.wika.de
A157: Sierra Leone | B157: WIKA Alexander Wiegand SE & Co. KG | C157: Alexander-Wiegand-Straße | D157: 63911 Klingenberg | G157: +49 9372 132-0 | H157: +49 9372 132-406 | I157: info@wika.de | J157: www.wika.de
A158: Singapore | B158: WIKA Instrumentation PTE. LTD. | C158: 13 Kian Teck Crescent | D158: 628878 Singapore | F158: Singapore | G158: +65 6844 5506 | H158: +65 6844 5507 | I158: info@wika.com.sg | J158: www.wika.com.sg
A159: Slovakia | B159: WIKA Representative Office | C159: Hlavna 240 | D159: 94638 Rdvan nad Dunajom | G159: +421 35 7782215 | H159: +421 35 7782215 | I159: rainer.arlt@wika.com
A160: Slovenia | B160: Materm d.o.o. | C160: Morje 159 b | D160: 2313 Fram | G160: +386 2 6089-014 | H160: +386 2 6089-018 | I160: m.zgalin@siol.net
A161: Solomon Islands | B161: WIKA Alexander Wiegand SE & Co. KG | C161: Alexander-Wiegand-Straße | D161: 63911 Klingenberg | G161: +49 9372 132-0 | H161: +49 9372 132-406 | I161: info@wika.de | J161: www.wika.de
A162: Somalia | B162: WIKA Alexander Wiegand SE & Co. KG | C162: Alexander-Wiegand-Straße | D162: 63911 Klingenberg | G162: +49 9372 132-0 | H162: +49 9372 132-406 | I162: info@wika.de | J162: www.wika.de
A163: South Africa | B163: WIKA Instruments (Pty.) Ltd. | C163: P.O. Box 75225 | D163: Gardenview 2047 | G163: +27 11 621 00 00 | H163: +27 11 621 00 59 | I163: sales@wika.co.za | J163: www.wika.co.za
A164: South Korea | B164: WIKA Korea Ltd. | C164: 39 Gajangsaneopseo-ro Osan-si | D164: Gyeonggi-do 447-210 | G164: +82 2 869 05 05 | H164: +82 2 869 05 25 | I164: info.kr@wika.com | J164: www.wika.co.kr
A165: Spain | B165: Instrumentos WIKA, S.A.U. | C165: C/Josep Carner, 11-17 | D165: 08205 Sabadell (Barcelona) | G165: +34 933 938 630 | H165: +34 933 938 666 | I165: info@wika.es | J165: www.wika.es
A166: Sri Lanka | B166: WIKA Alexander Wiegand SE & Co. KG | C166: Alexander-Wiegand-Straße | D166: 63911 Klingenberg | G166: +49 9372 132-0 | H166: +49 9372 132-406 | I166: info@wika.de | J166: www.wika.de
A167: St. Kitts & Nevis | B167: WIKA Alexander Wiegand SE & Co. KG | C167: Alexander-Wiegand-Straße | D167: 63911 Klingenberg | G167: +49 9372 132-0 | H167: +49 9372 132-406 | I167: info@wika.de | J167: www.wika.de
A168: St. Lucia | B168: WIKA Alexander Wiegand SE & Co. KG | C168: Alexander-Wiegand-Straße | D168: 63911 Klingenberg | G168: +49 9372 132-0 | H168: +49 9372 132-406 | I168: info@wika.de | J168: www.wika.de
A169: St. Vincent & The Grenadines | B169: WIKA Alexander Wiegand SE & Co. KG | C169: Alexander-Wiegand-Straße | D169: 63911 Klingenberg | G169: +49 9372 132-0 | H169: +49 9372 132-406 | I169: info@wika.de | J169: www.wika.de
A170: Sudan | B170: WIKA Alexander Wiegand SE & Co. KG | C170: Alexander-Wiegand-Straße | D170: 63911 Klingenberg | G170: +49 9372 132-0 | H170: +49 9372 132-406 | I170: info@wika.de | J170: www.wika.de
A171: Suriname | B171: WIKA Alexander Wiegand SE & Co. KG | C171: Alexander-Wiegand-Straße | D171: 63911 Klingenberg | G171: +49 9372 132-0 | H171: +49 9372 132-406 | I171: info@wika.de | J171: www.wika.de
A172: Swaziland | B172: WIKA Alexander Wiegand SE & Co. KG | C172: Alexander-Wiegand-Straße | D172: 63911 Klingenberg | G172: +49 9372 132-0 | H172: +49 9372 132-406 | I172: info@wika.de | J172: www.wika.de
A173: Sweden | B173: AB Svenska Industri Instrument | C173: Exportgatan 38D | D173: Box 8923 | E173: 40273 Göteborg | G173: +46 31 74256-00 | H173: +46 31 74256-01 | I173: info@sini.se | J173: www.sini.se
A174: Switzerland | B174: MANOMETER AG | C174: Industriestrasse 11 | D174: 6285 Hitzkirch | G174: +41 41 919 72 72 | H174: +41 41 919 72 73 | I174: info@manometer.ch | J174: www.manometer.ch
A175: Syrian Arab Republic | B175: WIKA Near East Ltd. | C175: Villa No. 6, Mohamed Fahmy | D175: Elmohdar St. - of Eltayaran St. | E175: 1st District | F175: Nasr City, Cairo, Egypt | G175: +20 2 240 13130 | H175: +20 2 240 13113 | I175: info@wika.com.eg | J175: www.wika.com.eg
A176: Taiwan | B176: WIKA Instrumentation Taiwan Ltd. | C176: No. 26, Alley 53, Lane 118 | D176: Sec. Shuang-Lien 2, Min-Tsu Road | E176: Pinjen, Taoyuan | G176: +886 3 420 6052 | H176: +886 3 490 0080 | I176: info@wika.com.tw | J176: www.wika.com.tw
A177: Tajikistan | B177: WIKA Alexander Wiegand SE & Co. KG | C177: Alexander-Wiegand-Straße | D177: 63911 Klingenberg | G177: +49 9372 132-0 | H177: +49 9372 132-406 | I177: info@wika.de | J177: www.wika.de
A178: Tanzania | B178: WIKA Alexander Wiegand SE & Co. KG | C178: Alexander-Wiegand-Straße | D178: 63911 Klingenberg | G178: +49 9372 132-0 | H178: +49 9372 132-406 | I178: info@wika.de | J178: www.wika.de
A179: Thailand | B179: WIKA Instrumentation Corporation (Thailand) Co., Ltd. | C179: 850/7 Ladkrabang Road, Ladkrabang | D179: Bangkok 10520 | G179: +66 2 32668-76 | H179: +66 2 32668-74 | I179: info@wika.co.th | J179: www.wika.co.th
A180: Togo | B180: WIKA Alexander Wiegand SE & Co. KG | C180: Alexander-Wiegand-Straße | D180: 63911 Klingenberg | G180: +49 9372 132-0 | H180: +49 9372 132-406 | I180: info@wika.de | J180: www.wika.de
A181: Tonga | B181: WIKA Alexander Wiegand SE & Co. KG | C181: Alexander-Wiegand-Straße | D181: 63911 Klingenberg | G181: +49 9372 132-0 | H181: +49 9372 132-406 | I181: info@wika.de | J181: www.wika.de
A182: Trinidad and Tobago | B182: Trinidad Valve & Fitting | C182: Phoenix Park Road West | D182: Savanetta, Point Lisas | E182: P.O. Box # 10 California | F182: Trinidad W.I. | G182: +868 652 4889 | H182: +868 652 2651 | I182: ravi.suryadevara@trinvalco.com | J182: www.trinvalco.com
A183: Tunisia | B183: WIKA Instruments s.a.r.l. | C183: Parc d‘Affaires des Bellevues | D183: 8 rue Rosa Luxembourg | E183: 95610 Eragny-sur-Oise | F183: France | G183: +33 1 343084-84 | H183: +33 1 343084-94 | I183: info@wika.fr | J183: www.wika.fr
A184: Turkey | B184: WIKA Instruments Istanbul | C184: Basinc ve Sicaklik Ölcme Cihazlari | D184: Ith. Ihr. ve Tic. Ltd. Sti. | E184: Bayraktar Bulvarı No: 17 | F184: 34775 Yukari Dudullu - Istanbul | G184: +90 216 4159066 | H184: +90 216 4159097 | I184: info@wika.com.tr | J184: www.wika.com.tr
A185: Turkmenistan | B185: WIKA Alexander Wiegand SE & Co. KG | C185: Alexander-Wiegand-Straße | D185: 63911 Klingenberg | G185: +49 9372 132-0 | H185: +49 9372 132-406 | I185: info@wika.de | J185: www.wika.de
A186: Tuvalu | B186: WIKA Alexander Wiegand SE & Co. KG | C186: Alexander-Wiegand-Straße | D186: 63911 Klingenberg | G186: +49 9372 132-0 | H186: +49 9372 132-406 | I186: info@wika.de | J186: www.wika.de
A187: Uganda | B187: WIKA Alexander Wiegand SE & Co. KG | C187: Alexander-Wiegand-Straße | D187: 63911 Klingenberg | G187: +49 9372 132-0 | H187: +49 9372 132-406 | I187: info@wika.de | J187: www.wika.de
A188: Ukraine | B188: TOV WIKA Prylad | C188: M. Raskovoy Str. 11, A | D188: PO200 | E188: 02660 Kyiv | G188: +38 044 496 83 80 | H188: +38 044 496 83 80 | I188: info@wika.ua | J188: www.wika.ua
A189: United Arab Emirates | B189: WIKA Middle East FZE | C189: Warehouse No. RB08JB02 | D189: P.O. Box 17492 | E189: Jebel Ali, Dubai | G189: +971 4 883 90 90 | H189: +971 4 883 91 98 | I189: info@wika.ae | J189: www.wika.ae
A190: United Kingdom | B190: WIKA Instruments Limited | C190: 4 Gatton Park Business Centre | D190: Wells Place Merstham | E190: Redhill RH1 3LG | G190: +44 0 1737 644 008 | H190: +44 0 1737 644 403 | I190: info@wika.co.uk | J190: www.wika.co.uk
A191: United States | B191: WIKA USA | C191: 229 Beltway Green Blvd. | D191: Pasadena, TX 77503 | G191: +1 713 475 0022 | H191: +1 713 475 0011 | I191: info@wikahouston.com | J191: www.wika.us
A192: Uruguay | B192: WIKA Argentina S.A. | C192: Gral. Lavalle 3568 | D192: (B1603AUH) Villa Martelli | E192: Buenos Aires | G192: +54 11 4730 1800 | H192: +54 11 4761 0050 | I192: info@wika.com.ar | J192: www.wika.com.ar
A193: Uzbekistan | B193: WIKA Alexander Wiegand SE & Co. KG | C193: Alexander-Wiegand-Straße | D193: 63911 Klingenberg | G193: +49 9372 132-0 | H193: +49 9372 132-406 | I193: info@wika.de | J193: www.wika.de
A194: Vanuatu | B194: WIKA Alexander Wiegand SE & Co. KG | C194: Alexander-Wiegand-Straße | D194: 63911 Klingenberg | G194: +49 9372 132-0 | H194: +49 9372 132-406 | I194: info@wika.de | J194: www.wika.de
A195: Vatican City (Holy See) | B195: WIKA Italia Srl & C. sas | C195: Via Gugliemo Marconi 8 | D195: 20020 Arese (Milano) | G195: +39 02 93 86 11 | H195: +39 02 93 86 174 | I195: info@wika.it | J195: www.wika.it
A196: Venezuela | B196: MK & Ambiente, C.A. | C196: P.O. Box 14467 | D196: Caracas 1011-A | G196: +58 212 576-3320 | H196: +58 212 576-1842 | I196: info@mk-ambiente.com | J196: www.mk-ambiente.com
A197: Vietnam | B197: WIKA Instrumentation Pte.Ltd. | C197: 13 Kian Teck Crescent | D197: 628878 Singapore | G197: +65 6844 5506 | H197: +65 6844 5507 | I197: info@wika.com.sg | J197: www.wika.com.sg
A198: Yemen | B198: WIKA Middle East FZE | C198: Warehouse No. RB08JB02 | D198: P.O. Box 17492 | E198: Jebel Ali, Dubai | G198: +971 4 8839-090 | H198: +971 4 8839-198 | I198: info@wika.ae | J198: www.wika.ae
A199: Zaire | B199: WIKA Alexander Wiegand SE & Co. KG | C199: Alexander-Wiegand-Straße | D199: 63911 Klingenberg | G199: +49 9372 132-0 | H199: +49 9372 132-406 | I199: info@wika.de | J199: www.wika.de
A200: Zambia | B200: WIKA Instruments (Pty.) Ltd. | C200: P.O. Box 75225 | D200: Gardenview 2047 | F200: South Africa | G200: +27 11 621 00 00 | H200: +27 11 621 00 59 | I200: sales@wika.co.za | J200: www.wika.co.za
... 1 more rows

Sheet Disclaimer
B2: Thermowell Calculation Program ASME_PTC_19_3_TW_2016_v2_7
B4: Disclaimer: WIKA has made every reasonable attempt to validate the calculation procedure contained in this spread sheet, however, responsibility for validation rests solely with the user. This WIKA ASME PTC 19.3 TW - 2016 spread sheet copyright © 2018 (compatible with Excel 2007/2010) is intended to assist the experienced designer of thermowells and should not be considered as a replacement for professional engineering.The end user is responsible to assure that the calculation method is compatible to the process conditions. For further information see Operation Instruction.
E6: ="" & INDEX(Departments_,country,2) -> WIKA Alexander Wiegand SE & Co. KG
E8: ="" & INDEX(Departments_,country,3) -> Alexander-Wiegand-Straße
E9: ="" & INDEX(Departments_,country,4) -> 63911 Klingenberg
E10: ="" & INDEX(Departments_,country,5) -> 
E11: ="" & INDEX(Departments_,country,6) -> 
E12: ="phone: " & INDEX(Departments_,country,7) -> phone: +49 9372 132-0
E13: ="fax: " & INDEX(Departments_,country,8) -> fax: +49 9372 132-406
E14: ="email: " & INDEX(Departments_,country,9) -> email: info@wika.de
E15: ="web: " & INDEX(Departments_,country,10) -> web: www.wika.de
B17: Select your country
B19: 65
B24: © 2018 - WIKA Alexander Wiegand SE & Co. KG

Sheet Layout
B2: Thermowell Calculation Program ASME_PTC_19_3_TW_2016_v2_7
B3: Customer: | D3: Name of Customer | S3: Name: | U3: Name
B6: Project: | D6: Name of Project | S6: Date: | U6: Date | AC6: ="" & INDEX(Departments_,country,2) -> WIKA Alexander Wiegand SE & Co. KG
AC8: ="" & INDEX(Departments_,country,3) -> Alexander-Wiegand-Straße
B9: Ref.-No.: | D9: Reference | Y9: rmax= | Z9: 0.8 | AC9: ="" & INDEX(Departments_,country,4) -> 63911 Klingenberg
AC10: ="" & INDEX(Departments_,country,5) -> 
AC11: ="" & INDEX(Departments_,country,6) -> 
Y12: FMx= | Z12: 1000 | AC12: ="phone: " & INDEX(Departments_,country,7) -> phone: +49 9372 132-0
AC13: ="fax: " & INDEX(Departments_,country,8) -> fax: +49 9372 132-406
A14: 1 | B14: 2 | C14: 3 | D14: 4 | E14: 5 | F14: 6 | G14: 7 | H14: 8 | I14: 9 | J14: 10 | K14: 11 | L14: 12 | M14: 13 | N14: 14 | O14: 15 | P14: 16 | Q14: 17 | R14: 18 | S14: 19 | T14: 20 | U14: 21 | V14: 22 | W14: 23 | X14: 24 | Y14: 25 | Z14: 26 | AA14: 27 | AB14: 28 | AC14: 29 | AD14: 30 | AE14: 31 | AF14: 32 | AG14: 33 | AH14: 34
B15: FALSE | C15: Process data | F15: Process data | M15: Thermowell data | AA15: Calculation result | AI15: Detail results
C16: Display detail | AI16: Strouhal number | AJ16: Strouhal frequency | AK16: Install. frequency | AL16: max. pressure Pc, Pt | AM16: Scruton number | AN16: Reynolds number
B17: Selection | C17: TAG-No | D17: Temperature | E17: Pressure | F17: =IF(OR(F21="kg/h",F21="lb/h"),"Mass flow rate","Max. velocity") -> Max. velocity | G17: =IF(OR(G21="ft3/lb",G21="in3/lb"),"Spec. volume","Med. density") -> Med. density | H17: Inner diameter | I17: =IF(OR(I21="cP",I21="mPa s"),"Dyn. viscosity","Kin. viscosity") -> Dyn. viscosity | J17: Shielded length | K17: usable nozzle length for support collar | L17: nozzle inner diameter | M17: WIKA TW Type | N17: TW sketch | O17: welded ? | P17: Insertion length | Q17: new insertion length | R17: reduced length | S17: Stepped length | T17: Step radius at B | U17: Root radius at A | V17: Bore diameter | W17: Root diameter | X17: Tip diameter | Y17: Tip thickness | Z17: TW material | AA17: Safety fatigue | AB17: Safety bending | AC17: Safety pressure | AD17: Ratio limit fw/fnc | AE17: Frequency ratio | AF17: Result | AG17: Optimized length | AH17: Note code
B19: All | C19: WIKA description | D19: T | E19: P | F19: =IF(OR(F21="kg/h",F21="lb/h"),"flr","v") -> v | G19: =IF(OR(G21="ft3/lb",G21="in3/lb"),"vs","rho") -> rho | H19: Di | I19: =IF(OR(I21="cP",I21="mPa s"),"my","ny") -> my | J19: Sl | K19: UNL | L19: NID | M19: / | N19: / | O19: / | P19: U | Q19: Unew | R19: Ured | S19: US | T19: RS | U19: RQ | V19: B | W19: Q | X19: V | Y19: Tt | Z19: mat | AA19: dyn | AB19: stat | AC19: Sp | AD19: rmax_ | AE19: r | AF19: Eval. | AG19: Uopt | AH19: / | AI19: Ns | AJ19: fs | AK19: fnc | AL19: Pmax | AM19: Nsc | AN19: Re
C20: ASME description | J20: Lo | K20: / | L20: / | P20: L | Q20: / | R20: / | S20: Ls | T20: rB | U20: rA | V20: db | W20: A | X20: B | AG20: Lopt
B21: TRUE | C21: Chooce units ---> | D21: °C | E21: barg | F21: m/s | G21: kg/m3 | H21: =$P$21 -> mm | I21: mPa s | J21: =$P$21 -> mm | K21: mm | L21: mm | M21: / | N21: / | O21: / | P21: mm | Q21: mm | R21: mm | S21: =$P$21 -> mm | T21: mm | U21: mm | V21: mm | W21: mm | X21: mm | Y21: mm | Z21: name | AA21: x | AB21: x | AC21: x | AD21: / | AE21: / | AF21: / | AG21: =$P$21 -> mm | AH21: / | AI21: / | AJ21: 1/s | AK21: 1/s | AL21: =E21 -> barg | AM21: / | AN21: /
B22: TRUE | C22: sample | D22: 343 | E22: 9.80665 | F22: 8.01 | G22: 11.46 | I22: 0.003 | M22: TW30 | N22: 3d | O22: nw | P22: 500 | S22: 90 | V22: 6.6 | W22: 30 | X22: 25 | Y22: 5 | Z22: 316L | AA22: 31.07726825 | AB22: 151.7349324 | AC22: 33.80942555 | AD22: 0.8 | AE22: 0.8387714649 | AF22: û | AG22: 460 | AH22: Ri | AI22: 0.22 | AJ22: 70.488 | AK22: 84.03719362 | AL22: 331.5572031 | AM22: 3.204589858 | AN22: 764955
B23: TRUE | C23: sample | D23: 160 | E23: 9.80665 | F23: 8.078 | G23: 680.85 | M23: TW20 | N23: 4b | O23: aw | P23: 255 | V23: 6.6 | W23: 30 | X23: 14 | Y23: 5 | Z23: 316L | AA23: 2.635840612 | AB23: 17.4872505 | AC23: 28.38720751 | AD23: 0.4 | AE23: 0.3407896931 | AF23: ü | AI23: 0.22 | AJ23: 126.94 | AK23: 372.4877911 | AL23: 278.3834085 | AM23: 0.04509450355
B24: TRUE | C24: sample | D24: 370 | E24: 3.432328 | F24: 90.099 | G24: 654.57 | M24: TW10 | N24: 4c | O24: wm | P24: 84 | V24: 6.6 | W24: 30 | X24: 18 | Y24: 7 | Z24: 316L | AA24: 0.3440005722 | AB24: 0.9481071095 | AC24: 79.99794563 | AD24: 0.4 | AE24: 0.426546846 | AF24: û | AG24: 75 | AH24: RFB | AI24: 0.22 | AJ24: 1101.21 | AK24: 2581.685952 | AL24: 274.5791887 | AM24: 0.05220006387
B25: TRUE | C25: sample | D25: 370 | E25: 3.432328 | F25: 45.05 | G25: 654.57 | M25: TW10 | N25: 4c | O25: wm | P25: 115 | V25: 6.6 | W25: 30 | X25: 18 | Y25: 7 | Z25: 316L | AA25: 0.7973310674 | AB25: 2.023348009 | AC25: 79.99794563 | AD25: 0.4 | AE25: 0.3665187756 | AF25: û | AH25: F | AI25: 0.22 | AJ25: 550.6111111 | AK25: 1502.272592 | AL25: 274.5791887 | AM25: 0.05220006387
B26: TRUE | C26: sample | D26: 465 | E26: 167.6937 | F26: 8.493 | G26: 510.68 | M26: TW10 | N26: 4c | O26: wm | P26: 255 | V26: 6.6 | W26: 30 | X26: 16 | Y26: 5 | Z26: 316L | AA26: 3.156188556 | AB26: 14.35815002 | AC26: 1.39982865 | AD26: 0.4 | AE26: 0.3371379968 | AF26: û | AH26: T | AI26: 0.22 | AJ26: 116.77875 | AK26: 346.3826418 | AL26: 234.7424457 | AM26: 0.06414748899
B27: TRUE | C27: sample | D27: 370 | E27: 3.432328 | F27: 66.46 | G27: 0.1 | M27: TW10 | N27: 4c | O27: wm | P27: 110 | V27: 6.6 | W27: 30 | X27: 18 | Y27: 7 | Z27: 316L | AA27: 1724.470701 | AB27: 3043.65502 | AC27: 79.99794563 | AD27: 0.8 | AE27: 0.479194639 | AF27: û | AG27: 130 | AH27: Di | AI27: 0.22 | AJ27: 812.2888889 | AK27: 1695.112639 | AL27: 274.5791887 | AM27: 341.6859581
B28: TRUE | C28: sample | D28: 370 | E28: 300 | F28: 66.46 | G28: 0.1 | M28: TW10 | N28: 4c | O28: wm | P28: 110 | V28: 6.6 | W28: 30 | X28: 18 | Y28: 7 | Z28: 316L | AA28: 1724.470701 | AB28: 39.16312266 | AC28: 0.9152639624 | AD28: 0.8 | AE28: 0.479194639 | AF28: û | AG28: 130 | AH28: DPi | AI28: 0.22 | AJ28: 812.2888889 | AK28: 1695.112639 | AL28: 274.5791887 | AM28: 341.6859581
B29: TRUE | C29: sample | D29: 315 | E29: 3.432328 | F29: 0.973 | G29: 650.91 | M29: TW10 | N29: 4c | O29: wm | P29: 230 | V29: 6.6 | W29: 30 | X29: 14 | Y29: 5 | Z29: 316L | AA29: 582.545753 | AB29: 1212.861294 | AC29: 67.51288025 | AD29: 0.4 | AE29: 0.03416616761 | AF29: ü | AI29: 0.22 | AJ29: 15.29 | AK29: 447.5187318 | AL29: 231.7263492 | AM29: 0.04716872186
B30: TRUE | C30: sample | D30: 310 | E30: 157.8871 | F30: 12.048 | G30: 636.26 | M30: TW10 | N30: 4c | O30: wm | P30: 249 | V30: 6.6 | W30: 30 | X30: 16 | Y30: 5 | Z30: 1.4571 | AA30: 2.340045434 | AB30: 8.208475808 | AC30: 1.990019342 | AD30: 0.4 | AE30: 0.4450928059 | AF30: û | AG30: 220 | AH30: R | AI30: 0.22 | AJ30: 165.66 | AK30: 372.1920413 | AL30: 314.1983829 | AM30: 0.05148656159
B31: FALSE
B32: FALSE
B33: FALSE
B34: FALSE
B35: FALSE
B36: FALSE
B37: FALSE
B38: FALSE
B39: FALSE
B40: FALSE
B41: FALSE
B42: FALSE
B43: FALSE
B44: FALSE
B45: FALSE
B46: FALSE
B47: FALSE
B48: FALSE
B49: FALSE
B50: FALSE
B51: FALSE
B52: FALSE
B53: FALSE
B54: FALSE
B55: FALSE
B56: FALSE
B57: FALSE
B58: FALSE
B59: FALSE
B60: FALSE
B61: FALSE
B62: FALSE
B63: FALSE
B64: FALSE
B65: FALSE
B66: FALSE
B67: FALSE
B68: FALSE
B69: FALSE
B70: FALSE
B71: FALSE
B72: FALSE
B73: FALSE
B74: FALSE
B75: FALSE
B76: FALSE
B77: FALSE
B78: FALSE
B79: FALSE
B80: FALSE
B81: FALSE
B82: FALSE
B83: FALSE
B84: FALSE
B85: FALSE
B86: FALSE
B87: FALSE
B88: FALSE
B89: FALSE
B90: FALSE
B91: FALSE
B92: FALSE
B93: FALSE
B94: FALSE
B95: FALSE
B96: FALSE
B97: FALSE
B98: FALSE
B99: FALSE
B100: FALSE
B101: FALSE
B102: FALSE
B103: FALSE
B104: FALSE
B105: FALSE
B106: FALSE
B107: FALSE
B108: FALSE
B109: FALSE
B110: FALSE
B111: FALSE
B112: FALSE
B113: FALSE
B114: FALSE
B115: FALSE
B116: FALSE
B117: FALSE
B118: FALSE
B119: FALSE
B120: FALSE
B121: FALSE
B122: FALSE
B123: FALSE
B124: FALSE
B125: FALSE
B126: FALSE
B127: FALSE
B128: FALSE
B129: FALSE
B130: FALSE
B131: FALSE
B132: FALSE
B133: FALSE
B134: FALSE
B135: FALSE
B136: FALSE
B137: FALSE
B138: FALSE
B139: FALSE
B140: FALSE
B141: FALSE
B142: FALSE
B143: FALSE
B144: FALSE
B145: FALSE
B146: FALSE
B147: FALSE
B148: FALSE
B149: FALSE
B150: FALSE
B151: FALSE
B152: FALSE
B153: FALSE
B154: FALSE
B155: FALSE
B156: FALSE
B157: FALSE
B158: FALSE
B159: FALSE
B160: FALSE
B161: FALSE
B162: FALSE
B163: FALSE
B164: FALSE
B165: FALSE
B166: FALSE
B167: FALSE
B168: FALSE
B169: FALSE
B170: FALSE
B171: FALSE
B172: FALSE
B173: FALSE
B174: FALSE
B175: FALSE
B176: FALSE
B177: FALSE
B178: FALSE
B179: FALSE
B180: FALSE
B181: FALSE
B182: FALSE
B183: FALSE
B184: FALSE
B185: FALSE
B186: FALSE
B187: FALSE
B188: FALSE
B189: FALSE
B190: FALSE
B191: FALSE
B192: FALSE
B193: FALSE
B194: FALSE
B195: FALSE
B196: FALSE
B197: FALSE
B198: FALSE
B199: FALSE
B200: FALSE
B201: FALSE
B202: FALSE
B203: FALSE
B204: FALSE
B205: FALSE
... 316 more rows

Sheet Print_Out
B2: ="" & INDEX(Departments_,country,2) -> WIKA Alexander Wiegand SE & Co. KG
C6: Customer: | G6: Name of Customer | S6: Name: | W6: Name
AI7: ="" & INDEX(Departments_,country,2) -> WIKA Alexander Wiegand SE & Co. KG
C9: Project: | G9: Name of Project | S9: Date: | W9: Date | AI9: ="" & INDEX(Departments_,country,3) -> Alexander-Wiegand-Straße
AI10: ="" & INDEX(Departments_,country,4) -> 63911 Klingenberg
AI11: ="" & INDEX(Departments_,country,5) -> 
C12: Ref. -No.: | G12: Reference | AI12: ="" & INDEX(Departments_,country,6) -> 
AI13: ="phone: " & INDEX(Departments_,country,7) -> phone: +49 9372 132-0
AI14: ="fax: " & INDEX(Departments_,country,8) -> fax: +49 9372 132-406
C15: Tag-No.: | G15: sample | S15: Calculation result: | W15: failed | AI15: ="email: " & INDEX(Departments_,country,9) -> email: info@wika.de
AI16: ="web: " & INDEX(Departments_,country,10) -> web: www.wika.de
C21: Thermowell Calculation Program v2.7 Results to ASME PTC 19.3 TW - 2016
A25: 1 | B25: 2 | C25: 3 | D25: 4 | E25: 5 | F25: 6 | G25: 7 | H25: 8 | I25: 9 | J25: 10 | K25: 11 | L25: 12 | M25: 13 | N25: 14 | O25: 15 | P25: 16 | Q25: 17 | R25: 18 | S25: 19 | T25: 20 | U25: 21 | V25: 22 | W25: 23 | X25: 24 | Y25: 25 | Z25: 26 | AA25: 27 | AB25: 28 | AC25: 29 | AD25: 30 | AE25: 31 | AF25: 32 | AG25: 33 | AH25: 34 | AI25: 35 | AJ25: 36 | AK25: 37 | AL25: 38 | AM25: 39 | AN25: 40 | AO25: 41 | AP25: 42
K26: Description WIKA / ASME | AH26: Description WIKA / ASME
C28: Result: | Z28: Process data: | AP28: 0
C30: Result | M30: Eval. | O30: failed | Z30: Temperature | AJ30: T | AL30: 310 | AP30: =IF($AP$28=1," °F"," °C") -> °C
C32: Frequency ratio | M32: r | O32: 0.4450928059 | S32: fw/fnc | Z32: Pressure | AJ32: P | AL32: 157.8871 | AP32: =IF($AP$28=1," psig"," barg") -> barg
C34: Ratio limit fw/fnc | M34: rmax_ | O34: 0.4 | Z34: Max.velocity | AJ34: v | AL34: 12.048 | AP34: =IF($AP$28=1," ft/s"," m/s") -> m/s
C36: Safety fatigue | M36: dyn | O36: 2.340045434 | S36: / | Z36: Med.density | AJ36: rho | AL36: 636.26 | AP36: =IF($AP$28=1," lb/ft3"," kg/m3") -> kg/m3
C38: Safety bending | M38: stat | O38: 8.208475808 | S38: / | Z38: =Layout!I17 -> Dyn. viscosity | AJ38: =Layout!I19 -> my | AP38: =Layout!I21 -> mPa s
C40: Safety pressure | M40: Sp | O40: 1.990019342 | S40: /
C42: Optimized length (rmax) | M42: Uopt / Lopt | O42: 220 | S42: =IF($AP$28=1," in."," mm") -> mm
C44: Note code | M44: / | O44: R
Z45: Pipe data:
Z47: Inner diameter | AJ47: Di | AP47: =IF($AP$28=1," in."," mm") -> mm
Z49: Shielded length | AJ49: SL / Lo | AP49: =IF($AP$28=1," in."," mm") -> mm
Z51: Usable nozzle length *) | AJ51: UNL / | AP51: =IF($AP$28=1," in."," mm") -> mm
Z53: Nozzle inner diameter *) | AJ53: NID / | AP53: =IF($AP$28=1," in."," mm") -> mm
B54: Thermowell sketch | Z54: *) for support collar
Z58: Thermowell data:
Z60: WIKA model | AL60: TW10 | AP60: Name
Z62: Connection | AL62: flanged
Z64: Shape | AL64: tapered | AP64: Name
Z66: Insertion length | AJ66: U / L | AL66: 249 | AP66: =IF($AP$28=1," in."," mm") -> mm
Z68: Optimized length | AJ68: Uopt / | AP68: =IF($AP$28=1," in."," mm") -> mm
Z72: Stepped length | AJ72: US / Ls | AL72: 0 | AP72: =IF($AP$28=1," in."," mm") -> mm
Z74: Step radius | AJ74: RS / rB | AL74: 0 | AP74: =IF($AP$28=1," in."," mm") -> mm
Z76: Root radius | AJ76: RQ / rA | AL76: 2 | AP76: =IF($AP$28=1," in."," mm") -> mm
Z78: Bore diameter | AJ78: B / db | AL78: 6.6 | AP78: =IF($AP$28=1," in."," mm") -> mm
Z80: Root diameter | AJ80: Q / A | AL80: 30 | AP80: =IF($AP$28=1," in."," mm") -> mm
Z82: Tip diameter | AJ82: V / B | AL82: 16 | AP82: =IF($AP$28=1," in."," mm") -> mm
Z84: Tip thickness | AJ84: Tt / Tt | AL84: 5 | AP84: =IF($AP$28=1," in."," mm") -> mm
Z88: Material data:
Z90: Grade | AJ90: mat | AL90: 1.4571 | AP90: Name
Z92: Spec. weight | AJ92: D(T) | AL92: 7.999492461 | AP92: =IF($AP$28=1," lb/in3"," kg/dm3") -> kg/dm3
Z94: Youngs modul | AJ94: E(T) | AL94: 174.8510904 | AP94: =IF($AP$28=1," ksi"," GPa") -> GPa
Z96: Factor for temp. | AJ96: FT | AL96: 0.8896988439 | AP96: /
Z98: Fatigue strength | AJ98: Sf(T) | AL98: 55.82175861 | AP98: =IF($AP$28=1," psi"," MPa") -> MPa
Z100: Max.all.stress | AJ100: 1.5S(T) | AL100: 129.0698901 | AP100: =IF($AP$28=1," psi"," MPa") -> MPa
Z102: Press. strength | AJ102: S(T) | AL102: 86.0465934 | AP102: =IF($AP$28=1," psi"," MPa") -> MPa
Z104: Fatigue class | AJ104: class | AL104: B
A108: WIKA has made every reasonable attempt to validate the calculation procedure contained in this spread sheet, however, responsibility for validation rests solely with the user. This WIKA ASME PTC 19.3 TW - 2016 spread sheet copyright © 2018 (compatible with Excel 2007/2010) is intended to assist the experienced designer of thermowells and should not be considered as a replacement for professional engineering.The end user is responsible to assure that the calculation method is compatible to the process conditions. For further information see Operation Instruction.

Sheet JPG (hidden)
C1: VBA Lösung = FormulaR1C1 kopiere K30 auf K31
B2: Bremse | C2: =WENN(ISTNV($K$32);17;$K$32)
C3: =SVERWEIS(J31;J34:K48;2;FALSCH)
C4: =IF(ISNA($C$6),17,$C$6) -> 13 | F4: 30
A5: ---> | B5: 4c | C5: =IF(ISNA($C$6),17,$C$6) -> 13 | D5: TW shape = fig.(~draft12) | F5: 31
B6: ^ | C6: =VLOOKUP(B5,B8:C22,2,FALSE) -> 13 | D6: =VLOOKUP(B5,B8:E22,3,FALSE)&" "&VLOOKUP(B5,B8:E22,4,FALSE) -> tapered flanged | F6: 32
B7: fig. | C7: No# | D7: form | E7: connection
B8: 2a | C8: 1 | D8: straight | E8: screwed | F8: 34
B9: 2b | C9: 2 | D9: straight | E9: socket
B10: 2c | C10: 3 | D10: straight | E10: flanged
B11: 2d | C11: 4 | D11: straight | E11: van Stone
B12: 2e | C12: 5 | D12: straight | E12: weld-in*
B13: 3a | C13: 6 | D13: stepped | E13: screwed
B14: 3b | C14: 7 | D14: stepped | E14: socket
B15: 3c | C15: 8 | D15: stepped | E15: flanged
B16: 3d | C16: 9 | D16: stepped | E16: van Stone
B17: 3e | C17: 10 | D17: stepped | E17: weld-in*
B18: 4a | C18: 11 | D18: tapered | E18: screwed
B19: 4b | C19: 12 | D19: tapered | E19: socket
B20: 4c | C20: 13 | D20: tapered | E20: flanged
B21: 4d | C21: 14 | D21: tapered | E21: van Stone
B22: 4e | C22: 15 | D22: tapered | E22: weld-in* | F22: 48
E23: * added

Sheet JPG_ (hidden)
B1: 2a aw straight TW15, TW50 | C1: aus Reg. Bilder mit 40prz --> PhotoEd --> MIX_zoom40prz ausschneiden mit const Rahmen in Reg JPG_ "einbetten" auf 100% lassen Rahmen/Hintergrund deakt. Gitternetz aus? 2.9 MB
B2: 2b nw straight TW20
B3: 2c wm straight TW10
B4: 2d nw straight TW30, TW31
B5: 2e aw straight TW25
B6: 3a aw stepped TW15, TW50
B7: 3b nw stepped TW20
B8: 3c wm stepped TW10
B9: 3d nw stepped TW30, TW31
B10: 3e aw stepped TW25
B11: 4a aw tapered TW15, TW50
B12: 4b nw tapered TW20
B13: 4c wm tapered TW10
B14: 4d nw tapered TW30, TW31
B15: 4e aw tapered TW25

Sheet Material_Base
C2: Thermowell Calculation Program ASME_PTC_19_3_TW_2016_v2_7
C5: Valid names for the material base
B6: 2 | C6: 3 | D6: 4 | E6: 5 | F6: 6 | G6: 7 | H6: 8 | I6: 9 | J6: 10 | K6: 11 | L6: 12 | M6: 13
B7: Index | C7: Mat | D7: others | E7: DIN/EN | F7: usual | G7: nom.Comp. | H7: UNS | I7: Prod | J7: Spec. | K7: Sa | L7: Sf | M7: dens.
B8: No | C8: Sign | D8: /equals | E8: comp. | F8: name | G8: Sec.II Div.1 | H8: No | I8: Form | J8: No | K8: Tmax °F | L8: class | M8: lb/in3
B9: 1 | C9: LF2 | E9: 1.0508 | G9: Carbon steel | H9: K03011 | I9: Forgings | J9: SA-350 | K9: 1000 | L9: A | M9: 0.284
B10: 2 | C10: A105 | E10: 1.0460 | F10: C22.8 | G10: Carbon steel | H10: K03504 | I10: Forgings | J10: SA-105 | K10: 1000 | L10: A | M10: 0.284
B11: 3 | C11: F12 | E11: 1.7335 | F11: A182 F12 | G11: 1Cr - 1/2 Mo | H11: K11562 | I11: Forgings | J11: SA-182 | K11: 1200 | L11: A | M11: 0.28
B12: 4 | C12: F11 | E12: 1.7337 | F12: A182 F11 | G12: 1 1/4 Cr - 1/2 Mo - Si | H12: K11597 | I12: Forgings | J12: SA-182 | K12: 1200 | L12: A | M12: 0.285
B13: 5 | C13: F2 | F13: A182 F2 | G13: 1/2 Cr - 1/2 Mo | H13: K12122 | I13: Forgings | J13: SA-182 | K13: 1000 | L13: A | M13: 0.28
B14: 6 | C14: F1 | E14: 1.5415 | F14: A182 F1 | G14: C - 1/2 Mo | H14: K12822 | I14: Forgings | J14: SA-182 | K14: 1000 | L14: A | M14: 0.28
B15: 7 | C15: F22 | E15: 1.7380 | F15: A182 F22 | G15: 2 1/4 Cr - 1Mo | H15: K21590 | I15: Forgings | J15: SA-182 | K15: 1200 | L15: A | M15: 0.28
B16: 8 | C16: F21 | F16: A336 F21 | G16: 3Cr - 1Mo | H16: K31545 | I16: Forgings | J16: SA-336 | K16: 1200 | L16: A | M16: 0.28
B17: 9 | C17: F5 | E17: 1.7362 | F17: A336 F5 | G17: 5Cr - 1/2 Mo | H17: K41545 | I17: Forgings | J17: SA-336 | K17: 1200 | L17: A | M17: 0.28
B18: 10 | C18: F91 | D18: F92 | E18: 1.4903 | F18: A182 F91 | G18: 9Cr - 1Mo - V | H18: K90901 | I18: Forgings | J18: SA-182 | K18: 1200 | L18: A | M18: 0.28
B19: 11 | C19: F9 | E19: 1.7386 | F19: A182 F9 | G19: 9Cr - 1Mo | H19: K90941 | I19: Forgings | J19: SA-182 | K19: 1200 | L19: A | M19: 0.28
B20: 12 | C20: 200 | E20: 2.4066 | F20: Ni 200 | G20: 99Ni | H20: N02200 | I20: Bar, rod | J20: SB-160 | K20: 600 | L20: A | M20: 0.321
B21: 13 | C21: 201 | E21: 2.4068 | F21: Ni 201 | G21: 99Ni - Low C | H21: N02201 | I21: Bar, rod | J21: SB-160 | K21: 1200 | L21: A | M21: 0.321
B22: 14 | C22: 400 | E22: 2.4360 | F22: Monel 400 | G22: 67Ni - 30Cu | H22: N04400 | I22: Bar | J22: SB-164 | K22: 900 | L22: B | M22: 0.318
B23: 15 | C23: X | E23: 2.4665 | F23: Hastelloy X | G23: 47Ni - 22Cr - 9Mo - 18Fe | H23: N06002 | I23: Rod | J23: SB-572 | K23: 1650 | L23: A | M23: 0.297
B24: 16 | C24: C22 | E24: 2.4602 | F24: Hastelloy C22 | G24: 55Ni - 21Cr - 13.5Mo | H24: N06022 | I24: Rod | J24: SB-574 | K24: 1250 | L24: A | M24: 0.314
B25: 17 | C25: C4 | E25: 2.4610 | F25: Hastelloy C4 | G25: 61Ni - 16Mo - 16Cr | H25: N06455 | I25: Rod | J25: SB-574 | K25: 800 | L25: A | M25: 0.312
B26: 18 | C26: 600 | E26: 2.4816 | F26: Inconel 600 | G26: 72Ni - 15Cr - 8Fe | H26: N06600 | I26: Bar | J26: SB-166 | K26: 1200 | L26: B | M26: 0.306
B27: 19 | C27: 601 | E27: 2.4851 | F27: Inconel 601 | G27: 60Ni - 23Cr - Fe | H27: N06601 | I27: Bar | J27: SB-166 | K27: 1650 | L27: B | M27: 0.291
B28: 20 | C28: 625 | E28: 2.4856 | F28: Inconel 625 | G28: 60Ni - 22Cr - 9Mo - 3.5Cb | H28: N06625 | I28: Bar | J28: SB-446 | K28: 1600 | L28: A | M28: 0.305
B29: 21 | C29: A20 | E29: 2.4660 | F29: Alloy 20 | G29: 35Ni - 35Fe - 20Cr - Cb | H29: N08020 | I29: Bar | J29: SB-473 | K29: 800 | L29: B | M29: 0.291
B30: 22 | C30: 800 | E30: 1.4876 | F30: Incoloy 800 | G30: 33Ni - 42Fe - 21Cr | H30: N08800 | I30: Bar | J30: SB-408 | K30: 1500 | L30: B | M30: 0.287
B31: 23 | C31: 800H | E31: 1.4958 | F31: Incoloy 800H | G31: 33Ni - 42Fe - 21Cr | H31: N08810 | I31: Bar | J31: SB-408 | K31: 1650 | L31: B | M31: 0.287
B32: 24 | C32: 800HT | E32: 1.4959 | F32: Incoloy 800HT | G32: 33Ni - 42Fe - 21Cr | H32: N08811 | I32: Bar | J32: SB-408 | K32: 1650 | L32: B | M32: 0.287
B33: 25 | C33: 825 | E33: 2.4858 | F33: Incoloy 825 | G33: 42Ni - 21.5Cr - 3Mo - 2.3Cu | H33: N08825 | I33: Bar, rod | J33: SB-425 | K33: 1000 | L33: A | M33: 0.294
B34: 26 | C34: 904L | E34: 1.4539 | F34: SS 904L | G34: 44Fe - 25Ni - 21Cr - Mo | H34: N08904 | I34: Bar, wire | J34: SB-649 | K34: 700 | L34: B | M34: 0.285
B35: 27 | C35: C276 | E35: 2.4819 | F35: Hastelloy C276 | G35: 54Ni - 16Mo - 15Cr | H35: N10276 | I35: Forgings | J35: SB-462 | K35: 1250 | L35: A | M35: 0.321
B36: 28 | C36: B2 | E36: 2.4617 | F36: Hastelloy B2 | G36: 65Ni - 28Mo - 2Fe | H36: N10665 | I36: Rod | J36: SB-335 | K36: 800 | L36: A | M36: 0.333
B37: 29 | C37: B3 | E37: 2.4602 | F37: Hastelloy B3 | G37: 65Ni - 29.5Mo - 2Fe - 2Cr | H37: N10675 | I37: Rod | J37: SB-335 | K37: 800 | L37: A | M37: 0.333
B38: 30 | C38: Ti2 | E38: 3.7035 | F38: Titanium 2 | G38: Ti | H38: R50400 | I38: Forgings | J38: SB-381 | K38: 600 | L38: A | M38: 0.163
B39: 31 | C39: Ti7 | E39: 3.7235 | F39: Titanium 7 | G39: Ti - Pd | H39: R52400 | I39: Forgings | J39: SB-381 | K39: 600 | L39: A | M39: 0.163
B40: 32 | C40: Ti12 | E40: 3.7105 | F40: Titanium 12 | G40: Ti - 0.3Mo - 0.8Ni | H40: R53400 | I40: Forgings | J40: SB-381 | K40: 600 | L40: A | M40: 0.163
B41: 33 | C41: 304 | E41: 1.4301 | F41: SS 304 | G41: 18Cr - 8Ni | H41: S30400 | I41: Bar | J41: SA-479 | K41: 1500 | L41: B | M41: 0.285
B42: 34 | C42: 304L | D42: 1.4307 | E42: 1.4306 | F42: SS 304L | G42: 18Cr - 8Ni | H42: S30403 | I42: Bar | J42: SA-479 | K42: 1200 | L42: B | M42: 0.285
B43: 35 | C43: 304H | E43: 1.4948 | F43: SS 304H | G43: 18Cr - 8Ni | H43: S30409 | I43: Bar | J43: SA-479 | K43: 1500 | L43: B | M43: 0.285
B44: 36 | C44: 309S | E44: 1.4833 | F44: SS 309S | G44: 23Cr - 12Ni | H44: S30908 | I44: Bar | J44: SA-479 | K44: 1000 | L44: B | M44: 0.289
B45: 37 | C45: 310 | E45: 1.4845 | F45: SS 310 | G45: 25Cr - 20Ni | H45: S31000 | I45: Forgings | J45: SA-182 | K45: 1500 | L45: B | M45: 0.289
B46: 38 | C46: 310LN | D46: 25222 | E46: 1.4466 | F46: SS 310LN | G46: 25Cr - 22Ni - 2Mo - N | H46: S31050 | I46: Plate | J46: SA-240 | K46: 600 | L46: B | M46: 0.289
B47: 39 | C47: F44 | D47: 254SMO | E47: 1.4529 | F47: 254 SMO | G47: 20Cr - 18Ni - 6Mo | H47: S31254 | I47: Forgings | J47: SA-182 | K47: 750 | L47: B | M47: 0.289
B48: 40 | C48: 316 | D48: 316/316L | E48: 1.4401 | F48: SS 316 | G48: 16Cr - 12Ni - 2Mo | H48: S31600 | I48: Bar | J48: SA-479 | K48: 1500 | L48: B | M48: 0.289
B49: 41 | C49: 316L | D49: 1.4435 | E49: 1.4404 | F49: SS 316L | G49: 16Cr - 12Ni - 2Mo | H49: S31603 | I49: Bar | J49: SA-479 | K49: 850 | L49: B | M49: 0.289
B50: 42 | C50: 316H | E50: 1.4436 | F50: SS 316H | G50: 16Cr - 12Ni - 2Mo | H50: S31609 | I50: Forgings | J50: SA-182 | K50: 1500 | L50: B | M50: 0.289
B51: 43 | C51: 316TI | E51: 1.4571 | F51: SS 316TI | G51: 16Cr - 12Ni - 2Mo - Ti | H51: S31635 | I51: Plate | J51: SA-240 | K51: 1500 | L51: B | M51: 0.289
B52: 44 | C52: 317 | E52: 1.4449 | F52: SS 317 | G52: 18Cr - 13Ni - 3Mo | H52: S31700 | I52: Forgings | J52: SA-182 | K52: 1500 | L52: B | M52: 0.289
B53: 45 | C53: 317L | E53: 1.4438 | F53: SS 317L | G53: 18Cr - 13Ni - 3Mo | H53: S31703 | I53: Forgings | J53: SA-182 | K53: 850 | L53: B | M53: 0.289
B54: 46 | C54: F51 | D54: 329LN | E54: 1.4462 | F54: 329LN | G54: 22Cr - 5Ni - 3Mo - N | H54: S31803 | I54: Forgings | J54: SA-182 | K54: 600 | L54: B | M54: 0.282
B55: 47 | C55: 321 | E55: 1.4541 | F55: SS 321 | G55: 18Cr - 10Ni - Ti | H55: S32100 | I55: Bar | J55: SA-479 | K55: 1500 | L55: B | M55: 0.287
B56: 48 | C56: 321H | E56: 1.4878 | F56: SS 321H | G56: 18Cr - 10Ni - Ti | H56: S32109 | I56: Bar | J56: SA-479 | K56: 1500 | L56: B | M56: 0.289
B57: 49 | C57: F53 | D57: F55 | E57: 1.4410 | F57: 2507 | G57: 25Cr - 7Ni - 4Mo - N | H57: S32750 | I57: Forgings | J57: SA-182 | K57: 600 | L57: B | M57: 0.283
B58: 50 | C58: 347 | E58: 1.4550 | F58: SS 347 | G58: 18Cr - 10Ni - Cb | H58: S34700 | I58: Bar | J58: SA-479 | K58: 1500 | L58: B | M58: 0.289
B59: 51 | C59: 347H | F59: SS 347H | G59: 18Cr - 10Ni - Cb | H59: S34709 | I59: Forgings | J59: SA-182 | K59: 1500 | L59: B | M59: 0.289
B60: 52 | C60: S410 | E60: 1.4006 | F60: SS 410 | G60: 13Cr | H60: S41000 | I60: Bar | J60: SA-479 | K60: 1000 | L60: A | M60: 0.282
B61: 53 | C61: TP446_1 | E61: 1.4749 | F61: TP446-1 | G61: 27Cr | H61: S44600 | I61: Smls. tube | J61: SA-268 | K61: 650 | L61: A | M61: 0.282
B62: 54 | C62: 446 | E62: 1.4762 | F62: 446 | G62: 26Cr - 3Ni - 3Mo | H62: S44660 | I62: Plate | J62: SA-240 | K62: 700 | L62: A | M62: 0.279
B63: 55 | C63: Free material input 1
B64: 56 | C64: Free material input 2
B65: 57 | C65: Free material input 3
B66: 58 | C66: Free material input 4

Sheet MatNo (hidden)
A1: _1.4571 | B1: =VLOOKUP(A1,MatNo,2,FALSE) -> 43 | C1: <== test it ! | H1: Indices for interpolation | M1: Index | N1: Mat | O1: others | P1: DIN/EN | Q1: usual | R1: UNS
A2: Name/No | B2: Index | H2: il = MIN(MAX(GANZZAHL( TF /50)-1;1);28) | M2: No | N2: sign | O2: /equals | P2: comp. | Q2: name | R2: No
A3: / | B3: No | H3: TFil = 100+( il -1)*50 | N3: 2 | O3: 5 | P3: 4 | Q3: 3 | R3: 1
A4: _K03011 | B4: 1 | E4: TC | F4: TF | G4: il | H4: ih | I4: TFil | J4: TFih | K4: TFfactor | M4: 1 | N4: _LF2 | O4: _ | P4: _1.0508 | Q4: _ | R4: _K03011
A5: _K03504 | B5: 2 | E5: °C | F5: °F | G5: i-1 | H5: i | I5: Ti-1 | J5: Ti | K5: factor | M5: 2 | N5: _A105 | O5: _ | P5: _1.0460 | Q5: _C22.8 | R5: _K03504
A6: _K11562 | B6: 3 | E6: 20 | F6: =9/5*E6+32 -> 68 | G6: =MIN(MAX(INT((F6-0)/50)-1,1),28) -> 1 | H6: =G6+1 -> 2 | I6: =100+(G6-1)*50 -> 100 | J6: =I6+50 -> 150 | K6: =(F6-I6)/(J6-I6) -> -0.64 | L6: RT fix | M6: 3 | N6: _F12 | O6: _ | P6: _1.7335 | Q6: _A182 F12 | R6: _K11562
A7: _K11597 | B7: 4 | E7: 40 | F7: =9/5*E7+32 -> 104 | G7: =MIN(MAX(INT((F7-0)/50)-1,1),28) -> 1 | H7: =G7+1 -> 2 | I7: =100+(G7-1)*50 -> 100 | J7: =I7+50 -> 150 | K7: =(F7-I7)/(J7-I7) -> 0.08 | L7: InterPol | M7: 4 | N7: _F11 | O7: _ | P7: _1.7337 | Q7: _A182 F11 | R7: _K11597
A8: _K12122 | B8: 5 | E8: 60 | F8: 140 | G8: 1 | H8: 2 | I8: 100 | J8: 150 | K8: 0.8 | M8: 5 | N8: _F2 | O8: _ | P8: _ | Q8: _A182 F2 | R8: _K12122
A9: _K12822 | B9: 6 | E9: 80 | F9: 176 | G9: 2 | H9: 3 | I9: 150 | J9: 200 | K9: 0.52 | M9: 6 | N9: _F1 | O9: _ | P9: _1.5415 | Q9: _A182 F1 | R9: _K12822
A10: _K21590 | B10: 7 | E10: 100 | F10: 212 | G10: 3 | H10: 4 | I10: 200 | J10: 250 | K10: 0.24 | M10: 7 | N10: _F22 | O10: _ | P10: _1.7380 | Q10: _A182 F22 | R10: _K21590
A11: _K31545 | B11: 8 | E11: 120 | F11: 248 | G11: 3 | H11: 4 | I11: 200 | J11: 250 | K11: 0.96 | M11: 8 | N11: _F21 | O11: _ | P11: _ | Q11: _A336 F21 | R11: _K31545
A12: _K41545 | B12: 9 | E12: 140 | F12: 284 | G12: 4 | H12: 5 | I12: 250 | J12: 300 | K12: 0.68 | M12: 9 | N12: _F5 | O12: _ | P12: _1.7362 | Q12: _A336 F5 | R12: _K41545
A13: _K90901 | B13: 10 | E13: 160 | F13: 320 | G13: 5 | H13: 6 | I13: 300 | J13: 350 | K13: 0.4 | M13: 10 | N13: _F91 | O13: _F92 | P13: _1.4903 | Q13: _A182 F91 | R13: _K90901
A14: _K90941 | B14: 11 | E14: 180 | F14: 356 | G14: 6 | H14: 7 | I14: 350 | J14: 400 | K14: 0.12 | M14: 11 | N14: _F9 | O14: _ | P14: _1.7386 | Q14: _A182 F9 | R14: _K90941
A15: _N02200 | B15: 12 | E15: 200 | F15: 392 | G15: 6 | H15: 7 | I15: 350 | J15: 400 | K15: 0.84 | M15: 12 | N15: _200 | O15: _ | P15: _2.4066 | Q15: _Ni 200 | R15: _N02200
A16: _N02201 | B16: 13 | E16: 220 | F16: 428 | G16: 7 | H16: 8 | I16: 400 | J16: 450 | K16: 0.56 | M16: 13 | N16: _201 | O16: _ | P16: _2.4068 | Q16: _Ni 201 | R16: _N02201
A17: _N04400 | B17: 14 | E17: 240 | F17: 464 | G17: 8 | H17: 9 | I17: 450 | J17: 500 | K17: 0.28 | M17: 14 | N17: _400 | O17: _ | P17: _2.4360 | Q17: _Monel 400 | R17: _N04400
A18: _N06002 | B18: 15 | E18: 260 | F18: 500 | G18: 9 | H18: 10 | I18: 500 | J18: 550 | K18: 0 | M18: 15 | N18: _X | O18: _ | P18: _2.4665 | Q18: _Hastelloy X | R18: _N06002
A19: _N06022 | B19: 16 | E19: 280 | F19: 536 | G19: 9 | H19: 10 | I19: 500 | J19: 550 | K19: 0.72 | M19: 16 | N19: _C22 | O19: _ | P19: _2.4602 | Q19: _Hastelloy C22 | R19: _N06022
A20: _N06455 | B20: 17 | E20: 300 | F20: 572 | G20: 10 | H20: 11 | I20: 550 | J20: 600 | K20: 0.44 | M20: 17 | N20: _C4 | O20: _ | P20: _2.4610 | Q20: _Hastelloy C4 | R20: _N06455
A21: _N06600 | B21: 18 | E21: 320 | F21: 608 | G21: 11 | H21: 12 | I21: 600 | J21: 650 | K21: 0.16 | M21: 18 | N21: _600 | O21: _ | P21: _2.4816 | Q21: _Inconel 600 | R21: _N06600
A22: _N06601 | B22: 19 | E22: 340 | F22: 644 | G22: 11 | H22: 12 | I22: 600 | J22: 650 | K22: 0.88 | M22: 19 | N22: _601 | O22: _ | P22: _2.4851 | Q22: _Inconel 601 | R22: _N06601
A23: _N06625 | B23: 20 | E23: 360 | F23: 680 | G23: 12 | H23: 13 | I23: 650 | J23: 700 | K23: 0.6 | M23: 20 | N23: _625 | O23: _ | P23: _2.4856 | Q23: _Inconel 625 | R23: _N06625
A24: _N08020 | B24: 21 | E24: 380 | F24: 716 | G24: 13 | H24: 14 | I24: 700 | J24: 750 | K24: 0.32 | M24: 21 | N24: _A20 | O24: _ | P24: _2.4660 | Q24: _Alloy 20 | R24: _N08020
A25: _N08800 | B25: 22 | E25: 400 | F25: 752 | G25: 14 | H25: 15 | I25: 750 | J25: 800 | K25: 0.04 | M25: 22 | N25: _800 | O25: _ | P25: _1.4876 | Q25: _Incoloy 800 | R25: _N08800
A26: _N08810 | B26: 23 | E26: 420 | F26: 788 | G26: 14 | H26: 15 | I26: 750 | J26: 800 | K26: 0.76 | M26: 23 | N26: _800H | O26: _ | P26: _1.4958 | Q26: _Incoloy 800H | R26: _N08810
A27: _N08811 | B27: 24 | E27: 440 | F27: 824 | G27: 15 | H27: 16 | I27: 800 | J27: 850 | K27: 0.48 | M27: 24 | N27: _800HT | O27: _ | P27: _1.4959 | Q27: _Incoloy 800HT | R27: _N08811
A28: _N08825 | B28: 25 | E28: 460 | F28: 860 | G28: 16 | H28: 17 | I28: 850 | J28: 900 | K28: 0.2 | M28: 25 | N28: _825 | O28: _ | P28: _2.4858 | Q28: _Incoloy 825 | R28: _N08825
A29: _N08904 | B29: 26 | E29: 480 | F29: 896 | G29: 16 | H29: 17 | I29: 850 | J29: 900 | K29: 0.92 | M29: 26 | N29: _904L | O29: _ | P29: _1.4539 | Q29: _SS 904L | R29: _N08904
A30: _N10276 | B30: 27 | E30: 500 | F30: 932 | G30: 17 | H30: 18 | I30: 900 | J30: 950 | K30: 0.64 | M30: 27 | N30: _C276 | O30: _ | P30: _2.4819 | Q30: _Hastelloy C276 | R30: _N10276
A31: _N10665 | B31: 28 | E31: 520 | F31: 968 | G31: 18 | H31: 19 | I31: 950 | J31: 1000 | K31: 0.36 | M31: 28 | N31: _B2 | O31: _ | P31: _2.4617 | Q31: _Hastelloy B2 | R31: _N10665
A32: _N10675 | B32: 29 | E32: 540 | F32: 1004 | G32: 19 | H32: 20 | I32: 1000 | J32: 1050 | K32: 0.08 | M32: 29 | N32: _B3 | O32: _ | P32: _2.4602 | Q32: _Hastelloy B3 | R32: _N10675
A33: _R50400 | B33: 30 | E33: 560 | F33: 1040 | G33: 19 | H33: 20 | I33: 1000 | J33: 1050 | K33: 0.8 | M33: 30 | N33: _Ti2 | O33: _ | P33: _3.7035 | Q33: _Titanium 2 | R33: _R50400
A34: _R52400 | B34: 31 | E34: 580 | F34: 1076 | G34: 20 | H34: 21 | I34: 1050 | J34: 1100 | K34: 0.52 | M34: 31 | N34: _Ti7 | O34: _ | P34: _3.7235 | Q34: _Titanium 7 | R34: _R52400
A35: _R53400 | B35: 32 | E35: 600 | F35: 1112 | G35: 21 | H35: 22 | I35: 1100 | J35: 1150 | K35: 0.24 | M35: 32 | N35: _Ti12 | O35: _ | P35: _3.7105 | Q35: _Titanium 12 | R35: _R53400
A36: _S30400 | B36: 33 | E36: 620 | F36: 1148 | G36: 21 | H36: 22 | I36: 1100 | J36: 1150 | K36: 0.96 | M36: 33 | N36: _304 | O36: _ | P36: _1.4301 | Q36: _SS 304 | R36: _S30400
A37: _S30403 | B37: 34 | E37: 640 | F37: 1184 | G37: 22 | H37: 23 | I37: 1150 | J37: 1200 | K37: 0.68 | M37: 34 | N37: _304L | O37: _1.4307 | P37: _1.4306 | Q37: _SS 304L | R37: _S30403
A38: _S30409 | B38: 35 | E38: 660 | F38: 1220 | G38: 23 | H38: 24 | I38: 1200 | J38: 1250 | K38: 0.4 | M38: 35 | N38: _304H | O38: _ | P38: _1.4948 | Q38: _SS 304H | R38: _S30409
A39: _S30908 | B39: 36 | E39: 680 | F39: 1256 | G39: 24 | H39: 25 | I39: 1250 | J39: 1300 | K39: 0.12 | M39: 36 | N39: _309S | O39: _ | P39: _1.4833 | Q39: _SS 309S | R39: _S30908
A40: _S31000 | B40: 37 | E40: 700 | F40: 1292 | G40: 24 | H40: 25 | I40: 1250 | J40: 1300 | K40: 0.84 | M40: 37 | N40: _310 | O40: _ | P40: _1.4845 | Q40: _SS 310 | R40: _S31000
A41: _S31050 | B41: 38 | E41: 720 | F41: 1328 | G41: 25 | H41: 26 | I41: 1300 | J41: 1350 | K41: 0.56 | M41: 38 | N41: _310LN | O41: _25222 | P41: _1.4466 | Q41: _SS 310LN | R41: _S31050
A42: _S31254 | B42: 39 | E42: 740 | F42: 1364 | G42: 26 | H42: 27 | I42: 1350 | J42: 1400 | K42: 0.28 | M42: 39 | N42: _F44 | O42: _254SMO | P42: _1.4529 | Q42: _254 SMO | R42: _S31254
A43: _S31600 | B43: 40 | E43: 760 | F43: 1400 | G43: 27 | H43: 28 | I43: 1400 | J43: 1450 | K43: 0 | M43: 40 | N43: _316 | O43: _316/316L | P43: _1.4401 | Q43: _SS 316 | R43: _S31600
A44: _S31603 | B44: 41 | E44: 780 | F44: 1436 | G44: 27 | H44: 28 | I44: 1400 | J44: 1450 | K44: 0.72 | M44: 41 | N44: _316L | O44: _1.4435 | P44: _1.4404 | Q44: _SS 316L | R44: _S31603
A45: _S31609 | B45: 42 | E45: 800 | F45: 1472 | G45: 28 | H45: 29 | I45: 1450 | J45: 1500 | K45: 0.44 | L45: limit | M45: 42 | N45: _316H | O45: _ | P45: _1.4436 | Q45: _SS 316H | R45: _S31609
A46: _S31635 | B46: 43 | E46: 820 | F46: 1508 | G46: 28 | H46: 29 | I46: 1450 | J46: 1500 | K46: 1.16 | L46: ExtraPol | M46: 43 | N46: _316TI | O46: _ | P46: _1.4571 | Q46: _SS 316TI | R46: _S31635
A47: _S31700 | B47: 44 | E47: 840 | F47: 1544 | G47: 28 | H47: 29 | I47: 1450 | J47: 1500 | K47: 1.88 | M47: 44 | N47: _317 | O47: _ | P47: _1.4449 | Q47: _SS 317 | R47: _S31700
A48: _S31703 | B48: 45 | E48: 860 | F48: 1580 | G48: 28 | H48: 29 | I48: 1450 | J48: 1500 | K48: 2.6 | M48: 45 | N48: _317L | O48: _ | P48: _1.4438 | Q48: _SS 317L | R48: _S31703
A49: _S31803 | B49: 46 | E49: 880 | F49: 1616 | G49: 28 | H49: 29 | I49: 1450 | J49: 1500 | K49: 3.32 | M49: 46 | N49: _F51 | O49: _329LN | P49: _1.4462 | Q49: _329LN | R49: _S31803
A50: _S32100 | B50: 47 | E50: 900 | F50: 1652 | G50: 28 | H50: 29 | I50: 1450 | J50: 1500 | K50: 4.04 | M50: 47 | N50: _321 | O50: _ | P50: _1.4541 | Q50: _SS 321 | R50: _S32100
A51: _S32109 | B51: 48 | E51: 920 | F51: 1688 | G51: 28 | H51: 29 | I51: 1450 | J51: 1500 | K51: 4.76 | M51: 48 | N51: _321H | O51: _ | P51: _1.4878 | Q51: _SS 321H | R51: _S32109
A52: _S32750 | B52: 49 | E52: 940 | F52: 1724 | G52: 28 | H52: 29 | I52: 1450 | J52: 1500 | K52: 5.48 | M52: 49 | N52: _F53 | O52: _F55 | P52: _1.4410 | Q52: _2507 | R52: _S32750
A53: _S34700 | B53: 50 | M53: 50 | N53: _347 | O53: _ | P53: _1.4550 | Q53: _SS 347 | R53: _S34700
A54: _S34709 | B54: 51 | M54: 51 | N54: _347H | O54: _ | P54: _ | Q54: _SS 347H | R54: _S34709
A55: _S41000 | B55: 52 | M55: 52 | N55: _S410 | O55: _ | P55: _1.4006 | Q55: _SS 410 | R55: _S41000
A56: _S44600 | B56: 53 | M56: 53 | N56: _TP446_1 | O56: _ | P56: _1.4749 | Q56: _TP446-1 | R56: _S44600
A57: _S44660 | B57: 54 | M57: 54 | N57: _446 | O57: _ | P57: _1.4762 | Q57: _446 | R57: _S44660
A58: _LF2 | B58: 1
A59: _A105 | B59: 2
A60: _F12 | B60: 3
A61: _F11 | B61: 4
A62: _F2 | B62: 5
A63: _F1 | B63: 6
A64: _F22 | B64: 7
A65: _F21 | B65: 8
A66: _F5 | B66: 9
A67: _F91 | B67: 10
A68: _F9 | B68: 11
A69: _200 | B69: 12
A70: _201 | B70: 13
A71: _400 | B71: 14
A72: _X | B72: 15
A73: _C22 | B73: 16
A74: _C4 | B74: 17
A75: _600 | B75: 18
A76: _601 | B76: 19
A77: _625 | B77: 20
A78: _A20 | B78: 21
A79: _800 | B79: 22
A80: _800H | B80: 23
A81: _800HT | B81: 24
A82: _825 | B82: 25
A83: _904L | B83: 26
A84: _C276 | B84: 27
A85: _B2 | B85: 28
A86: _B3 | B86: 29
A87: _Ti2 | B87: 30
A88: _Ti7 | B88: 31
A89: _Ti12 | B89: 32
A90: _304 | B90: 33
A91: _304L | B91: 34
A92: _304H | B92: 35
A93: _309S | B93: 36
A94: _310 | B94: 37
A95: _310LN | B95: 38
A96: _F44 | B96: 39
A97: _316 | B97: 40
A98: _316L | B98: 41
A99: _316H | B99: 42
A100: _316TI | B100: 43
A101: _317 | B101: 44
A102: _317L | B102: 45
A103: _F51 | B103: 46
A104: _321 | B104: 47
A105: _321H | B105: 48
A106: _F53 | B106: 49
A107: _347 | B107: 50
A108: _347H | B108: 51
A109: _S410 | B109: 52
A110: _TP446_1 | B110: 53
A111: _446 | B111: 54
A112: _ | B112: 1
A113: _C22.8 | B113: 2
A114: _A182 F12 | B114: 3
A115: _A182 F11 | B115: 4
A116: _A182 F2 | B116: 5
A117: _A182 F1 | B117: 6
A118: _A182 F22 | B118: 7
A119: _A336 F21 | B119: 8
A120: _A336 F5 | B120: 9
A121: _A182 F91 | B121: 10
A122: _A182 F9 | B122: 11
A123: _Ni 200 | B123: 12
A124: _Ni 201 | B124: 13
A125: _Monel 400 | B125: 14
A126: _Hastelloy X | B126: 15
A127: _Hastelloy C22 | B127: 16
A128: _Hastelloy C4 | B128: 17
A129: _Inconel 600 | B129: 18
A130: _Inconel 601 | B130: 19
A131: _Inconel 625 | B131: 20
A132: _Alloy 20 | B132: 21
A133: _Incoloy 800 | B133: 22
A134: _Incoloy 800H | B134: 23
A135: _Incoloy 800HT | B135: 24
A136: _Incoloy 825 | B136: 25
A137: _SS 904L | B137: 26
A138: _Hastelloy C276 | B138: 27
A139: _Hastelloy B2 | B139: 28
A140: _Hastelloy B3 | B140: 29
A141: _Titanium 2 | B141: 30
A142: _Titanium 7 | B142: 31
A143: _Titanium 12 | B143: 32
A144: _SS 304 | B144: 33
A145: _SS 304L | B145: 34
A146: _SS 304H | B146: 35
A147: _SS 309S | B147: 36
A148: _SS 310 | B148: 37
A149: _SS 310LN | B149: 38
A150: _254 SMO | B150: 39
A151: _SS 316 | B151: 40
A152: _SS 316L | B152: 41
A153: _SS 316H | B153: 42
A154: _SS 316TI | B154: 43
A155: _SS 317 | B155: 44
A156: _SS 317L | B156: 45
A157: _329LN | B157: 46
A158: _SS 321 | B158: 47
A159: _SS 321H | B159: 48
A160: _2507 | B160: 49
A161: _SS 347 | B161: 50
A162: _SS 347H | B162: 51
A163: _SS 410 | B163: 52
A164: _TP446-1 | B164: 53
A165: _446 | B165: 54
A166: _1.0508 | B166: 1
A167: _1.0460 | B167: 2
A168: _1.7335 | B168: 3
A169: _1.7337 | B169: 4
A170: _ | B170: 5
A171: _1.5415 | B171: 6
A172: _1.7380 | B172: 7
A173: _ | B173: 8
A174: _1.7362 | B174: 9
A175: _1.4903 | B175: 10
A176: _1.7386 | B176: 11
A177: _2.4066 | B177: 12
A178: _2.4068 | B178: 13
A179: _2.4360 | B179: 14
A180: _2.4665 | B180: 15
A181: _2.4602 | B181: 16
A182: _2.4610 | B182: 17
A183: _2.4816 | B183: 18
A184: _2.4851 | B184: 19
A185: _2.4856 | B185: 20
A186: _2.4660 | B186: 21
A187: _1.4876 | B187: 22
A188: _1.4958 | B188: 23
A189: _1.4959 | B189: 24
A190: _2.4858 | B190: 25
A191: _1.4539 | B191: 26
A192: _2.4819 | B192: 27
A193: _2.4617 | B193: 28
A194: _2.4602 | B194: 29
A195: _3.7035 | B195: 30
A196: _3.7235 | B196: 31
A197: _3.7105 | B197: 32
A198: _1.4301 | B198: 33
A199: _1.4306 | B199: 34
A200: _1.4948 | B200: 35
... 73 more rows

Sheet stress limit (hidden)
F1: 1 | G1: 2 | H1: 3 | I1: 4 | J1: 5 | K1: 6 | L1: 7 | M1: 8 | N1: 9 | O1: 10 | P1: 11 | Q1: 12 | R1: 13 | S1: 14 | T1: 15 | U1: 16 | V1: 17 | W1: 18 | X1: 19 | Y1: 20 | Z1: 21 | AA1: 22 | AB1: 23 | AC1: 24 | AD1: 25 | AE1: 26 | AF1: 27 | AG1: 28 | AH1: 29 | AI1: 30 | AJ1: 31
E3: source | F3: Sa = MAWS max. allowed working stress | R3: = Sec.II Part D Tables 1A + 1B (p2ff + p146ff)
A4: Index | B4: Sign | C4: eLine | D4: T | E4: °F | F4: 100 | G4: =(F4+H4)/2 -> 150 | H4: 200 | I4: =(H4+J4)/2 -> 250 | J4: 300 | K4: 350 | L4: 400 | M4: 450 | N4: 500 | O4: 550 | P4: 600 | Q4: 650 | R4: 700 | S4: 750 | T4: 800 | U4: 850 | V4: 900 | W4: 950 | X4: 1000 | Y4: 1050 | Z4: 1100 | AA4: 1150 | AB4: 1200 | AC4: 1250 | AD4: 1300 | AE4: 1350 | AF4: 1400 | AG4: 1450 | AH4: 1500 | AI4: 1550 | AJ4: 1600 | AK4: 1650 | AL4: 1700 | AM4: 1750 | AN4: 1800 | AO4: page | AP4: line | AQ4: row | AR4: eLine | AS4: Nominal Compostion | AT4: Spec-No | AU4: Grade | AV4: UNS | AW4: Index | AX4: Sign | AY4: EN | AZ4: Alias | BA4: Ref
A5: No | E5: °C | F5: =5/9*(F4-32) -> 37.77777778 | G5: =(F5+H5)/2 -> 65.55555556 | H5: =5/9*(H4-32) -> 93.33333333 | I5: =(H5+J5)/2 -> 121.1111111 | J5: =5/9*(J4-32) -> 148.8888889 | K5: 176.6666667 | L5: 204.4444444 | M5: 232.2222222 | N5: 260 | O5: 287.7777778 | P5: 315.5555556 | Q5: 343.3333333 | R5: 371.1111111 | S5: 398.8888889 | T5: 426.6666667 | U5: 454.4444444 | V5: 482.2222222 | W5: 510 | X5: 537.7777778 | Y5: 565.5555556 | Z5: 593.3333333 | AA5: 621.1111111 | AB5: 648.8888889 | AC5: 676.6666667 | AD5: 704.4444444 | AE5: 732.2222222 | AF5: 760 | AG5: 787.7777778 | AH5: 815.5555556 | AI5: 843.3333333 | AJ5: 871.1111111 | AK5: 898.8888889 | AL5: 926.6666667 | AM5: 954.4444444 | AN5: 982.2222222 | BA5: _SRZ_TK\Mat_SecII-2010\AllTemp\
A6: 1 | B6: LF2 | C6: 141 | D6: K03011 | E6: ksi | F6: 20 | G6: 20 | H6: 20 | I6: =(H6+J6)/2 -> 20 | J6: 20 | K6: =(J6+L6)/2 -> 20 | L6: 20 | M6: =(L6+N6)/2 -> 19.8 | N6: 19.6 | O6: =(N6+P6)/2 -> 19 | P6: 18.4 | Q6: 17.8 | R6: 17.2 | S6: 14.8 | T6: 12 | U6: 9.3 | V6: 6.7 | W6: 4 | X6: 2.5 | AO6: 18 | AP6: 11 | AQ6: 13 | AR6: 141 | AS6: Carbon steel | AT6: SA-350 | AU6: LF2 | AV6: K03011 | AW6: 1 | AX6: LF2 | AY6: _1.0508 | BA6: N3_LF2__141
A7: 2 | B7: A105 | C7: 135 | D7: K03504 | E7: ksi | F7: 20 | G7: 20 | H7: 20 | I7: 20 | J7: 20 | K7: 20 | L7: 20 | M7: 19.8 | N7: 19.6 | O7: 19 | P7: 18.4 | Q7: 17.8 | R7: 17.2 | S7: 14.8 | T7: 12 | U7: 9.3 | V7: 6.7 | W7: 4 | X7: 2.5 | AO7: 18 | AP7: 5 | AQ7: 6 | AR7: 135 | AS7: Carbon steel | AT7: SA-105 | AV7: K03504 | AW7: 2 | AX7: A105 | AY7: _1.0460 | BA7: N1_A105__135_
A8: 3 | B8: F12 | C8: 289 | D8: K11562 | E8: ksi | F8: 17.1 | G8: 17.1 | H8: 16.8 | I8: 16.65 | J8: 16.5 | K8: 16.5 | L8: 16.5 | M8: 16.5 | N8: 16.5 | O8: 16.4 | P8: 16.3 | Q8: 16 | R8: 15.8 | S8: 15.5 | T8: 15.3 | U8: 14.9 | V8: 14.5 | W8: 11.3 | X8: 7.2 | Y8: 4.5 | Z8: 2.8 | AA8: 1.8 | AB8: 1.1 | AO8: 30 | AP8: 27 | AQ8: 33 | AR8: 289 | AS8: 1Cr - 1/2 Mo | AT8: SA-182 | AU8: F12 | AV8: K11562 | AW8: 3 | AX8: F12 | AY8: _1.7335 | AZ8: < | BA8: F12__289
A9: 4 | B9: F11 | C9: 304 | D9: K11597 | E9: ksi | F9: 17.1 | G9: =(F9+H9)/2 -> 17.1 | H9: 17.1 | I9: 17.1 | J9: 17.1 | K9: 16.95 | L9: 16.8 | M9: 16.5 | N9: 16.2 | O9: 15.95 | P9: 15.7 | Q9: 15.4 | R9: 15.1 | S9: 14.8 | T9: 14.4 | U9: 14 | V9: 13.6 | W9: 9.3 | X9: 6.3 | Y9: 4.2 | Z9: 2.8 | AA9: 1.9 | AB9: 1.2 | AO9: 30 | AP9: 42 | AQ9: 52 | AR9: 304 | AS9: 1 1/4 Cr - 1/2 Mo - Si | AT9: SA-182 | AU9: F11 | AV9: K11597 | AW9: 4 | AX9: F11 | AY9: _1.7337 | AZ9: < | BA9: F11__304
A10: 5 | B10: F2 | C10: 272 | D10: K12122 | E10: ksi | F10: 20 | G10: =(F10+H10)/2 -> 20 | H10: 20 | I10: 20 | J10: 20 | K10: 20 | L10: 20 | M10: 20 | N10: 20 | O10: 20 | P10: 20 | Q10: 20 | R10: 20 | S10: 20 | T10: 19.9 | U10: 19.3 | V10: 18.6 | W10: 9.2 | X10: 5.9 | AO10: 30 | AP10: 10 | AQ10: 12 | AR10: 272 | AS10: 1/2 Cr - 1/2 Mo | AT10: SA-182 | AU10: F2 | AV10: K12122 | AW10: 5 | AX10: F2 | AY10: no | BA10: F2__272
A11: 6 | B11: F1 | C11: 248 | D11: K12822 | E11: ksi | F11: 20 | G11: =(F11+H11)/2 -> 20 | H11: 20 | I11: 20 | J11: 20 | K11: 20 | L11: 20 | M11: 20 | N11: 20 | O11: 20 | P11: 20 | Q11: 20 | R11: 20 | S11: 20 | T11: 19.9 | U11: 19.3 | V11: 13.7 | W11: 8.2 | X11: 4.8 | AO11: 26 | AP11: 31 | AQ11: 38 | AR11: 248 | AS11: C - 1/2 Mo | AT11: SA-182 | AU11: F1 | AV11: K12822 | AW11: 6 | AX11: F1 | AY11: _1.5415 | BA11: F1__248
A12: 7 | B12: F22 | C12: 324 | D12: K21590 | E12: ksi | F12: 17.1 | G12: =(F12+H12)/2 -> 17.1 | H12: 17.1 | I12: 16.85 | J12: 16.6 | K12: 16.6 | L12: 16.6 | M12: 16.6 | N12: 16.6 | O12: 16.6 | P12: 16.6 | Q12: 16.6 | R12: 16.6 | S12: 16.6 | T12: 16.6 | U12: 16.6 | V12: 13.6 | W12: 10.8 | X12: 8 | Y12: 5.7 | Z12: 3.8 | AA12: 2.4 | AB12: 1.4 | AO12: 34 | AP12: 18 | AQ12: 22 | AR12: 324 | AS12: 2 1/4 Cr - 1Mo | AT12: SA-182 | AU12: F22 | AV12: K21590 | AW12: 7 | AX12: F22 | AY12: _1.7380 | AZ12: < | BA12: F22__324
A13: 8 | B13: F21 | C13: 352 | D13: K31545 | E13: ksi | F13: 17.1 | G13: 17.1 | H13: 17.1 | I13: 16.85 | J13: 16.6 | K13: 16.6 | L13: 16.6 | M13: 16.6 | N13: 16.6 | O13: 16.6 | P13: 16.6 | Q13: 16.6 | R13: 16.6 | S13: 16.6 | T13: 16.6 | U13: 16 | V13: 12 | W13: 9 | X13: 7 | Y13: 5.5 | Z13: 4 | AA13: 2.7 | AB13: 1.5 | AO13: 38 | AP13: 3 | AQ13: 3 | AR13: 352 | AS13: 3Cr - 1Mo | AT13: SA-336 | AU13: F21 | AV13: K31545 | AW13: 8 | AX13: F21 | AY13: no | AZ13: < | BA13: F21__352
A14: 9 | B14: F5 | C14: 377 | D14: K41545 | E14: ksi | F14: 17.1 | G14: =(F14+H14)/2 -> 17.1 | H14: 17.1 | I14: 16.85 | J14: 16.6 | K14: 16.55 | L14: 16.5 | M14: 16.45 | N14: 16.4 | O14: 16.3 | P14: 16.2 | Q14: 15.9 | R14: 15.6 | S14: 15.1 | T14: 14.5 | U14: 13.8 | V14: 10.9 | W14: 8 | X14: 5.8 | Y14: 4.2 | Z14: 2.9 | AA14: 1.8 | AB14: 1 | AO14: 38 | AP14: 28 | AQ14: 34 | AR14: 377 | AS14: 5Cr - 1/2 Mo | AT14: SA-336 | AU14: F5 | AV14: K41545 | AW14: 9 | AX14: F5 P5 | AY14: _1.7362 | BA14: F5__377
A15: 10 | B15: F91 | C15: 396 | D15: K90901 | E15: ksi | F15: 24.3 | G15: 24.3 | H15: 24.3 | I15: 24.3 | J15: 24.3 | K15: 24.25 | L15: 24.2 | M15: 24.15 | N15: 24.1 | O15: 23.9 | P15: 23.7 | Q15: 23.4 | R15: 22.9 | S15: 22.2 | T15: 21.3 | U15: 20.3 | V15: 19.1 | W15: 17.8 | X15: 16.3 | Y15: 14 | Z15: 10.3 | AA15: 7 | AB15: 4.3 | AO15: 42 | AP15: 5 | AQ15: 6 | AR15: 396 | AS15: 9Cr - 1Mo - V | AT15: SA-182 | AU15: F91 | AV15: K90901 | AW15: 10 | AX15: F91 | AY15: _1.4903 | AZ15: F92 = F91 | BA15: F91__396
A16: 11 | B16: F9 | C16: 392 | D16: K90941 | E16: ksi | F16: 24.3 | G16: 24.25 | H16: 24.2 | I16: 23.85 | J16: 23.5 | K16: 23.45 | L16: 23.4 | M16: 23.35 | N16: 23.3 | O16: 23.1 | P16: 22.9 | Q16: 22.6 | R16: 22.1 | S16: 21.4 | T16: 20.6 | U16: 19.6 | V16: 16.4 | W16: 11 | X16: 7.4 | Y16: 5 | Z16: 3.3 | AA16: 2.2 | AB16: 1.5 | AO16: 42 | AP16: 1 | AQ16: 1 | AR16: 392 | AS16: 9Cr - 1Mo | AT16: SA-182 | AU16: F9 | AV16: K90941 | AW16: 11 | AX16: F9 | AY16: _1.7386 | BA16: F9__392
A17: 12 | B17: Ni 200 | C17: 1953 | D17: N02200 | E17: ksi | F17: 10 | G17: 10 | H17: 10 | I17: 10 | J17: 10 | K17: 10 | L17: 10 | M17: 10 | N17: 10 | O17: 10 | P17: 10 | AO17: 194 | AP17: 11 | AQ17: 13 | AR17: 1953 | AS17: 99Ni | AT17: SB-160 | AV17: N02200 | AW17: 12 | AX17: Ni 200 | AY17: _2.4066 | BA17: M_Ni200__1953
A18: 13 | B18: Ni 201 | C18: 1963 | D18: N02201 | E18: ksi | F18: 6.7 | G18: 6.55 | H18: 6.4 | I18: 6.35 | J18: 6.3 | K18: 6.25 | L18: 6.2 | M18: 6.2 | N18: 6.2 | O18: 6.2 | P18: 6.2 | Q18: 6.2 | R18: 6.2 | S18: 6.1 | T18: 6 | U18: 5.8 | V18: 4.5 | W18: 3.7 | X18: 3 | Y18: 2.4 | Z18: 2 | AA18: 1.5 | AB18: 1.2 | AO18: 194 | AP18: 21 | AQ18: 25 | AR18: 1963 | AS18: 99Ni - Low C | AT18: SB-160 | AV18: N02201 | AW18: 13 | AX18: Ni 201 | AY18: _2.4068 | BA18: M1_Ni201__1963
A19: 14 | B19: M 400 | C19: 1969 | D19: N04400 | E19: ksi | F19: 16.7 | G19: 15.65 | H19: 14.6 | I19: 14.1 | J19: 13.6 | K19: 13.4 | L19: 13.2 | M19: 13.15 | N19: 13.1 | O19: 13.1 | P19: 13.1 | Q19: 13.1 | R19: 13 | S19: 12.9 | T19: 12.7 | U19: 11 | V19: 8 | AO19: 194 | AP19: 27 | AQ19: 33 | AR19: 1969 | AS19: 67Ni - 30Cu | AT19: SB-164 | AV19: N04400 | AW19: 14 | AX19: M 400 | AY19: _2.4360 | BA19: L_400__1969
A20: 15 | B20: H X | C20: 1987 | D20: N06002 | E20: ksi | F20: 23.3 | G20: 22.15 | H20: 21 | I20: 20.1 | J20: 19.2 | K20: 18.45 | L20: 17.7 | M20: 17.1 | N20: 16.5 | O20: 16.1 | P20: 15.7 | Q20: 15.3 | R20: 15.1 | S20: 14.9 | T20: 14.7 | U20: 14.6 | V20: 14.5 | W20: 14.4 | X20: 14.3 | Y20: 14.3 | Z20: 14.2 | AA20: 14.1 | AB20: 11.3 | AC20: 9.3 | AD20: 7.7 | AE20: 6.1 | AF20: 4.8 | AG20: 3.8 | AH20: 3 | AI20: 2.3 | AJ20: 1.7 | AK20: 1.2 | AO20: 198 | AP20: 4 | AQ20: 4 | AR20: 1987 | AS20: 47Ni - 22Cr - 9Mo - 18Fe | AT20: SB-572 | AV20: N06002 | AW20: 15 | AX20: H X | AY20: _2.4665 | BA20: X_X__1987
A21: 16 | B21: H C22 | C21: 2016 | D21: N06022 | E21: ksi | F21: 28.6 | G21: 27.65 | H21: 26.7 | I21: 25.65 | J21: 24.6 | K21: 23.75 | L21: 22.9 | M21: 22.2 | N21: 21.5 | O21: 20.95 | P21: 20.4 | Q21: 20 | R21: 19.6 | S21: 19.3 | T21: 19 | U21: 18.8 | V21: 18.6 | W21: 18.5 | X21: 18.3 | Y21: 18.2 | Z21: 17.5 | AA21: 12.7 | AB21: 9.6 | AC21: 7.6 | AO21: 198 | AP21: 33 | AQ21: 40 | AR21: 2016 | AS21: 55Ni - 21Cr - 13.5Mo | AT21: SB-574 | AV21: N06022 | AW21: 16 | AX21: H C22 | AY21: _2.4602 | BA21: _H_C22_2016
A22: 17 | B22: H C4 | C22: 2128 | D22: N06455 | E22: ksi | F22: 26.7 | G22: 25.65 | H22: 24.6 | I22: 23.8 | J22: 23 | K22: 22.35 | L22: 21.7 | M22: 21.25 | N22: 20.8 | O22: 20.45 | P22: 20.1 | Q22: 19.9 | R22: 19.6 | S22: 19.4 | T22: 19.1 | AO22: 210 | AP22: 15 | AQ22: 18 | AR22: 2128 | AS22: 61Ni - 16Mo - 16Cr | AT22: SB-574 | AV22: N06455 | AW22: 17 | AX22: H C4 | AY22: _2.4610 | BA22: _H_C4_2128
A23: 18 | B23: IN 600 | C23: 2149 | D23: N06600 | E23: ksi | F23: 22.9 | G23: 22.1 | H23: 21.3 | I23: 21.05 | J23: 20.8 | K23: 20.65 | L23: 20.5 | M23: 20.35 | N23: 20.2 | O23: 20.05 | P23: 19.9 | Q23: 19.8 | R23: 19.6 | S23: 19.4 | T23: 19.1 | U23: 18.7 | V23: 16 | W23: 10.6 | X23: 7 | Y23: 4.5 | Z23: 3 | AA23: 2.2 | AB23: 2 | AO23: 210 | AP23: 36 | AQ23: 43 | AR23: 2149 | AS23: 72Ni - 15Cr - 8Fe | AT23: SB-166 | AV23: N06600 | AW23: 18 | AX23: IN 600 | AY23: _2.4816 | BA23: J_600__2149
A24: 19 | B24: IN 601 | C24: 2166 | D24: N06601 | E24: ksi | F24: 20 | G24: 18.9 | H24: 17.8 | I24: 17.2 | J24: 16.6 | K24: 16.05 | L24: 15.5 | M24: 15.1 | N24: 14.7 | O24: 14.45 | P24: 14.2 | Q24: 14 | R24: 13.9 | S24: 13.8 | T24: 13.8 | U24: 13.8 | V24: 13.8 | W24: 13.7 | X24: 13.7 | Y24: 13.6 | Z24: 10.4 | AA24: 8 | AB24: 6.1 | AC24: 4.6 | AD24: 3.6 | AE24: 2.8 | AF24: 2.1 | AG24: 1.7 | AH24: 1.3 | AI24: 1.1 | AJ24: 0.87 | AK24: 0.71 | AO24: 214 | AP24: 11 | AQ24: 13 | AR24: 2166 | AS24: 60Ni - 23Cr - Fe | AT24: SB-166 | AV24: N06601 | AW24: 19 | AX24: IN 601 | AY24: _2.4851 | BA24: J1_601__2166
A25: 20 | B25: IN 625 | C25: 2185 | D25: N06625 | E25: ksi | F25: 26.7 | G25: 25.65 | H25: 24.6 | I25: 24 | J25: 23.4 | K25: 22.9 | L25: 22.4 | M25: 22.05 | N25: 21.7 | O25: 21.35 | P25: 21 | Q25: 20.8 | R25: 20.5 | S25: 20.3 | T25: 20.1 | U25: 20 | V25: 19.8 | W25: 19.7 | X25: 19.6 | Y25: 19.5 | Z25: 19.4 | AA25: 19.3 | AB25: 19.3 | AC25: 15 | AD25: 11.6 | AE25: 8.5 | AF25: 6.7 | AG25: 4.9 | AH25: 3.8 | AI25: 2.6 | AJ25: 1.9 | AO25: 214 | AP25: 30 | AQ25: 36 | AR25: 2185 | AS25: 60Ni - 22Cr - 9Mo - 3.5Cb | AT25: SB-446 | AU25: 2 | AV25: N06625 | AW25: 20 | AX25: IN 625 | AY25: _2.4856 | BA25: J5_625__2185
A26: 21 | B26: alloy 20 | C26: 2244 | D26: N08020 | E26: ksi | F26: 22.9 | G26: 21.75 | H26: 20.6 | I26: 20.15 | J26: 19.7 | K26: 19.3 | L26: 18.9 | M26: 18.55 | N26: 18.2 | O26: 17.95 | P26: 17.7 | Q26: 17.5 | R26: 17.4 | S26: 17.2 | T26: 16.8 | AO26: 222 | AP26: 6 | AQ26: 7 | AR26: 2244 | AS26: 35Ni - 35Fe - 20Cr - Cb | AT26: SB-473 | AV26: N08020 | AW26: 21 | AX26: alloy 20 | AY26: _2.4660 | BA26: M2 alloy20__2244
A27: 22 | B27: IL 800 | C27: 2364 | D27: N08800 | E27: ksi | F27: 20 | G27: 19.25 | H27: 18.5 | I27: 18.15 | J27: 17.8 | K27: 17.5 | L27: 17.2 | M27: 17 | N27: 16.8 | O27: 16.55 | P27: 16.3 | Q27: 16.1 | R27: 15.9 | S27: 15.7 | T27: 15.5 | U27: 15.3 | V27: 15.1 | W27: 14.9 | X27: 14.7 | Y27: 14.5 | Z27: 13 | AA27: 9.8 | AB27: 6.6 | AC27: 4.2 | AD27: 2 | AE27: 1.6 | AF27: 1.1 | AG27: 1 | AH27: 0.8 | AO27: 230 | AP27: 40 | AQ27: 50 | AR27: 2364 | AS27: 33Ni - 42Fe - 21Cr | AT27: SB-408 | AV27: N08800 | AW27: 22 | AX27: IL 800 | AY27: _1.4876 | BA27: K_800__2364
A28: 23 | B28: IL 800H | C28: 2381 | D28: N08810 | E28: ksi | F28: 16.7 | G28: 16.05 | H28: 15.4 | I28: 14.9 | J28: 14.4 | K28: 14 | L28: 13.6 | M28: 13.25 | N28: 12.9 | O28: 12.55 | P28: 12.2 | Q28: 11.9 | R28: 11.6 | S28: 11.4 | T28: 11.1 | U28: 10.9 | V28: 10.7 | W28: 10.5 | X28: 10.4 | Y28: 10.2 | Z28: 10 | AA28: 9.3 | AB28: 7.4 | AC28: 5.9 | AD28: 4.7 | AE28: 3.8 | AF28: 3 | AG28: 2.4 | AH28: 1.9 | AI28: 1.4 | AJ28: 1.1 | AK28: 0.86 | AO28: 234 | AP28: 15 | AQ28: 18 | AR28: 2381 | AS28: 33Ni - 42Fe - 21Cr | AT28: SB-408 | AV28: N08810 | AW28: 23 | AX28: IL 800H | AY28: _1.4958 | BA28: KH_800H__2381
A29: 24 | B29: IL 800HT | C29: 2395 | D29: N08811 | E29: ksi | F29: 16.7 | G29: 16.05 | H29: 15.4 | I29: 14.9 | J29: 14.4 | K29: 14 | L29: 13.6 | M29: 13.25 | N29: 12.9 | O29: 12.55 | P29: 12.2 | Q29: 11.9 | R29: 11.6 | S29: 11.4 | T29: 11.1 | U29: 10.9 | V29: 10.7 | W29: 10.5 | X29: 10.4 | Y29: 10.2 | Z29: 10 | AA29: 9.8 | AB29: 8.3 | AC29: 6.7 | AD29: 5.4 | AE29: 4.3 | AF29: 3.4 | AG29: 2.7 | AH29: 2.2 | AI29: 1.6 | AJ29: 1.2 | AK29: 0.91 | AO29: 234 | AP29: 29 | AQ29: 35 | AR29: 2395 | AS29: 33Ni - 42Fe - 21Cr | AT29: SB-408 | AV29: N08811 | AW29: 24 | AX29: IL 800HT | AY29: _1.4959 | BA29: KHT_800HT__2395
A30: 25 | B30: IL 825 | C30: 2410 | D30: N08825 | E30: ksi | F30: 23.3 | G30: 22.35 | H30: 21.4 | I30: 20.85 | J30: 20.3 | K30: 19.85 | L30: 19.4 | M30: 18.95 | N30: 18.5 | O30: 18.15 | P30: 17.8 | Q30: 17.5 | R30: 17.3 | S30: 17.2 | T30: 17 | U30: 17 | V30: 16.9 | W30: 16.8 | X30: 16.5 | AO30: 234 | AP30: 44 | AQ30: 53 | AR30: 2410 | AS30: 42Ni - 21.5Cr - 3Mo - 2.3Cu | AT30: SB-425 | AV30: N08825 | AW30: 25 | AX30: IL 825 | AY30: _2.4858 | BA30: K5_825__2410
A31: 26 | B31: 904L | C31: 2420 | D31: N08904 | E31: ksi | F31: 20.3 | G31: 18.5 | H31: 16.7 | I31: 15.9 | J31: 15.1 | K31: 14.45 | L31: 13.8 | M31: 13.25 | N31: 12.7 | O31: 12.3 | P31: 11.9 | Q31: 11.6 | R31: 11.4 | AO31: 238 | AP31: 9 | AQ31: 10 | AR31: 2420 | AS31: 44Fe - 25Ni - 21Cr - Mo | AT31: SB-649 | AV31: N08904 | AW31: 26 | AX31: 904L | AY31: _1.4539 | BA31: _S_904L__2420
A32: 27 | B32: H 276 | C32: 2466 | D32: N10276 | E32: ksi | F32: 27.3 | G32: 26.1 | H32: 24.9 | I32: 23.95 | J32: 23 | K32: 22.15 | L32: 21.3 | M32: 20.6 | N32: 19.9 | O32: 19.3 | P32: 18.7 | Q32: 18.2 | R32: 17.8 | S32: 17.4 | T32: 17.1 | U32: 16.9 | V32: 16.7 | W32: 16.6 | X32: 16.5 | Y32: 16.5 | Z32: 15 | AA32: 12.2 | AB32: 9.8 | AC32: 7.8 | AO32: 242 | AP32: 12 | AQ32: 14 | AR32: 2466 | AS32: 54Ni - 16Mo - 15Cr | AT32: SB-462 | AV32: N10276 | AW32: 27 | AX32: H 276 | AY32: _2.4819 | BA32: H_276__2466
A33: 28 | B33: H B2 | C33: 2506 | D33: N10665 | E33: ksi | F33: 31.4 | G33: 31.4 | H33: 31.4 | I33: 30.8 | J33: 30.2 | K33: 29.55 | L33: 28.9 | M33: 28.4 | N33: 27.9 | O33: 27.55 | P33: 27.2 | Q33: 26.9 | R33: 26.6 | S33: 26.2 | T33: 25.8 | AO33: 246 | AP33: 8 | AQ33: 9 | AR33: 2506 | AS33: 65Ni - 28Mo - 2Fe | AT33: SB-335 | AV33: N10665 | AW33: 28 | AX33: H B2 | AY33: _2.4617 | BA33: G_B2__2506
A34: 29 | B34: H B3 | C34: 2521 | D34: N10675 | E34: ksi | F34: 31.4 | G34: 31.4 | H34: 31.4 | I34: 30.85 | J34: 30.3 | K34: 29.55 | L34: 28.8 | M34: 28.1 | N34: 27.4 | O34: 26.85 | P34: 26.3 | Q34: 25.8 | R34: 25.4 | S34: 25.1 | T34: 24.8 | AO34: 246 | AP34: 23 | AQ34: 27 | AR34: 2521 | AS34: 65Ni - 29.5Mo - 2Fe - 2Cr | AT34: SB-335 | AV34: N10675 | AW34: 29 | AX34: H B3 | AY34: _2.4602 | BA34: G1_B3__2521
A35: 30 | B35: Ti 2 | C35: 2583 | D35: R50400 | E35: ksi | F35: 14.3 | G35: 13.7 | H35: 12.4 | I35: 11.3 | J35: 10.3 | K35: 9.5 | L35: 8.8 | M35: 8.2 | N35: 7.6 | O35: 7 | P35: 6.5 | AO35: 250 | AP35: 42 | AQ35: 52 | AR35: 2583 | AS35: Ti | AT35: SB-381 | AU35: F-2 | AV35: R50400 | AW35: 30 | AX35: Ti 2 | AY35: _3.7035 | BA35: TI2__2583
A36: 31 | B36: Ti 7 | C36: 2614 | D36: R52400 | E36: ksi | F36: 14.3 | G36: 13.7 | H36: 12.4 | I36: 11.3 | J36: 10.3 | K36: 9.5 | L36: 8.8 | M36: 8.2 | N36: 7.6 | O36: 7 | P36: 6.5 | AO36: 254 | AP36: 29 | AQ36: 35 | AR36: 2614 | AS36: Ti - Pd | AT36: SB-381 | AU36: F-7 | AV36: R52400 | AW36: 31 | AX36: Ti 7 | AY36: _3.7235 | BA36: TI7__2614
A37: 32 | B37: Ti 12 | C37: 2664 | D37: R53400 | E37: ksi | F37: 20 | G37: 20 | H37: 18.7 | I37: 17.4 | J37: 16.2 | K37: 15.2 | L37: 14.3 | M37: 13.6 | N37: 13.1 | O37: 12.7 | P37: 12.3 | AO37: 258 | AP37: 34 | AQ37: 41 | AR37: 2664 | AS37: Ti - 0.3Mo - 0.8Ni | AT37: SB-381 | AU37: F-12 | AV37: R53400 | AW37: 32 | AX37: Ti 12 | AY37: _3.7105 | BA37: TI12__2664
A38: 33 | B38: 304 | C38: 908 | D38: S30400 | E38: ksi | F38: 20 | G38: =(F38+H38)/2 -> 18.35 | H38: 16.7 | I38: =(H38+J38)/2 -> 15.85 | J38: 15 | K38: =(J38+L38)/2 -> 14.4 | L38: 13.8 | M38: =(L38+N38)/2 -> 13.35 | N38: 12.9 | O38: =(N38+P38)/2 -> 12.6 | P38: 12.3 | Q38: 12 | R38: 11.7 | S38: 11.5 | T38: 11.2 | U38: 11 | V38: 10.8 | W38: 10.6 | X38: 10.4 | Y38: 10.1 | Z38: 9.8 | AA38: 7.7 | AB38: 6.1 | AC38: 4.7 | AD38: 3.7 | AE38: 2.9 | AF38: 2.3 | AG38: 1.8 | AH38: 1.4 | AO38: 90 | AP38: 14 | AQ38: 17 | AR38: 908 | AS38: 18Cr - 8Ni | AT38: SA-479 | AU38: 304 | AV38: S30400 | AW38: 33 | AX38: 304 | AY38: _1.4301 | BA38: P_304__908
A39: 34 | B39: 304L | C39: 841 | D39: S30403 | E39: ksi | F39: 16.7 | G39: 15.5 | H39: 14.3 | I39: 13.55 | J39: 12.8 | K39: 12.25 | L39: 11.7 | M39: 11.3 | N39: 10.9 | O39: 10.65 | P39: 10.4 | Q39: 10.2 | R39: 10 | S39: 9.8 | T39: 9.7 | U39: 9.5 | V39: 9.3 | W39: 9.1 | X39: 7.8 | Y39: 6.3 | Z39: 5.1 | AA39: 4 | AB39: 3.2 | AO39: 82 | AP39: 32 | AQ39: 38 | AR39: 841 | AS39: 18Cr - 8Ni | AT39: SA-479 | AU39: 304L | AV39: S30403 | AW39: 34 | AX39: 304L | AY39: _1.4306 | AZ39: _1.4307 | BA39: PL_304L__841
A40: 35 | B40: 304H | C40: 910 | D40: S30409 | E40: ksi | F40: 20 | G40: 18.35 | H40: 16.7 | I40: 15.85 | J40: 15 | K40: 14.4 | L40: 13.8 | M40: 13.35 | N40: 12.9 | O40: 12.6 | P40: 12.3 | Q40: 12 | R40: 11.7 | S40: 11.5 | T40: 11.2 | U40: 11 | V40: 10.8 | W40: 10.6 | X40: 10.4 | Y40: 10.1 | Z40: 9.8 | AA40: 7.7 | AB40: 6.1 | AC40: 4.7 | AD40: 3.7 | AE40: 2.9 | AF40: 2.3 | AG40: 1.8 | AH40: 1.4 | AO40: 90 | AP40: 16 | AQ40: 19 | AR40: 910 | AS40: 18Cr - 8Ni | AT40: SA-479 | AU40: 304H | AV40: S30409 | AW40: 35 | AX40: 304H | AY40: _1.4948 | BA40: PH_304H__910
A41: 36 | B41: 309S | C41: 1319 | D41: S30908 | E41: ksi | F41: 20 | G41: 18.75 | H41: 17.5 | I41: 16.8 | J41: 16.1 | K41: 15.6 | L41: 15.1 | M41: 14.75 | N41: 14.4 | O41: 14.15 | P41: 13.9 | Q41: 13.7 | R41: 13.5 | S41: 13.3 | T41: 13.1 | U41: 12.9 | V41: 12.7 | W41: 12.5 | X41: 9.9 | AO41: 126 | AP41: 42 | AQ41: 51 | AR41: 1319 | AS41: 23Cr - 12Ni | AT41: SA-479 | AU41: 309S | AV41: S30908 | AW41: 36 | AX41: 309S | AY41: _1.4833 | BA41: D__1319
A42: 37 | B42: 310 | C42: 1390 | D42: S31000 | E42: ksi | F42: 20 | G42: 20 | H42: 20 | I42: 20 | J42: 20 | K42: 19.95 | L42: 19.9 | M42: 19.6 | N42: 19.3 | O42: 18.9 | P42: 18.5 | Q42: 18.2 | R42: 17.9 | S42: 17.7 | T42: 17.4 | U42: 17.2 | V42: 16.9 | W42: 15.9 | X42: 9.9 | Y42: 7.1 | Z42: 5 | AA42: 3.6 | AB42: 2.5 | AC42: 1.5 | AD42: 0.8 | AE42: 0.5 | AF42: 0.4 | AG42: 0.3 | AH42: 0.2 | AO42: 134 | AP42: 28 | AQ42: 34 | AR42: 1390 | AS42: 25Cr - 20Ni | AT42: SA-182 | AU42: F310 | AV42: S31000 | AW42: 37 | AX42: 310 | AY42: _1.4845 | AZ42: 31008 310s | BA42: Q_310__1390
A43: 38 | B43: 310LN | C43: 1450 | D43: S31050 | E43: ksi | F43: 22.9 | G43: 21.4 | H43: 19.9 | I43: 19 | J43: 18.1 | K43: 17.45 | L43: 16.8 | M43: 16.35 | N43: 15.9 | O43: 15.5 | P43: 15.1 | AO43: 138 | AP43: 45 | AQ43: 54 | AR43: 1450 | AS43: 25Cr - 22Ni - 2Mo - N | AT43: SA-240 | AU43: 310MoLN | AV43: S31050 | AW43: 38 | AX43: 310LN | AY43: _1.4466 | AZ43: 25 22 2 | BA43: _S_310LN_25222_14466__1450
A44: 39 | B44: F44 | C44: 1236 | D44: S31254 | E44: ksi | F44: 26.9 | G44: 25.4 | H44: 23.9 | I44: 22.65 | J44: 21.4 | K44: 20.6 | L44: 19.8 | M44: 19.2 | N44: 18.6 | O44: 18.25 | P44: 17.9 | Q44: 17.6 | R44: 17.4 | S44: 17.3 | AO44: 118 | AP44: 44 | AQ44: 52 | AR44: 1236 | AS44: 20Cr - 18Ni - 6Mo | AT44: SA-182 | AU44: F44 | AV44: S31254 | AW44: 39 | AX44: F44 | AY44: _1.4529 | AZ44: 254 SMO | BA44: _s_F44_254_SMO__1236
A45: 40 | B45: 316 | C45: 721 | D45: S31600 | E45: ksi | F45: 20 | G45: 18.65 | H45: 17.3 | I45: 16.45 | J45: 15.6 | K45: 14.95 | L45: 14.3 | M45: 13.8 | N45: 13.3 | O45: 12.95 | P45: 12.6 | Q45: 12.3 | R45: 12.1 | S45: 11.9 | T45: 11.8 | U45: 11.6 | V45: 11.5 | W45: 11.4 | X45: 11.3 | Y45: 11.2 | Z45: 11.1 | AA45: 9.8 | AB45: 7.4 | AC45: 5.5 | AD45: 4.1 | AE45: 3.1 | AF45: 2.3 | AG45: 1.7 | AH45: 1.3 | AO45: 70 | AP45: 37 | AQ45: 45 | AR45: 721 | AS45: 16Cr - 12Ni - 2Mo | AT45: SA-479 | AU45: 316 | AV45: S31600 | AW45: 40 | AX45: 316 | AY45: _1.4401 | AZ45: 316/316L | BA45: R_316__721
A46: 41 | B46: 316L | C46: 684 | D46: S31603 | E46: ksi | F46: 16.7 | G46: 15.45 | H46: 14.2 | I46: 13.45 | J46: 12.7 | K46: 12.2 | L46: 11.7 | M46: 11.3 | N46: 10.9 | O46: 10.65 | P46: 10.4 | Q46: 10.2 | R46: 10 | S46: 9.8 | T46: 9.6 | U46: 9.4 | AO46: 66 | AP46: 40 | AQ46: 48 | AR46: 684 | AS46: 16Cr - 12Ni - 2Mo | AT46: SA-479 | AU46: 316L | AV46: S31603 | AW46: 41 | AX46: 316L | AY46: _1.4404 | AZ46: _1.4435 | BA46: RL_316L__684
A47: 42 | B47: 316H | C47: 733 | D47: S31609 | E47: ksi | F47: 20 | G47: 18.65 | H47: 17.3 | I47: 16.45 | J47: 15.6 | K47: 14.95 | L47: 14.3 | M47: 13.8 | N47: 13.3 | O47: 12.95 | P47: 12.6 | Q47: 12.3 | R47: 12.1 | S47: 11.9 | T47: 11.8 | U47: 11.6 | V47: 11.5 | W47: 11.4 | X47: 11.3 | Y47: 11.2 | Z47: 11.1 | AA47: 9.8 | AB47: 7.4 | AC47: 5.5 | AD47: 4.1 | AE47: 3.1 | AF47: 2.3 | AG47: 1.7 | AH47: 1.3 | AO47: 74 | AP47: 6 | AQ47: 7 | AR47: 733 | AS47: 16Cr - 12Ni - 2Mo | AT47: SA-182 | AU47: F316H | AV47: S31609 | AW47: 42 | AX47: 316H | AY47: _1.4436 | BA47: RH_316H__733
A48: 43 | B48: 316TI | C48: 795 | D48: S31635 | E48: ksi | F48: 20 | G48: 18.85 | H48: 17.7 | I48: 16.75 | J48: 15.8 | K48: 15.05 | L48: 14.3 | M48: 13.75 | N48: 13.2 | O48: 12.8 | P48: 12.4 | Q48: 12.2 | R48: 12 | S48: 11.9 | T48: 11.8 | U48: 11.7 | V48: 11.6 | W48: 11.5 | X48: 11.4 | Y48: 11.2 | Z48: 11 | AA48: 9.8 | AB48: 7.4 | AC48: 5.5 | AD48: 4.1 | AE48: 3.1 | AF48: 2.3 | AG48: 1.7 | AH48: 1.3 | AO48: 78 | AP48: 26 | AQ48: 31 | AR48: 795 | AS48: 16Cr - 12Ni - 2Mo - Ti | AT48: SA-240 | AU48: 316Ti | AV48: S31635 | AW48: 43
A49: 44 | B49: 317 | C49: 1150 | D49: S31700 | E49: ksi | F49: 20 | G49: 18.65 | H49: 17.3 | I49: 16.45 | J49: 15.6 | K49: 14.95 | L49: 14.3 | M49: 13.8 | N49: 13.3 | O49: 12.95 | P49: 12.6 | Q49: 12.3 | R49: 12.1 | S49: 11.9 | T49: 11.8 | U49: 11.6 | V49: 11.5 | W49: 11.4 | X49: 11.3 | Y49: 11.2 | Z49: 11.1 | AA49: 9.8 | AB49: 7.4 | AC49: 5.5 | AD49: 4.1 | AE49: 3.1 | AF49: 2.3 | AG49: 1.7 | AH49: 1.3 | AO49: 114 | AP49: 2 | AQ49: 2 | AR49: 1150 | AS49: 18Cr - 13Ni - 3Mo | AT49: SA-182 | AU49: F317 | AV49: S31700 | AW49: 44 | AX49: 317 | AY49: _1.4449 | BA49: W_317__1150
A50: 45 | B50: 317L | C50: 1146 | D50: S31703 | E50: ksi | F50: 16.7 | G50: 15.45 | H50: 14.2 | I50: 13.45 | J50: 12.7 | K50: 12.2 | L50: 11.7 | M50: 11.3 | N50: 10.9 | O50: 10.65 | P50: 10.4 | Q50: 10.2 | R50: 10 | S50: 9.8 | T50: 9.6 | U50: 9.4 | AO50: 110 | AP50: 40 | AQ50: 49 | AR50: 1146 | AS50: 18Cr - 13Ni - 3Mo | AT50: SA-182 | AU50: F317L | AV50: S31703 | AW50: 45 | AX50: 317L | AY50: _1.4438 | BA50: WL_317L__1146
A51: 46 | B51: F51 | C51: 1273 | D51: S31803 | E51: ksi | F51: 25.7 | G51: 25.7 | H51: 25.7 | I51: 25.25 | J51: 24.8 | K51: 24.35 | L51: 23.9 | M51: 23.6 | N51: 23.3 | O51: 23.2 | P51: 23.1 | AO51: 122 | AP51: 37 | AQ51: 45 | AR51: 1273 | AS51: 22Cr - 5Ni - 3Mo - N | AT51: SA-182 | AU51: F51 | AV51: S31803 | AW51: 46 | AX51: F51 | AY51: _1.4462 | AZ51: Duplex 329LN | BA51: DS1_Duplex_2205_F51__1273
A52: 47 | B52: 321 | C52: 1118 | D52: S32100 | E52: ksi | F52: 20 | G52: 19 | H52: 18 | I52: 17.25 | J52: 16.5 | K52: 15.9 | L52: 15.3 | M52: 14.8 | N52: 14.3 | O52: 13.9 | P52: 13.5 | Q52: 13.2 | R52: 13 | S52: 12.7 | T52: 12.6 | U52: 12.4 | V52: 12.3 | W52: 12.1 | X52: 12 | Y52: 9.6 | Z52: 6.9 | AA52: 5 | AB52: 3.6 | AC52: 2.6 | AD52: 1.7 | AE52: 1.1 | AF52: 0.8 | AG52: 0.5 | AH52: 0.3 | AO52: 110 | AP52: 12 | AQ52: 14 | AR52: 1118 | AS52: 18Cr - 10Ni - Ti | AT52: SA-479 | AU52: 321 | AV52: S32100 | AW52: 47 | AX52: 321 | AY52: _1.4541 | BA52: S_321__1118
A53: 48 | B53: 321H | C53: 1140 | D53: S32109 | E53: ksi | F53: 20 | G53: 19 | H53: 18 | I53: 17.25 | J53: 16.5 | K53: 15.9 | L53: 15.3 | M53: 14.8 | N53: 14.3 | O53: 13.9 | P53: 13.5 | Q53: 13.2 | R53: 13 | S53: 12.7 | T53: 12.6 | U53: 12.4 | V53: 12.3 | W53: 12.1 | X53: 12 | Y53: 11.9 | Z53: 9.1 | AA53: 6.9 | AB53: 5.4 | AC53: 4.1 | AD53: 3.2 | AE53: 2.5 | AF53: 1.9 | AG53: 1.5 | AH53: 1.1 | AO53: 110 | AP53: 34 | AQ53: 42 | AR53: 1140 | AS53: 18Cr - 10Ni - Ti | AT53: SA-479 | AU53: 321H | AV53: S32109 | AW53: 48 | AX53: 321H | AY53: _1.4878 | BA53: SH_321H__1140
A54: 49 | B54: F53 | C54: 1374 | D54: S32750 | E54: ksi | F54: 33.1 | G54: 33.05 | H54: 33 | I54: 32.1 | J54: 31.2 | K54: 30.65 | L54: 30.1 | M54: 29.85 | N54: 29.6 | O54: 29.5 | P54: 29.4 | AO54: 134 | AP54: 12 | AQ54: 14 | AR54: 1374 | AS54: 25Cr - 7Ni - 4Mo - N | AT54: SA-182 | AU54: F53 | AV54: S32750 | AW54: 49 | AX54: F53 | AY54: _1.4410 | AZ54: F55 | BA54: _S_a2507_F53__1374
A55: 50 | B55: 347 | C55: 1008 | D55: S34700 | E55: ksi | F55: 20 | G55: 19.2 | H55: 18.4 | I55: 17.75 | J55: 17.1 | K55: 16.55 | L55: 16 | M55: 15.5 | N55: 15 | O55: 14.65 | P55: 14.3 | Q55: 14 | R55: 13.8 | S55: 13.7 | T55: 13.6 | U55: 13.5 | V55: 13.4 | W55: 13.4 | X55: 13.4 | Y55: 12.1 | Z55: 9.1 | AA55: 6.1 | AB55: 4.4 | AC55: 3.3 | AD55: 2.2 | AE55: 1.5 | AF55: 1.2 | AG55: 0.9 | AH55: 0.8 | AO55: 98 | AP55: 31 | AQ55: 37 | AR55: 1008 | AS55: 18Cr - 10Ni - Cb | AT55: SA-479 | AU55: 347 | AV55: S34700 | AW55: 50 | AX55: 347 | AY55: _1.4550 | BA55: T_347__1008
A56: 51 | B56: 347H | C56: 1012 | D56: S34709 | E56: ksi | F56: 20 | G56: 19.2 | H56: 18.4 | I56: 17.75 | J56: 17.1 | K56: 16.55 | L56: 16 | M56: 15.5 | N56: 15 | O56: 14.65 | P56: 14.3 | Q56: 14 | R56: 13.8 | S56: 13.7 | T56: 13.6 | U56: 13.5 | V56: 13.4 | W56: 13.4 | X56: 13.4 | Y56: 13.4 | Z56: 13.3 | AA56: 10.5 | AB56: 7.9 | AC56: 5.9 | AD56: 4.4 | AE56: 3.2 | AF56: 2.5 | AG56: 1.8 | AH56: 1.3 | AO56: 98 | AP56: 35 | AQ56: 42 | AR56: 1012 | AS56: 18Cr - 10Ni - Cb | AT56: SA-182 | AU56: F347H | AV56: S34709 | AW56: 51 | AX56: 347H | AY56: no | BA56: TH_347H__1012
A57: 52 | B57: S410 | C57: 432 | D57: S41000 | E57: ksi | F57: 20 | G57: 20 | H57: 20 | I57: 19.8 | J57: 19.6 | K57: 19.45 | L57: 19.3 | M57: 19.15 | N57: 19 | O57: 18.75 | P57: 18.5 | Q57: 18.1 | R57: 17.7 | S57: 17.1 | T57: 16.4 | U57: 15.6 | V57: 12.3 | W57: 8.8 | X57: 6.4 | AO57: 42 | AP57: 41 | AQ57: 50 | AR57: 432 | AS57: 13Cr | AT57: SA-479 | AU57: 410 | AV57: S41000 | AW57: 52 | AX57: S410 | AY57: _1.4006 | BA57: V_410__432
A58: 53 | B58: TP446_1 | C58: 491 | D58: S44600 | E58: ksi | F58: 20 | G58: 20 | H58: 20 | I58: 19.65 | J58: 19.3 | K58: 19.05 | L58: 18.8 | M58: 18.6 | N58: 18.4 | O58: 18.15 | P58: 17.9 | Q58: 17.7 | R58: 17.3 | AO58: 50 | AP58: 16 | AQ58: 19 | AR58: 491 | AS58: 27Cr | AT58: SA-268 | AU58: TP446-1 | AV58: S44600 | AW58: 53 | AX58: TP446_1 | AY58: _1.4749 | BA58: _S_TP446-1__491
A59: 54 | B59: 446 | C59: 476 | D59: S44660 | E59: ksi | F59: 24.3 | G59: 24.3 | H59: 24.3 | I59: 24.25 | J59: 24.2 | K59: 24.05 | L59: 23.9 | M59: 23.85 | N59: 23.8 | O59: 23.7 | P59: 23.6 | Q59: 23.5 | R59: 23.4 | AO59: 50 | AP59: 1 | AQ59: 1 | AR59: 476 | AS59: 26Cr - 3Ni - 3Mo | AT59: SA-240 | AU59: 26-3-3 | AV59: S44660 | AW59: 54 | AX59: 446 | AY59: _1.4762 | BA59: Y_446__476

Sheet Youngs modulus (hidden)
F1: 1 | G1: 2 | H1: 3 | I1: 4 | J1: 5 | K1: 6 | L1: 7 | M1: 8 | N1: 9 | O1: 10 | P1: 11 | Q1: 12 | R1: 13 | S1: 14 | T1: 15 | U1: 16 | V1: 17 | W1: 18 | X1: 19 | Y1: 20 | Z1: 21 | AA1: 22
C3: source | D3: Em = youngs modulus / E-Modul | N3: SS = Sec II Part D p697ff. table TM-1 (7) group G
A4: Index | B4: Sign | C4: UNS | D4: T | E4: °F | F4: -300 | G4: -200 | H4: -100 | I4: 0 | J4: 100 | K4: 200 | L4: 300 | M4: 400 | N4: 500 | O4: 600 | P4: 700 | Q4: 800 | R4: 900 | S4: 1000 | T4: 1100 | U4: 1200 | V4: 1300 | W4: 1400 | X4: 1500 | Y4: 1600 | Z4: 1700 | AA4: 1800 | AB4: Em | AC4: Sa
A5: No | D5: --> | E5: °C | F5: =5/9*(F4-32) -> -184.4444444 | G5: =(F5+H5)/2 -> -128.8888889 | H5: =5/9*(H4-32) -> -73.33333333 | I5: =(H5+J5)/2 -> -17.77777778 | J5: =5/9*(J4-32) -> 37.77777778 | K5: 93.33333333 | L5: 148.8888889 | M5: 204.4444444 | N5: 260 | O5: 315.5555556 | P5: 371.1111111 | Q5: 426.6666667 | R5: 482.2222222 | S5: 537.7777778 | T5: 593.3333333 | U5: 648.8888889 | V5: 704.4444444 | W5: 760 | X5: 815.5555556 | Y5: 871.1111111 | Z5: 926.6666667 | AA5: 982.2222222 | AB5: max | AC5: max
A6: 1 | B6: LF2 | C6: K03011 | D6: TM-1 | E6: C <0,3 | F6: 31.28 | G6: 30.8 | H6: 30.3 | I6: 29.77058824 | J6: 29.26153846 | K6: 28.8 | L6: 28.3 | M6: 27.9 | N6: 27.3 | O6: 26.5 | P6: 25.5 | Q6: 24.2 | R6: 22.5 | S6: 20.4 | T6: 18 | AB6: 1100 | AC6: 1000
A7: 2 | B7: A105 | C7: K03504 | D7: TM-1 | E7: C <0,3 | F7: 31.28 | G7: 30.8 | H7: 30.3 | I7: 29.77058824 | J7: 29.26153846 | K7: 28.8 | L7: 28.3 | M7: 27.9 | N7: 27.3 | O7: 26.5 | P7: 25.5 | Q7: 24.2 | R7: 22.5 | S7: 20.4 | T7: 18 | AB7: 1100 | AC7: 1000
A8: 3 | B8: F12 | C8: K11562 | D8: TM-1 | E8: C (3) | F8: 31.46 | G8: 30.9 | H8: 30.5 | I8: 29.97058824 | J8: 29.46153846 | K8: 29 | L8: 28.5 | M8: 28 | N8: 27.4 | O8: 26.9 | P8: 26.2 | Q8: 25.6 | R8: 24.8 | S8: 23.9 | T8: 23 | U8: 21.8 | V8: 20.5 | W8: 18.9 | AB8: 1400 | AC8: 1200
A9: 4 | B9: F11 | C9: K11597 | D9: TM-1 | E9: C (3) | F9: 31.46 | G9: 30.9 | H9: 30.5 | I9: 29.97058824 | J9: 29.46153846 | K9: 29 | L9: 28.5 | M9: 28 | N9: 27.4 | O9: 26.9 | P9: 26.2 | Q9: 25.6 | R9: 24.8 | S9: 23.9 | T9: 23 | U9: 21.8 | V9: 20.5 | W9: 18.9 | AB9: 1400 | AC9: 1200
A10: 5 | B10: F2 | C10: K12122 | D10: TM-1 | E10: C (3) | F10: 31.46 | G10: 30.9 | H10: 30.5 | I10: 29.97058824 | J10: 29.46153846 | K10: 29 | L10: 28.5 | M10: 28 | N10: 27.4 | O10: 26.9 | P10: 26.2 | Q10: 25.6 | R10: 24.8 | S10: 23.9 | T10: 23 | U10: 21.8 | V10: 20.5 | W10: 18.9 | AB10: 1400 | AC10: 1000
A11: 6 | B11: F1 | C11: K12822 | D11: TM-1 | E11: A (1) | F11: 30.98 | G11: 30.5 | H11: 30 | I11: 29.41176471 | J11: 28.88461538 | K11: 28.5 | L11: 28 | M11: 27.6 | N11: 27 | O11: 26.3 | P11: 25.3 | Q11: 23.9 | R11: 22.2 | S11: 20.1 | T11: 17.8 | U11: 15.3 | AB11: 1200 | AC11: 1000
A12: 7 | B12: F22 | C12: K21590 | D12: TM-1 | E12: D (4) | F12: 32.46 | G12: 31.9 | H12: 31.4 | I12: 30.92941176 | J12: 30.43846154 | K12: 29.9 | L12: 29.4 | M12: 28.8 | N12: 28.3 | O12: 27.7 | P12: 27 | Q12: 26.3 | R12: 25.6 | S12: 24.7 | T12: 23.7 | U12: 22.5 | V12: 21.1 | W12: 19.4 | AB12: 1400 | AC12: 1200
A13: 8 | B13: F21 | C13: K31545 | D13: TM-1 | E13: D (4) | F13: 32.46 | G13: 31.9 | H13: 31.4 | I13: 30.92941176 | J13: 30.43846154 | K13: 29.9 | L13: 29.4 | M13: 28.8 | N13: 28.3 | O13: 27.7 | P13: 27 | Q13: 26.3 | R13: 25.6 | S13: 24.7 | T13: 23.7 | U13: 22.5 | V13: 21.1 | W13: 19.4 | AB13: 1400 | AC13: 1200
A14: 9 | B14: F5 | C14: K41545 | D14: TM-1 | E14: E (5) | F14: 32.88 | G14: 32.4 | H14: 31.9 | I14: 31.37058824 | J14: 30.83846154 | K14: 30.3 | L14: 29.7 | M14: 29.2 | N14: 28.6 | O14: 28.1 | P14: 27.5 | Q14: 26.9 | R14: 26.2 | S14: 25.4 | T14: 24.4 | U14: 23.3 | V14: 22 | W14: 20.5 | AB14: 1400 | AC14: 1200
A15: 10 | B15: F91 | C15: K90901 | D15: TM-1 | E15: E (5) | F15: 32.88 | G15: 32.4 | H15: 31.9 | I15: 31.37058824 | J15: 30.83846154 | K15: 30.3 | L15: 29.7 | M15: 29.2 | N15: 28.6 | O15: 28.1 | P15: 27.5 | Q15: 26.9 | R15: 26.2 | S15: 25.4 | T15: 24.4 | U15: 23.3 | V15: 22 | W15: 20.5 | AB15: 1400 | AC15: 1200
A16: 11 | B16: F9 | C16: K90941 | D16: TM-1 | E16: E (5) | F16: 32.88 | G16: 32.4 | H16: 31.9 | I16: 31.37058824 | J16: 30.83846154 | K16: 30.3 | L16: 29.7 | M16: 29.2 | N16: 28.6 | O16: 28.1 | P16: 27.5 | Q16: 26.9 | R16: 26.2 | S16: 25.4 | T16: 24.4 | U16: 23.3 | V16: 22 | W16: 20.5 | AB16: 1400 | AC16: 1200
A17: 12 | B17: Ni 200 | C17: N02200 | D17: TM-4 | E17: N0220x | F17: 32.04 | G17: 31.4 | H17: 30.9 | I17: 30.37058824 | J17: 29.86153846 | K17: 29.4 | L17: 28.9 | M17: 28.5 | N17: 28.1 | O17: 27.6 | P17: 27.2 | Q17: 26.7 | R17: 26.2 | S17: 25.7 | T17: 25.1 | U17: 24.5 | V17: 23.8 | W17: 23.1 | X17: 22.4 | AB17: 1500 | AC17: 600
A18: 13 | B18: Ni 201 | C18: N02201 | D18: TM-4 | E18: N0220x | F18: 32.04 | G18: 31.4 | H18: 30.9 | I18: 30.37058824 | J18: 29.86153846 | K18: 29.4 | L18: 28.9 | M18: 28.5 | N18: 28.1 | O18: 27.6 | P18: 27.2 | Q18: 26.7 | R18: 26.2 | S18: 25.7 | T18: 25.1 | U18: 24.5 | V18: 23.8 | W18: 23.1 | X18: 22.4 | AB18: 1500 | AC18: 1200
A19: 14 | B19: M 400 | C19: N04400 | D19: TM-4 | E19: M400 | F19: 27.68 | G19: 27.2 | H19: 26.8 | I19: 26.32941176 | J19: 25.88461538 | K19: 25.5 | L19: 25.1 | M19: 24.7 | N19: 24.3 | O19: 23.9 | P19: 23.6 | Q19: 23.1 | R19: 22.7 | S19: 22.2 | T19: 21.7 | U19: 21.2 | V19: 20.6 | W19: 20 | X19: 19.4 | AB19: 1500 | AC19: 900
A20: 15 | B20: H X | C20: N06002 | D20: TM-4 | E20: H X | F20: 30.38 | G20: 29.9 | H20: 29.5 | I20: 28.91176471 | J20: 28.36153846 | K20: 27.9 | L20: 27.5 | M20: 27.1 | N20: 26.7 | O20: 26.2 | P20: 25.8 | Q20: 25.4 | R20: 24.9 | S20: 24.3 | T20: 23.8 | U20: 23.2 | V20: 22.5 | W20: 21.9 | X20: 21.2 | AB20: 1500 | AC20: 1650
A21: 16 | B21: H C22 | C21: N06022 | D21: TM-4 | E21: N06022 | F21: 31.94 | G21: 31.3 | H21: 30.8 | I21: 30.27058824 | J21: 29.76153846 | K21: 29.3 | L21: 28.8 | M21: 28.4 | N21: 28 | O21: 27.5 | P21: 27.1 | Q21: 26.6 | R21: 26.1 | S21: 25.6 | T21: 25 | U21: 24.4 | V21: 23.7 | W21: 23 | X21: 22.3 | AB21: 1500 | AC21: 1250
A22: 17 | B22: H C4 | C22: N06455 | D22: TM-4 | E22: N06455 | F22: 31.84 | G22: 31.2 | H22: 30.7 | I22: 30.17058824 | J22: 29.66153846 | K22: 29.2 | L22: 28.7 | M22: 28.3 | N22: 27.9 | O22: 27.4 | P22: 27 | Q22: 26.5 | R22: 26 | S22: 25.5 | T22: 24.9 | U22: 24.3 | V22: 23.6 | W22: 22.9 | X22: 22.2 | AB22: 1500 | AC22: 800
A23: 18 | B23: IN 600 | C23: N06600 | D23: TM-4 | E23: 600 | F23: 33.14 | G23: 32.5 | H23: 31.9 | I23: 31.37058824 | J23: 30.83846154 | K23: 30.3 | L23: 29.9 | M23: 29.4 | N23: 29 | O23: 28.6 | P23: 28.1 | Q23: 27.6 | R23: 27.1 | S23: 26.5 | T23: 25.9 | U23: 25.3 | V23: 24.6 | W23: 23.9 | X23: 23.1 | AB23: 1500 | AC23: 1200
A24: 19 | B24: IN 601 | C24: N06601 | D24: TM-4 | E24: 625 | F24: 32.04 | G24: 31.4 | H24: 30.9 | I24: 30.37058824 | J24: 29.86153846 | K24: 29.4 | L24: 28.9 | M24: 28.5 | N24: 28.1 | O24: 27.6 | P24: 27.2 | Q24: 26.7 | R24: 26.2 | S24: 25.7 | T24: 25.1 | U24: 24.5 | V24: 23.8 | W24: 23.1 | X24: 22.4 | AB24: 1500 | AC24: 1650
A25: 20 | B25: IN 625 | C25: N06625 | D25: TM-4 | E25: 625 | F25: 32.04 | G25: 31.4 | H25: 30.9 | I25: 30.37058824 | J25: 29.86153846 | K25: 29.4 | L25: 28.9 | M25: 28.5 | N25: 28.1 | O25: 27.6 | P25: 27.2 | Q25: 26.7 | R25: 26.2 | S25: 25.7 | T25: 25.1 | U25: 24.5 | V25: 23.8 | W25: 23.1 | X25: 22.4 | AB25: 1500 | AC25: 1600
A26: 21 | B26: alloy 20 | C26: N08020 | D26: TM-4 | E26: A20 | F26: 29.86 | G26: 29.3 | H26: 28.8 | I26: 28.32941176 | J26: 27.86153846 | K26: 27.4 | L26: 27 | M26: 26.6 | N26: 26.2 | O26: 25.8 | P26: 25.4 | Q26: 24.9 | R26: 24.4 | S26: 23.9 | T26: 23.4 | U26: 22.8 | V26: 22.2 | W26: 21.6 | X26: 20.9 | AB26: 1500 | AC26: 800
A27: 22 | B27: IL 800 | C27: N08800 | D27: TM-4 | E27: 88x0 | F27: 30.38 | G27: 29.9 | H27: 29.3 | I27: 28.82941176 | J27: 28.36153846 | K27: 27.9 | L27: 27.5 | M27: 27.1 | N27: 26.7 | O27: 26.2 | P27: 25.8 | Q27: 25.4 | R27: 24.9 | S27: 24.4 | T27: 23.8 | U27: 23.2 | V27: 22.6 | W27: 21.9 | X27: 21.2 | AB27: 1500 | AC27: 1500
A28: 23 | B28: IL 800H | C28: N08810 | D28: TM-4 | E28: 88x0 | F28: 30.38 | G28: 29.9 | H28: 29.3 | I28: 28.82941176 | J28: 28.36153846 | K28: 27.9 | L28: 27.5 | M28: 27.1 | N28: 26.7 | O28: 26.2 | P28: 25.8 | Q28: 25.4 | R28: 24.9 | S28: 24.4 | T28: 23.8 | U28: 23.2 | V28: 22.6 | W28: 21.9 | X28: 21.2 | AB28: 1500 | AC28: 1650
A29: 24 | B29: IL 800HT | C29: N08811 | D29: TM-4 | E29: 88x0 | F29: 30.38 | G29: 29.9 | H29: 29.3 | I29: 28.82941176 | J29: 28.36153846 | K29: 27.9 | L29: 27.5 | M29: 27.1 | N29: 26.7 | O29: 26.2 | P29: 25.8 | Q29: 25.4 | R29: 24.9 | S29: 24.4 | T29: 23.8 | U29: 23.2 | V29: 22.6 | W29: 21.9 | X29: 21.2 | AB29: 1500 | AC29: 1650
A30: 25 | B30: IL 825 | C30: N08825 | D30: TM-4 | E30: 825 | F30: 29.86 | G30: 29.3 | H30: 28.8 | I30: 28.32941176 | J30: 27.86153846 | K30: 27.4 | L30: 27 | M30: 26.6 | N30: 26.2 | O30: 25.8 | P30: 25.4 | Q30: 24.9 | R30: 24.4 | S30: 23.9 | T30: 23.4 | U30: 22.8 | V30: 22.2 | W30: 21.6 | X30: 20.9 | AB30: 1500 | AC30: 1000
A31: 26 | B31: 904L | C31: N08904 | D31: TM-4 | E31: 88x0 | F31: 29.86 | G31: 29.3 | H31: 28.8 | I31: 28.32941176 | J31: 27.86153846 | K31: 27.4 | L31: 27 | M31: 26.6 | N31: 26.2 | O31: 25.8 | P31: 25.4 | Q31: 24.9 | R31: 24.4 | S31: 23.9 | T31: 23.4 | U31: 22.8 | V31: 22.2 | W31: 21.6 | X31: 20.9 | AB31: 1500 | AC31: 700
A32: 27 | B32: H 276 | C32: N10276 | D32: TM-4 | E32: H276 | F32: 31.84 | G32: 31.2 | H32: 30.7 | I32: 30.17058824 | J32: 29.66153846 | K32: 29.2 | L32: 28.7 | M32: 28.3 | N32: 27.9 | O32: 27.4 | P32: 27 | Q32: 26.5 | R32: 26 | S32: 25.5 | T32: 24.9 | U32: 24.3 | V32: 23.6 | W32: 22.9 | X32: 22.2 | AB32: 1500 | AC32: 1250
A33: 28 | B33: H B2 | C33: N10665 | D33: TM-4 | E33: 665 | F33: 33.54 | G33: 32.9 | H33: 32.3 | I33: 31.77058824 | J33: 31.23846154 | K33: 30.7 | L33: 30.2 | M33: 29.8 | N33: 29.3 | O33: 28.9 | P33: 28.4 | Q33: 27.9 | R33: 27.4 | S33: 26.8 | T33: 26.2 | U33: 25.6 | V33: 24.9 | W33: 24.2 | X33: 23.4 | AB33: 1500 | AC33: 800
A34: 29 | B34: H B3 | C34: N10675 | D34: TM-4 | E34: 675 | F34: 33.54 | G34: 32.9 | H34: 32.3 | I34: 31.77058824 | J34: 31.23846154 | K34: 30.7 | L34: 30.2 | M34: 29.8 | N34: 29.3 | O34: 28.9 | P34: 28.4 | Q34: 27.9 | R34: 27.4 | S34: 26.8 | T34: 26.2 | U34: 25.6 | V34: 24.9 | W34: 24.2 | X34: 23.4 | AB34: 1500 | AC34: 800
A35: 30 | B35: Ti 2 | C35: R50400 | D35: TM-5 | E35: R5x400 | F35: =TREND($I35:$L35,$I$4:$L$4,F$4) -> 16.94 | G35: =TREND($I35:$L35,$I$4:$L$4,G$4) -> 16.55076923 | H35: 16.16153846 | I35: 15.76923077 | J35: 15.38461538 | K35: 15 | L35: 14.6 | M35: 14 | N35: 13.3 | O35: 12.6 | P35: 11.9 | Q35: 11.2 | AB35: 800 | AC35: 600
A36: 31 | B36: Ti 7 | C36: R52400 | D36: TM-5 | E36: R5x400 | F36: =TREND($I36:$L36,$I$4:$L$4,F$4) -> 16.94 | G36: 16.55076923 | H36: 16.16153846 | I36: 15.76923077 | J36: 15.38461538 | K36: 15 | L36: 14.6 | M36: 14 | N36: 13.3 | O36: 12.6 | P36: 11.9 | Q36: 11.2 | AB36: 800 | AC36: 600
A37: 32 | B37: Ti 12 | C37: R53400 | D37: TM-5 | E37: R5x400 | F37: =TREND($I37:$L37,$I$4:$L$4,F$4) -> 16.94 | G37: 16.55076923 | H37: 16.16153846 | I37: 15.76923077 | J37: 15.38461538 | K37: 15 | L37: 14.6 | M37: 14 | N37: 13.3 | O37: 12.6 | P37: 11.9 | Q37: 11.2 | AB37: 800 | AC37: 600
A38: 33 | B38: 304 | C38: S30400 | D38: TM-1 | E38: G (7) | F38: 30.18 | G38: 29.7 | H38: 29.2 | I38: 28.67058824 | J38: 28.11538462 | K38: 27.5 | L38: 27 | M38: 26.4 | N38: 25.9 | O38: 25.3 | P38: 24.8 | Q38: 24.1 | R38: 23.5 | S38: 22.8 | T38: 22 | U38: 21.2 | V38: 20.3 | W38: 19.2 | X38: 18.1 | AB38: 1500 | AC38: 1500
A39: 34 | B39: 304L | C39: S30403 | D39: TM-1 | E39: G (7) | F39: 30.18 | G39: 29.7 | H39: 29.2 | I39: 28.67058824 | J39: 28.11538462 | K39: 27.5 | L39: 27 | M39: 26.4 | N39: 25.9 | O39: 25.3 | P39: 24.8 | Q39: 24.1 | R39: 23.5 | S39: 22.8 | T39: 22 | U39: 21.2 | V39: 20.3 | W39: 19.2 | X39: 18.1 | AB39: 1500 | AC39: 1200
A40: 35 | B40: 304H | C40: S30409 | D40: TM-1 | E40: G (7) | F40: 30.18 | G40: 29.7 | H40: 29.2 | I40: 28.67058824 | J40: 28.11538462 | K40: 27.5 | L40: 27 | M40: 26.4 | N40: 25.9 | O40: 25.3 | P40: 24.8 | Q40: 24.1 | R40: 23.5 | S40: 22.8 | T40: 22 | U40: 21.2 | V40: 20.3 | W40: 19.2 | X40: 18.1 | AB40: 1500 | AC40: 1500
A41: 36 | B41: 309S | C41: S30908 | D41: TM-1 | E41: G (7) | F41: 30.18 | G41: 29.7 | H41: 29.2 | I41: 28.67058824 | J41: 28.11538462 | K41: 27.5 | L41: 27 | M41: 26.4 | N41: 25.9 | O41: 25.3 | P41: 24.8 | Q41: 24.1 | R41: 23.5 | S41: 22.8 | T41: 22 | U41: 21.2 | V41: 20.3 | W41: 19.2 | X41: 18.1 | AB41: 1500 | AC41: 1000
A42: 37 | B42: 310 | C42: S31000 | D42: TM-1 | E42: G (7) | F42: 30.18 | G42: 29.7 | H42: 29.2 | I42: 28.67058824 | J42: 28.11538462 | K42: 27.5 | L42: 27 | M42: 26.4 | N42: 25.9 | O42: 25.3 | P42: 24.8 | Q42: 24.1 | R42: 23.5 | S42: 22.8 | T42: 22 | U42: 21.2 | V42: 20.3 | W42: 19.2 | X42: 18.1 | AB42: 1500 | AC42: 1500
A43: 38 | B43: 310LN | C43: S31050 | D43: TM-1 | E43: G (7) | F43: 30.18 | G43: 29.7 | H43: 29.2 | I43: 28.67058824 | J43: 28.11538462 | K43: 27.5 | L43: 27 | M43: 26.4 | N43: 25.9 | O43: 25.3 | P43: 24.8 | Q43: 24.1 | R43: 23.5 | S43: 22.8 | T43: 22 | U43: 21.2 | V43: 20.3 | W43: 19.2 | X43: 18.1 | AB43: 1500 | AC43: 600
A44: 39 | B44: F44 | C44: S31254 | D44: TM-1 | E44: J (16) | F44: 30.94 | G44: 30.3 | H44: 29.7 | I44: 29.05294118 | J44: 28.41538462 | K44: 27.8 | L44: 27.2 | M44: 26.6 | N44: 26 | O44: 25.4 | P44: 24.7 | Q44: 24.1 | R44: 23.5 | S44: 22.9 | AB44: 1000 | AC44: 750
A45: 40 | B45: 316 | C45: S31600 | D45: TM-1 | E45: G (7) | F45: 30.18 | G45: 29.7 | H45: 29.2 | I45: 28.67058824 | J45: 28.11538462 | K45: 27.5 | L45: 27 | M45: 26.4 | N45: 25.9 | O45: 25.3 | P45: 24.8 | Q45: 24.1 | R45: 23.5 | S45: 22.8 | T45: 22 | U45: 21.2 | V45: 20.3 | W45: 19.2 | X45: 18.1 | AB45: 1500 | AC45: 1500
A46: 41 | B46: 316L | C46: S31603 | D46: TM-1 | E46: G (7) | F46: 30.18 | G46: 29.7 | H46: 29.2 | I46: 28.67058824 | J46: 28.11538462 | K46: 27.5 | L46: 27 | M46: 26.4 | N46: 25.9 | O46: 25.3 | P46: 24.8 | Q46: 24.1 | R46: 23.5 | S46: 22.8 | T46: 22 | U46: 21.2 | V46: 20.3 | W46: 19.2 | X46: 18.1 | AB46: 1500 | AC46: 850
A47: 42 | B47: 316H | C47: S31609 | D47: TM-1 | E47: G (7) | F47: 30.18 | G47: 29.7 | H47: 29.2 | I47: 28.67058824 | J47: 28.11538462 | K47: 27.5 | L47: 27 | M47: 26.4 | N47: 25.9 | O47: 25.3 | P47: 24.8 | Q47: 24.1 | R47: 23.5 | S47: 22.8 | T47: 22 | U47: 21.2 | V47: 20.3 | W47: 19.2 | X47: 18.1 | AB47: 1500 | AC47: 1500
A48: 43 | B48: 316TI | C48: S31635 | D48: TM-1 | E48: G (7) | F48: 30.18 | G48: 29.7 | H48: 29.2 | I48: 28.67058824 | J48: 28.11538462 | K48: 27.5 | L48: 27 | M48: 26.4 | N48: 25.9 | O48: 25.3 | P48: 24.8 | Q48: 24.1 | R48: 23.5 | S48: 22.8 | T48: 22 | U48: 21.2 | V48: 20.3 | W48: 19.2 | X48: 18.1 | AB48: 1500 | AC48: 1500
A49: 44 | B49: 317 | C49: S31700 | D49: TM-1 | E49: G (7) | F49: 30.18 | G49: 29.7 | H49: 29.2 | I49: 28.67058824 | J49: 28.11538462 | K49: 27.5 | L49: 27 | M49: 26.4 | N49: 25.9 | O49: 25.3 | P49: 24.8 | Q49: 24.1 | R49: 23.5 | S49: 22.8 | T49: 22 | U49: 21.2 | V49: 20.3 | W49: 19.2 | X49: 18.1 | AB49: 1500 | AC49: 1500
A50: 45 | B50: 317L | C50: S31703 | D50: TM-1 | E50: G (7) | F50: 30.18 | G50: 29.7 | H50: 29.2 | I50: 28.67058824 | J50: 28.11538462 | K50: 27.5 | L50: 27 | M50: 26.4 | N50: 25.9 | O50: 25.3 | P50: 24.8 | Q50: 24.1 | R50: 23.5 | S50: 22.8 | T50: 22 | U50: 21.2 | V50: 20.3 | W50: 19.2 | X50: 18.1 | AB50: 1500 | AC50: 850
A51: 46 | B51: F51 | C51: S31803 | D51: TM-1 | E51: H (14) | F51: =TREND($H51:$I51,$H$4:$I$4,F$4) -> 31.6117647 | G51: =TREND($H51:$I51,$H$4:$I$4,G$4) -> 30.90588235 | H51: 30.2 | I51: 29.49411765 | J51: 28.81538462 | K51: 28.2 | L51: 27.5 | M51: 27 | N51: 26.4 | O51: 26 | P51: 25.5 | Q51: 25.1 | AB51: 800 | AC51: 600
A52: 47 | B52: 321 | C52: S32100 | D52: TM-1 | E52: G (7) | F52: 30.18 | G52: 29.7 | H52: 29.2 | I52: 28.67058824 | J52: 28.11538462 | K52: 27.5 | L52: 27 | M52: 26.4 | N52: 25.9 | O52: 25.3 | P52: 24.8 | Q52: 24.1 | R52: 23.5 | S52: 22.8 | T52: 22 | U52: 21.2 | V52: 20.3 | W52: 19.2 | X52: 18.1 | AB52: 1500 | AC52: 1500
A53: 48 | B53: 321H | C53: S32109 | D53: TM-1 | E53: G (7) | F53: 30.18 | G53: 29.7 | H53: 29.2 | I53: 28.67058824 | J53: 28.11538462 | K53: 27.5 | L53: 27 | M53: 26.4 | N53: 25.9 | O53: 25.3 | P53: 24.8 | Q53: 24.1 | R53: 23.5 | S53: 22.8 | T53: 22 | U53: 21.2 | V53: 20.3 | W53: 19.2 | X53: 18.1 | AB53: 1500 | AC53: 1500
A54: 49 | B54: F53 | C54: S32750 | D54: TM-1 | E54: H (14) | F54: =TREND($H54:$I54,$H$4:$I$4,F$4) -> 31.61176471 | G54: =TREND($H54:$I54,$H$4:$I$4,G$4) -> 30.90588235 | H54: 30.2 | I54: 29.49411765 | J54: 28.81538462 | K54: 28.2 | L54: 27.5 | M54: 27 | N54: 26.4 | O54: 26 | P54: 25.5 | Q54: 25.1 | AB54: 800 | AC54: 600
A55: 50 | B55: 347 | C55: S34700 | D55: TM-1 | E55: G (7) | F55: 30.18 | G55: 29.7 | H55: 29.2 | I55: 28.67058824 | J55: 28.11538462 | K55: 27.5 | L55: 27 | M55: 26.4 | N55: 25.9 | O55: 25.3 | P55: 24.8 | Q55: 24.1 | R55: 23.5 | S55: 22.8 | T55: 22 | U55: 21.2 | V55: 20.3 | W55: 19.2 | X55: 18.1 | AB55: 1500 | AC55: 1500
A56: 51 | B56: 347H | C56: S34709 | D56: TM-1 | E56: G (7) | F56: 30.18 | G56: 29.7 | H56: 29.2 | I56: 28.67058824 | J56: 28.11538462 | K56: 27.5 | L56: 27 | M56: 26.4 | N56: 25.9 | O56: 25.3 | P56: 24.8 | Q56: 24.1 | R56: 23.5 | S56: 22.8 | T56: 22 | U56: 21.2 | V56: 20.3 | W56: 19.2 | X56: 18.1 | AB56: 1500 | AC56: 1500
A57: 52 | B57: S410 | C57: S41000 | D57: TM-1 | E57: F (6) | F57: 31.1 | G57: 30.7 | H57: 30.2 | I57: 29.61176471 | J57: 29.01538462 | K57: 28.4 | L57: 27.9 | M57: 27.3 | N57: 26.8 | O57: 26.2 | P57: 25.5 | Q57: 24.5 | R57: 23.2 | S57: 21.5 | T57: 19.2 | U57: 16.5 | AB57: 1200 | AC57: 1000
A58: 53 | B58: TP446_1 | C58: S44600 | D58: TM-1 | E58: G (7) | F58: 30.18 | G58: 29.7 | H58: 29.2 | I58: 28.67058824 | J58: 28.11538462 | K58: 27.5 | L58: 27 | M58: 26.4 | N58: 25.9 | O58: 25.3 | P58: 24.8 | Q58: 24.1 | R58: 23.5 | S58: 22.8 | T58: 22 | U58: 21.2 | V58: 20.3 | W58: 19.2 | X58: 18.1 | AB58: 1500 | AC58: 650
A59: 54 | B59: 446 | C59: S44660 | D59: TM-1 | E59: G (7) | F59: 30.18 | G59: 29.7 | H59: 29.2 | I59: 28.67058824 | J59: 28.11538462 | K59: 27.5 | L59: 27 | M59: 26.4 | N59: 25.9 | O59: 25.3 | P59: 24.8 | Q59: 24.1 | R59: 23.5 | S59: 22.8 | T59: 22 | U59: 21.2 | V59: 20.3 | W59: 19.2 | X59: 18.1 | AB59: 1500 | AC59: 700

Sheet Free_Material_Input
B2: Thermowell Calculation Program ASME_PTC_19_3_TW_2016_v2_7
B5: This is a verification tool for "free" material data input.
B6: So you can input your own material name and specifications.
B7: But be careful: there is no automatic temperature interpolation (T)
B8: and similar names from Sec.II Material Base Table are dominant.
B10: Free material imput (Data values should be temperature interpolated manually)
B11: 1 | C11: 2 | D11: 3 | E11: 4 | F11: 5 | G11: 6 | H11: 7
B12: Free material imput | C12: Youngs-modul(T) | D12: Stress limit (T) | E12: Fatigue limit (T) | F12: Mat. density | G12: Remarks
A13: =MIN(A14:A22) -> 0 | C13: =IF(Layout!$D$21="°F","ksi","GPa") -> GPa | D13: =IF(Layout!$D$21="°F","psi","MPa") -> MPa | E13: =IF(Layout!$D$21="°F","psi","MPa") -> MPa | F13: =IF(Layout!$D$21="°F","lb/in3","kg/dm3") -> kg/dm3 | G13: (units on °C/°F)
A14: =IF(AND(B14<>"",B14=$B$13),H14,"") ->  | H14: 1
A15: =IF(AND(B15<>"",B15=$B$13),H15,"") ->  | H15: 2
H16: 3
H17: 4
H18: 5
A19: =IF(AND(B19<>"",B19=$B$13),H19,"") ->  | H19: 6
H20: 7
B21: ex8_1 | C21: 27500 | D21: 19800 | E21: 3000 | F21: 0.284 | G21: ex.8.1 imp A105 | H21: 8
B22: ex8_2 | C22: 191 | D22: 122 | E22: 37.2 | F22: 8 | G22: ex.8.2 SI F316 | H22: 9
A23: =IF(AND(A13>0,A13<10),A13,0) -> 0 | B23: =IF($A$23>0,INDEX(FREE,$A$23,B11),"") ->  | C23: =IF($A$23>0,INDEX(FREE,$A$23,C11),0) -> 0 | D23: =IF($A$23>0,INDEX(FREE,$A$23,D11),0) -> 0 | E23: =IF($A$23>0,INDEX(FREE,$A$23,E11),0) -> 0 | F23: =IF($A$23>0,INDEX(FREE,$A$23,F11),0) -> 0 | G23: =IF(B23=B13,1,0) -> 1 | H23: =A23*C23*D23*E23*F23*G23 -> 0 | I23: =VLOOKUP(I13,FREE,I$11) ->  | BU23: =VLOOKUP(BU13,FREE,BU$11) ->  | EG23: =VLOOKUP(EG13,FREE,EG$11) ->  | GS23: =VLOOKUP(GS13,FREE,GS$11) ->  | JE23: =VLOOKUP(JE13,FREE,JE$11) ->  | LQ23: =VLOOKUP(LQ13,FREE,LQ$11) ->  | OC23: =VLOOKUP(OC13,FREE,OC$11) ->  | QO23: =VLOOKUP(QO13,FREE,QO$11) ->  | TA23: =VLOOKUP(TA13,FREE,TA$11) ->  | VM23: =VLOOKUP(VM13,FREE,VM$11) ->  | XY23: =VLOOKUP(XY13,FREE,XY$11) ->  | AAK23: =VLOOKUP(AAK13,FREE,AAK$11) ->  | ACW23: =VLOOKUP(ACW13,FREE,ACW$11) ->  | AFI23: =VLOOKUP(AFI13,FREE,AFI$11) ->  | AHU23: =VLOOKUP(AHU13,FREE,AHU$11) ->  | AKG23: =VLOOKUP(AKG13,FREE,AKG$11) ->  | AMS23: =VLOOKUP(AMS13,FREE,AMS$11) ->  | APE23: =VLOOKUP(APE13,FREE,APE$11) ->  | ARQ23: =VLOOKUP(ARQ13,FREE,ARQ$11) ->  | AUC23: =VLOOKUP(AUC13,FREE,AUC$11) ->  | AWO23: =VLOOKUP(AWO13,FREE,AWO$11) ->  | AZA23: =VLOOKUP(AZA13,FREE,AZA$11) ->  | BBM23: =VLOOKUP(BBM13,FREE,BBM$11) ->  | BDY23: =VLOOKUP(BDY13,FREE,BDY$11) ->  | BGK23: =VLOOKUP(BGK13,FREE,BGK$11) ->  | BIW23: =VLOOKUP(BIW13,FREE,BIW$11) ->  | BLI23: =VLOOKUP(BLI13,FREE,BLI$11) ->  | BNU23: =VLOOKUP(BNU13,FREE,BNU$11) ->  | BQG23: =VLOOKUP(BQG13,FREE,BQG$11) ->  | BSS23: =VLOOKUP(BSS13,FREE,BSS$11) ->  | BVE23: =VLOOKUP(BVE13,FREE,BVE$11) ->  | BXQ23: =VLOOKUP(BXQ13,FREE,BXQ$11) ->  | CAC23: =VLOOKUP(CAC13,FREE,CAC$11) ->  | CCO23: =VLOOKUP(CCO13,FREE,CCO$11) ->  | CFA23: =VLOOKUP(CFA13,FREE,CFA$11) ->  | CHM23: =VLOOKUP(CHM13,FREE,CHM$11) ->  | CJY23: =VLOOKUP(CJY13,FREE,CJY$11) ->  | CMK23: =VLOOKUP(CMK13,FREE,CMK$11) ->  | COW23: =VLOOKUP(COW13,FREE,COW$11) ->  | CRI23: =VLOOKUP(CRI13,FREE,CRI$11) ->  | CTU23: =VLOOKUP(CTU13,FREE,CTU$11) ->  | CWG23: =VLOOKUP(CWG13,FREE,CWG$11) ->  | CYS23: =VLOOKUP(CYS13,FREE,CYS$11) ->  | DBE23: =VLOOKUP(DBE13,FREE,DBE$11) ->  | DDQ23: =VLOOKUP(DDQ13,FREE,DDQ$11) ->  | DGC23: =VLOOKUP(DGC13,FREE,DGC$11) ->  | DIO23: =VLOOKUP(DIO13,FREE,DIO$11) ->  | DLA23: =VLOOKUP(DLA13,FREE,DLA$11) ->  | DNM23: =VLOOKUP(DNM13,FREE,DNM$11) ->  | DPY23: =VLOOKUP(DPY13,FREE,DPY$11) ->  | DSK23: =VLOOKUP(DSK13,FREE,DSK$11) ->  | DUW23: =VLOOKUP(DUW13,FREE,DUW$11) ->  | DXI23: =VLOOKUP(DXI13,FREE,DXI$11) ->  | DZU23: =VLOOKUP(DZU13,FREE,DZU$11) ->  | ECG23: =VLOOKUP(ECG13,FREE,ECG$11) ->  | EES23: =VLOOKUP(EES13,FREE,EES$11) ->  | EHE23: =VLOOKUP(EHE13,FREE,EHE$11) ->  | EJQ23: =VLOOKUP(EJQ13,FREE,EJQ$11) ->  | EMC23: =VLOOKUP(EMC13,FREE,EMC$11) ->  | EOO23: =VLOOKUP(EOO13,FREE,EOO$11) ->  | ERA23: =VLOOKUP(ERA13,FREE,ERA$11) ->  | ETM23: =VLOOKUP(ETM13,FREE,ETM$11) ->  | EVY23: =VLOOKUP(EVY13,FREE,EVY$11) ->  | EYK23: =VLOOKUP(EYK13,FREE,EYK$11) ->  | FAW23: =VLOOKUP(FAW13,FREE,FAW$11) ->  | FDI23: =VLOOKUP(FDI13,FREE,FDI$11) ->  | FFU23: =VLOOKUP(FFU13,FREE,FFU$11) ->  | FIG23: =VLOOKUP(FIG13,FREE,FIG$11) ->  | FKS23: =VLOOKUP(FKS13,FREE,FKS$11) ->  | FNE23: =VLOOKUP(FNE13,FREE,FNE$11) ->  | FPQ23: =VLOOKUP(FPQ13,FREE,FPQ$11) ->  | FSC23: =VLOOKUP(FSC13,FREE,FSC$11) ->  | FUO23: =VLOOKUP(FUO13,FREE,FUO$11) ->  | FXA23: =VLOOKUP(FXA13,FREE,FXA$11) ->  | FZM23: =VLOOKUP(FZM13,FREE,FZM$11) ->  | GBY23: =VLOOKUP(GBY13,FREE,GBY$11) ->  | GEK23: =VLOOKUP(GEK13,FREE,GEK$11) ->  | GGW23: =VLOOKUP(GGW13,FREE,GGW$11) ->  | GJI23: =VLOOKUP(GJI13,FREE,GJI$11) ->  | GLU23: =VLOOKUP(GLU13,FREE,GLU$11) ->  | GOG23: =VLOOKUP(GOG13,FREE,GOG$11) ->  | GQS23: =VLOOKUP(GQS13,FREE,GQS$11) ->  | GTE23: =VLOOKUP(GTE13,FREE,GTE$11) ->  | GVQ23: =VLOOKUP(GVQ13,FREE,GVQ$11) ->  | GYC23: =VLOOKUP(GYC13,FREE,GYC$11) ->  | HAO23: =VLOOKUP(HAO13,FREE,HAO$11) ->  | HDA23: =VLOOKUP(HDA13,FREE,HDA$11) ->  | HFM23: =VLOOKUP(HFM13,FREE,HFM$11) ->  | HHY23: =VLOOKUP(HHY13,FREE,HHY$11) ->  | HKK23: =VLOOKUP(HKK13,FREE,HKK$11) ->  | HMW23: =VLOOKUP(HMW13,FREE,HMW$11) ->  | HPI23: =VLOOKUP(HPI13,FREE,HPI$11) ->  | HRU23: =VLOOKUP(HRU13,FREE,HRU$11) ->  | HUG23: =VLOOKUP(HUG13,FREE,HUG$11) ->  | HWS23: =VLOOKUP(HWS13,FREE,HWS$11) ->  | HZE23: =VLOOKUP(HZE13,FREE,HZE$11) ->  | IBQ23: =VLOOKUP(IBQ13,FREE,IBQ$11) ->  | IEC23: =VLOOKUP(IEC13,FREE,IEC$11) ->  | IGO23: =VLOOKUP(IGO13,FREE,IGO$11) ->  | IJA23: =VLOOKUP(IJA13,FREE,IJA$11) ->  | ILM23: =VLOOKUP(ILM13,FREE,ILM$11) ->  | INY23: =VLOOKUP(INY13,FREE,INY$11) ->  | IQK23: =VLOOKUP(IQK13,FREE,IQK$11) ->  | ISW23: =VLOOKUP(ISW13,FREE,ISW$11) ->  | IVI23: =VLOOKUP(IVI13,FREE,IVI$11) ->  | IXU23: =VLOOKUP(IXU13,FREE,IXU$11) ->  | JAG23: =VLOOKUP(JAG13,FREE,JAG$11) ->  | JCS23: =VLOOKUP(JCS13,FREE,JCS$11) ->  | JFE23: =VLOOKUP(JFE13,FREE,JFE$11) ->  | JHQ23: =VLOOKUP(JHQ13,FREE,JHQ$11) ->  | JKC23: =VLOOKUP(JKC13,FREE,JKC$11) ->  | JMO23: =VLOOKUP(JMO13,FREE,JMO$11) ->  | JPA23: =VLOOKUP(JPA13,FREE,JPA$11) ->  | JRM23: =VLOOKUP(JRM13,FREE,JRM$11) ->  | JTY23: =VLOOKUP(JTY13,FREE,JTY$11) ->  | JWK23: =VLOOKUP(JWK13,FREE,JWK$11) ->  | JYW23: =VLOOKUP(JYW13,FREE,JYW$11) ->  | KBI23: =VLOOKUP(KBI13,FREE,KBI$11) ->  | KDU23: =VLOOKUP(KDU13,FREE,KDU$11) ->  | KGG23: =VLOOKUP(KGG13,FREE,KGG$11) ->  | KIS23: =VLOOKUP(KIS13,FREE,KIS$11) ->  | KLE23: =VLOOKUP(KLE13,FREE,KLE$11) ->  | KNQ23: =VLOOKUP(KNQ13,FREE,KNQ$11) ->  | KQC23: =VLOOKUP(KQC13,FREE,KQC$11) ->  | KSO23: =VLOOKUP(KSO13,FREE,KSO$11) ->  | KVA23: =VLOOKUP(KVA13,FREE,KVA$11) ->  | KXM23: =VLOOKUP(KXM13,FREE,KXM$11) ->  | KZY23: =VLOOKUP(KZY13,FREE,KZY$11) ->  | LCK23: =VLOOKUP(LCK13,FREE,LCK$11) ->  | LEW23: =VLOOKUP(LEW13,FREE,LEW$11) ->  | LHI23: =VLOOKUP(LHI13,FREE,LHI$11) ->  | LJU23: =VLOOKUP(LJU13,FREE,LJU$11) ->  | LMG23: =VLOOKUP(LMG13,FREE,LMG$11) ->  | LOS23: =VLOOKUP(LOS13,FREE,LOS$11) ->  | LRE23: =VLOOKUP(LRE13,FREE,LRE$11) ->  | LTQ23: =VLOOKUP(LTQ13,FREE,LTQ$11) ->  | LWC23: =VLOOKUP(LWC13,FREE,LWC$11) ->  | LYO23: =VLOOKUP(LYO13,FREE,LYO$11) ->  | MBA23: =VLOOKUP(MBA13,FREE,MBA$11) ->  | MDM23: =VLOOKUP(MDM13,FREE,MDM$11) ->  | MFY23: =VLOOKUP(MFY13,FREE,MFY$11) ->  | MIK23: =VLOOKUP(MIK13,FREE,MIK$11) ->  | MKW23: =VLOOKUP(MKW13,FREE,MKW$11) ->  | MNI23: =VLOOKUP(MNI13,FREE,MNI$11) ->  | MPU23: =VLOOKUP(MPU13,FREE,MPU$11) ->  | MSG23: =VLOOKUP(MSG13,FREE,MSG$11) ->  | MUS23: =VLOOKUP(MUS13,FREE,MUS$11) ->  | MXE23: =VLOOKUP(MXE13,FREE,MXE$11) ->  | MZQ23: =VLOOKUP(MZQ13,FREE,MZQ$11) ->  | NCC23: =VLOOKUP(NCC13,FREE,NCC$11) ->  | NEO23: =VLOOKUP(NEO13,FREE,NEO$11) ->  | NHA23: =VLOOKUP(NHA13,FREE,NHA$11) ->  | NJM23: =VLOOKUP(NJM13,FREE,NJM$11) ->  | NLY23: =VLOOKUP(NLY13,FREE,NLY$11) ->  | NOK23: =VLOOKUP(NOK13,FREE,NOK$11) ->  | NQW23: =VLOOKUP(NQW13,FREE,NQW$11) ->  | NTI23: =VLOOKUP(NTI13,FREE,NTI$11) ->  | NVU23: =VLOOKUP(NVU13,FREE,NVU$11) ->  | NYG23: =VLOOKUP(NYG13,FREE,NYG$11) ->  | OAS23: =VLOOKUP(OAS13,FREE,OAS$11) ->  | ODE23: =VLOOKUP(ODE13,FREE,ODE$11) ->  | OFQ23: =VLOOKUP(OFQ13,FREE,OFQ$11) ->  | OIC23: =VLOOKUP(OIC13,FREE,OIC$11) ->  | OKO23: =VLOOKUP(OKO13,FREE,OKO$11) ->  | ONA23: =VLOOKUP(ONA13,FREE,ONA$11) ->  | OPM23: =VLOOKUP(OPM13,FREE,OPM$11) ->  | ORY23: =VLOOKUP(ORY13,FREE,ORY$11) ->  | OUK23: =VLOOKUP(OUK13,FREE,OUK$11) ->  | OWW23: =VLOOKUP(OWW13,FREE,OWW$11) ->  | OZI23: =VLOOKUP(OZI13,FREE,OZI$11) ->  | PBU23: =VLOOKUP(PBU13,FREE,PBU$11) ->  | PEG23: =VLOOKUP(PEG13,FREE,PEG$11) ->  | PGS23: =VLOOKUP(PGS13,FREE,PGS$11) ->  | PJE23: =VLOOKUP(PJE13,FREE,PJE$11) ->  | PLQ23: =VLOOKUP(PLQ13,FREE,PLQ$11) ->  | POC23: =VLOOKUP(POC13,FREE,POC$11) ->  | PQO23: =VLOOKUP(PQO13,FREE,PQO$11) ->  | PTA23: =VLOOKUP(PTA13,FREE,PTA$11) ->  | PVM23: =VLOOKUP(PVM13,FREE,PVM$11) ->  | PXY23: =VLOOKUP(PXY13,FREE,PXY$11) ->  | QAK23: =VLOOKUP(QAK13,FREE,QAK$11) ->  | QCW23: =VLOOKUP(QCW13,FREE,QCW$11) ->  | QFI23: =VLOOKUP(QFI13,FREE,QFI$11) ->  | QHU23: =VLOOKUP(QHU13,FREE,QHU$11) ->  | QKG23: =VLOOKUP(QKG13,FREE,QKG$11) ->  | QMS23: =VLOOKUP(QMS13,FREE,QMS$11) ->  | QPE23: =VLOOKUP(QPE13,FREE,QPE$11) ->  | QRQ23: =VLOOKUP(QRQ13,FREE,QRQ$11) ->  | QUC23: =VLOOKUP(QUC13,FREE,QUC$11) ->  | QWO23: =VLOOKUP(QWO13,FREE,QWO$11) ->  | QZA23: =VLOOKUP(QZA13,FREE,QZA$11) ->  | RBM23: =VLOOKUP(RBM13,FREE,RBM$11) ->  | RDY23: =VLOOKUP(RDY13,FREE,RDY$11) ->  | RGK23: =VLOOKUP(RGK13,FREE,RGK$11) ->  | RIW23: =VLOOKUP(RIW13,FREE,RIW$11) ->  | RLI23: =VLOOKUP(RLI13,FREE,RLI$11) ->  | RNU23: =VLOOKUP(RNU13,FREE,RNU$11) ->  | RQG23: =VLOOKUP(RQG13,FREE,RQG$11) ->  | RSS23: =VLOOKUP(RSS13,FREE,RSS$11) ->  | RVE23: =VLOOKUP(RVE13,FREE,RVE$11) ->  | RXQ23: =VLOOKUP(RXQ13,FREE,RXQ$11) ->  | SAC23: =VLOOKUP(SAC13,FREE,SAC$11) ->  | SCO23: =VLOOKUP(SCO13,FREE,SCO$11) ->  | SFA23: =VLOOKUP(SFA13,FREE,SFA$11) ->  | SHM23: =VLOOKUP(SHM13,FREE,SHM$11) ->  | SJY23: =VLOOKUP(SJY13,FREE,SJY$11) ->  | SMK23: =VLOOKUP(SMK13,FREE,SMK$11) ->  | SOW23: =VLOOKUP(SOW13,FREE,SOW$11) ->  | SRI23: =VLOOKUP(SRI13,FREE,SRI$11) ->  | STU23: =VLOOKUP(STU13,FREE,STU$11) ->  | SWG23: =VLOOKUP(SWG13,FREE,SWG$11) ->  | SYS23: =VLOOKUP(SYS13,FREE,SYS$11) ->  | TBE23: =VLOOKUP(TBE13,FREE,TBE$11) ->  | TDQ23: =VLOOKUP(TDQ13,FREE,TDQ$11) ->  | TGC23: =VLOOKUP(TGC13,FREE,TGC$11) ->  | TIO23: =VLOOKUP(TIO13,FREE,TIO$11) ->  | TLA23: =VLOOKUP(TLA13,FREE,TLA$11) ->  | TNM23: =VLOOKUP(TNM13,FREE,TNM$11) ->  | TPY23: =VLOOKUP(TPY13,FREE,TPY$11) ->  | TSK23: =VLOOKUP(TSK13,FREE,TSK$11) ->  | TUW23: =VLOOKUP(TUW13,FREE,TUW$11) ->  | TXI23: =VLOOKUP(TXI13,FREE,TXI$11) ->  | TZU23: =VLOOKUP(TZU13,FREE,TZU$11) ->  | UCG23: =VLOOKUP(UCG13,FREE,UCG$11) ->  | UES23: =VLOOKUP(UES13,FREE,UES$11) ->  | UHE23: =VLOOKUP(UHE13,FREE,UHE$11) ->  | UJQ23: =VLOOKUP(UJQ13,FREE,UJQ$11) ->  | UMC23: =VLOOKUP(UMC13,FREE,UMC$11) ->  | UOO23: =VLOOKUP(UOO13,FREE,UOO$11) ->  | URA23: =VLOOKUP(URA13,FREE,URA$11) ->  | UTM23: =VLOOKUP(UTM13,FREE,UTM$11) ->  | UVY23: =VLOOKUP(UVY13,FREE,UVY$11) ->  | UYK23: =VLOOKUP(UYK13,FREE,UYK$11) ->  | VAW23: =VLOOKUP(VAW13,FREE,VAW$11) ->  | VDI23: =VLOOKUP(VDI13,FREE,VDI$11) ->  | VFU23: =VLOOKUP(VFU13,FREE,VFU$11) ->  | VIG23: =VLOOKUP(VIG13,FREE,VIG$11) ->  | VKS23: =VLOOKUP(VKS13,FREE,VKS$11) ->  | VNE23: =VLOOKUP(VNE13,FREE,VNE$11) ->  | VPQ23: =VLOOKUP(VPQ13,FREE,VPQ$11) ->  | VSC23: =VLOOKUP(VSC13,FREE,VSC$11) ->  | VUO23: =VLOOKUP(VUO13,FREE,VUO$11) ->  | VXA23: =VLOOKUP(VXA13,FREE,VXA$11) ->  | VZM23: =VLOOKUP(VZM13,FREE,VZM$11) ->  | WBY23: =VLOOKUP(WBY13,FREE,WBY$11) ->  | WEK23: =VLOOKUP(WEK13,FREE,WEK$11) ->  | WGW23: =VLOOKUP(WGW13,FREE,WGW$11) ->  | WJI23: =VLOOKUP(WJI13,FREE,WJI$11) ->  | WLU23: =VLOOKUP(WLU13,FREE,WLU$11) ->  | WOG23: =VLOOKUP(WOG13,FREE,WOG$11) ->  | WQS23: =VLOOKUP(WQS13,FREE,WQS$11) ->  | WTE23: =VLOOKUP(WTE13,FREE,WTE$11) ->  | WVQ23: =VLOOKUP(WVQ13,FREE,WVQ$11) ->  | WYC23: =VLOOKUP(WYC13,FREE,WYC$11) ->  | XAO23: =VLOOKUP(XAO13,FREE,XAO$11) ->  | XDA23: =VLOOKUP(XDA13,FREE,XDA$11) -> 

Sheet Versions (hidden)
A3: v2_0
B4: 2011-05-02
C5: - with new design and new illustration for the worksheets
C6: - upgrading to Office 2007 for generating PDF files
C7: - Export functionality for reduced files for storing results
C8: - Checkboxes for choosing lines for calculation and documentation
C10: - Dual Certified material SS316/316L is set equal to SS316 (decision by C. Brook)
C11: - All materials not in fatigue class B are set to lower class A (ASME PTC 19.3).
A12: v2_1
B13: 2011-06-15
C14: - with bug fixing on PDF Output (PrintOut)
C15: o Corrected Celsius temperature (PDF)
C16: o Added factor 1000 to medium density (PDF)
C17: o Empty cell on not set inner shielded length SL/Lo
C18: - bug on density unit choice (lb/in3, conversion factor corrected)
C19: - bug on viscosity unit choice list (ft2/1000s), cSt added
A20: v2_2
B21: 2011-06-28
C22: - bug merged on converting flow rate Di imperial "in." to "mm", wrong cells(21,5) must be cells(21,8)
C23: ("enterprise", "David Burks")
C24: - known problems with copy-and-paste formats not recognizized as values without reentering numbers
C25: (not solved "Zahlenformat")
A27: v2_3
B28: 2012-04-10
C29: - unit error on Ured (°F with mm) merged #1
C30: - new path commands for VDI-stations ("HKCU\...", Registry call, Schoehl Dominik) #3
C31: (on PDF create and file export)
C32: - v2_1 on "macro security" merged
B33: 2012-10-10
C34: - "HKCU\.."-Command with Replace(String,...) from Schoehl Dominik #3
C35: - down rounding Ured (steps: 10mm/0,5") #2/#19
C36: - PuT replaced by new LOGO with PoyB #4
C37: - "euromissure" is no country … #7 skipped!
C38: - (kin. viscosity also in PrintOut #8)
C39: - freezed header on Worksheet "Layout" #12
B40: 2012-10-24
C41: - check tip thickness, step diameter and so on
C42: - Printout always with kinematic viscosisty (SI/imp) #8
B43: 2012-10-26
C44: - Pic ´Root Dia´ with nozzle table for max. value
B45: 2012-11-12
C46: - Department list with Italy/EUROMISURE
B47: -18.02.2013
C48: - FREE Input names
C49: - unique length units in LayOut
C50: - cosmetics
A52: v2_4
B53: 2013-09-06
C54: - Correction OI for WIKA models in fatigue stress classification
C55: - no InLine 0,4..0,6 for Nsc<2,5 (new error code "D") Joshua Fontenot
C56: - error code "u" for stepped length Us/u >0,6 Joshua Fontenot
B57: 2013-10-10
A59: v2_5
B60: 2014-02-28
B61: ok | C61: - Miami: 6-8.4 only valid for 6-8.3, 6-8.2 no lock in (gaseous fluids)
B62: ok | C62: - tip thickness only >3mm, not depenend on wall thickness (but also (D-d)/2>0.3)
B63: mrz ok | C63: - department addresses to check (Singapore, Brian Mc Dowell)
B64: apr ok | C64: - fatigue classes to check (Ni/Ti, C276)
B65: may ok | C65: - error codes "N" and "M" to check (Lo>L and Mat trouble)
B66: may ok | C66: - PintOut: red length -> optim^, no new insertion
A67: v2_5_1
B68: 2014-05-14
C69: - Department list corrected US=Houston (back, like v2.4)
A70: v2_6
B71: 2014-07-08
C72: - web-based v3.x structure listing | H72: v
C73: - detailed stepped tip evaluation (korrekted SvM, Somax) | H73: dim.limits?
C74: - excluding v<0.64 m/s like ABB… | H74: ABB art.
C75: - added Output-list and Diagramm like v1.x ………..
B76: 2014-09-11
C77: - Brian McDowell: big customer missed nozzle dates in pdf (… Uopt twice in pdf)
C78: - must be clearified in Houston week 38 (v2.5.2?) --> KG
B80: 2016-04-11
C81: - new name and header for new Standard release PTC_19_3_2016
C82: - header kin. viscosity to capital letter Kin.
C83: - eta corrected to my (but no change to english mu and nu)
C84: - viscosity units transfered from Input "LayOut" to Print_Out
C85: - viscosity values also transfered from actual line, no more separat conversion in PrintOut
C86: - no splitted TW10 handling, all equal "mw" till web-based solution (decicion KG)
C87: - no additional disclaimer for 6-8.3-5e on case #2 (smileys)
C88: - case #2 info `6-8.4 !´on PrintOut besides rmax and NoteCode í added
C89: - set expiring date to 2017
B90: 2016-04-21
C91: - UpDate departments check Houston, Korea, Singapore and partial new email-account info.xx@wika.com
C92: - A and B on PrintOut switched/corrected
C93: - "?" On LayOut For trial version tild
A94: v2_7
A95: Draft 1 | B95: 2017-10-24
B96: ok | C96: - pressure units to barg and psig to point out relative pressure
B97: ok | C97: - version number v2.7
B98: ok | C98: - print detailed results right to LayOut, now including stepped tip
B99: ok | C99: - WIKA Logo to export file --> old name changed to "Object 502"
B100: 2017-11-09
B101: ok | C101: - button to switch to special detailed results
B102: 2017-12-01
A103: Draft 2 | B103: ok | C103: - limiting detail results (Draft2) for better resonse (13 sec too ,long) --- new bottom up from v2.6
B104: ok | C104: - format style like other columns
B105: ok | C105: - new versioning, version numbers
B106: ok | C106: - repeated barg/psig
B107: ok | C107: - WIKA Logo to export file --> old name changed to "Object 502"
B108: ok | C108: - button to switch to special detailed results

Sheet DropDowns (hidden)
V2: 2016-04-11
A3: Disclaimer: (mouse over) | B3: temperature | C3: proc. pressure | D3: =IF(D6<2,"max.velocity","mass flow rate") -> mass flow rate | E3: =IF(E6<3,"med.density","spec.volume") -> spec.volume | F3: inner diameter | G3: =IF(G6<2,"kin.viscosity","dyn.viscosity") -> dyn.viscosity | H3: shielded length | I3: TW sketch | J3: insertion length | K3: (stepped length) | L3: (step radius at B) | M3: root radius at A | N3: bore diameter | O3: root diameter | P3: tip diameter | Q3: tip thickness | R3: welded ? | S3: TW material | W3: =IF(W6<2,"kin.viscosity","dyn.viscosity") -> dyn.viscosity
A4: TAG-No | B4: T | C4: P | D4: =IF(D6<2,"v","flr") -> flr | E4: =IF(E6<3,"rho","vs") -> vs | F4: Di | G4: my | H4: Lo | I4: Fig. | J4: L | K4: Ls | L4: rB | M4: rA | N4: db | O4: A | P4: B | Q4: Tt | W4: =IF(W6<2,"ny","eta") -> eta
A5: choice units ---> | B5: °F | C5: psi | D5: ft/s | E5: lb/ft3 | F5: in. | G5: cP | H5: in. | I5: No. | J5: in. | K5: in. | L5: in. | M5: in. | N5: in. | O5: in. | P5: in. | Q5: in. | R5: weld? | S5: mat | W5: cP
B6: °C | C6: bar | D6: m/s | E6: kg/m3 | F6: mm | G6: mm2/s | H6: mm | I6: No. | J6: mm | K6: mm | L6: mm | M6: mm | N6: mm | O6: mm | P6: mm | Q6: mm | R6: / | S6: name | W6: mm2/s
A7: name | B7: _T | C7: _p | D7: _v | E7: _rho | G7: _ny | J7: _L | W7: _ny
A8: 0 | B8: °C | C8: barg | D8: m/s | E8: kg/m3 | F8: mm | G8: cSt | H8: mm | J8: mm | K8: mm | L8: mm | M8: mm | N8: mm | O8: mm | P8: mm | Q8: mm | W8: cSt
A9: 1 | B9: °F | C9: psig | D9: ft/s | E9: lb/ft3 | F9: in. | G9: mm2/s | H9: in. | J9: in. | K9: in. | L9: in. | M9: in. | N9: in. | O9: in. | P9: in. | Q9: in. | W9: mm2/s
A10: 2 | D10: kg/h | E10: lb/in3 | G10: ft2/1000s | W10: ft2/1000s
A11: 3 | D11: lb/h | E11: ft3/lb | G11: cP | W11: cP
A12: 4 | E12: in3/lb | G12: mPa s | W12: mPa-s
